Workbook

Sheet selite
A1: VALTIOVARAINMINISTERIÖ/Kunta- ja aluehallinto-osasto/vjl | H1: 2017-10-30
A3: KUNTAKONSERNIN TALOUDEN SUUNNITTELUKEHIKKO
A5: Kehikon käyttötarkoitus:
A6: Vuorovaikutteinen kuntakonsernin talouden suunnittelun apuväline. Kehikon avulla voidaan suunnitella konsernin talouden
A7: kehitystä pidemmällä aikavälillä. Tarkastelun kohteena ovat konsernin tuloslaskelma, rahoituslaskelmasta rahavarat, antolainat ja
A8: investoinnit sekä taseesta lainat ja kertynyt yli-/alijäämä. Pohjatietoina kehikossa ovat 2 viimeksi
A9: valmistunutta tilinpäätöstä.
A10: Tulevan kehityksen osalta tuloslaskelman erien kasvuolettamukset pohjautuvat lähtökohtaisesti
A11: uusimman valtion kuntatalousohjelman (elokuu 2017) mukaisiin makroarviolukuihin - ei kuntakohtaisiin ennusteisiin.
A12: Käyttäjä voi kuitenkin itse muokata em. kasvuolettamuksia sekä yleensä tuloslaskelman muita eriä.
A13: Myös tuloveroprosenttia, investointeja ja antolainasaamisten määrää voidaan muuttaa.
A14: Rahoituslaskelman ja taseen erät pohjautuvat jäljempänä selostettuihin olettamuksiin
A15: (pl. taseen kertynyt yli-/alijäämä = ed. tilikausien yli-/alijäämä + tilikauden yli-/alijäämä).
A17: Käyttäjä voi muokata vaaleansinisellä pohjalla olevia kohtia (soluja).
A19: Kehikon laskentapohja:
A20: Asukasluku:
A21: Kunnan asukaslukuina käytetään lähtökohtaisesti viimeisintä väestötietoa (tässä 31.12.2016). Tulevien vuosien
A22: osalta asukaslukutiedot perustuvat tilastokeskuksen viimeisimpään väestöennusteeseen (TK, 2015).
A23: Tuloveroprosentti:
A24: Tuloveroprosentti perustuu viimeksi vahvistettuun tietoon (tässä vuoden 2017 veroprosentti). Tulevien vuosien osalta
A25: tuloveroprosentti on lähtökohtaisesti sama kuin edellisvuonna, mutta sitä voidaan muuttaa kehikossa. Kehikko
A26: laskee automaattisesti veroprosentin muutoksen vaikutuksen kunnallisveron tuottoon (edellisvuoden
A27: veroprosenttiyksikön tuoton perusteella).
A28: Tuloslaskelma:
A29: Tuloslaskelman pohjana ovat kuntien tilinpäätökset kahdelta viimeiseltä vuodelta. Tässä tapauksessa vuodet
A30: 2015 ja 2016. Tuloslaskelman keskeisten erien tulevien vuosien kasvuprosentit perustuvat lähtökohtaisesti
A31: kuntatalousohjelman (KTO 2018, VM, elokuu 2017) mukaisiin makroennusteisiin eli kasvuprosentit
A32: ovat näin kaikilla kunnilla samat. Em. keskeiset tuloslaskelman erät ovat seuraavat:
B33: 1) toimintatuotot,
B34: 2) toimintamenot,
B35: 3) kunnallisverot (pl. veroprosentin noston vaikutus),
B36: 4) yhteisöverot,
B37: 5) kiinteistöverot ja
B38: 6) valtionosuudet.
A39: Käyttäjä voi muokata em. erien kasvuolettamuksia haluamikseen kirjoittamalla taulukkoon uudet kasvuprosentit.
A41: Verotuloissa on käytetty kunnan verotuloja, koska Tilastokeskus ei kerää konsernitasolla eri veromuotoja.
A42: TK:sta ilmoitettu yhteenlaskettu konsernitason verotulot saattaa poiketa perunkunnan yhteenlasketusta
A44: Korkokulujen kehitys perustuu edellisvuoden lainamäärään ja valittuun korkokantaan. Korkoprosentti (keskim.)
A45: voidaan siis valita halutun mukaiseksi. Korkoprosentti ei vaikuta korkotuottoihin, vaan sen perustuu ed. vuoden määrään.
A47: Muiden tuloslaskelman erien on oletettu edellisvuoden mukaisesti, mutta käyttäjä voi muokata niitä haluamikseen.
A48: Rahoituslaskelma ja tase:
A49: Kehikossa tuloslaskelma "päätyy" taseen kertyneeseen yli-/alijäämään, jolloin voidaan tarkastella esim. milloin kunnan mahdollinen
A50: taseen alijäämä tulisi katetuksi valituilla tuloslaskelman kasvuoletuksilla (vrt. kuntalaki ja alijäämän kattamisvelvollisuus).
A52: Investoinnit ja niihin liittyvät rahoitusosuudet sekä pysyvien vastaavien luovutustulot ovat lähtökohtaisesti viimeksi toteutuneen
A53: tilinpäätöksen mukaiset, mutta ne ovat myös muutettavissa.
A55: Kehikossa ns. bruttorahoitustarve katetaan joko lainanlisäyksellä tai/ja rahavarojen purulla. Käyttäjä voi valita prosenttiosuuden,
A56: jolla rahavaroja käytetään bruttorahoitustarpeen kattamiseen. Mikäli rahavaroja ei ole, tarve katetaan kaikkiaan lainanlisäyksellä.
A57: Bruttorahoitustarve voi olla myös positiivinen, jolloin "ylijäämä" lisää rahavaroja.
A59: Bruttorahoitustarve muodostuu seuraavista eristä = Vuosikate + tulorahoituksen korjauserät + satunnaiset erät, netto + investoinnit,
A60: netto + antolainasaamisten muutokset, netto + lainanlyhennykset. Bruttorahoitustarve voi olla myös positiivinen, jolloin "ylijäämä"
A62: Lainamäärää lyhennetään valitun keskimääräisen lyhennysajan (kuoletusaika) mukaan eli jos keskimääräinen lainanmaksuaika
A63: on esimerkiksi 8 vuotta, niin vuosittainen lainanlyhennys on 1/8 (12,5 %) edellisvuoden lainamäärästä. Lainanlyhennys
A64: tehdään aina, vaikka bruttorahoitustarve olisi negatiivinen.
A69: Lisätietoja: Neuvotteleva virkamies Vesa Lappalainen, puh. 02955 30389, etunimi.sukunimi@vm.fi

Sheet KEHIKKO
A1: Valtiovarainministeriö/Kunta- ja aluehallinto-osasto/vjl | H1: VALITSE KUNTA: | L1: 2017-10-31
A2: KUNTAKONSERNIN TALOUDEN SUUNNITTELUKEHIKKO | J2: Kunnat vuoden 2017 kuntajaolla
A3: Muokkaa vaaleansinisellä olevia kohtia.
A4: =INDEX(pohjatiedot!$B$3:$B$298,KEHIKKO!$A$5) -> KOKO MAA (Manner-Suomi)
A5: 96 | B5: TP 2015 | C5: TP 2016 | D5: 2017 | E5: 2018 | F5: 2019 | G5: 2020 | H5: 2021 | I5: 2022 | J5: 2023 | K5: 2024 | L5: 2025 | M5: 2026
A6: TULOSLASKELMA | K6: sama kuin ed.vuonna
A7: Asukasluku 31.12. | B7: =VLOOKUP($A$4,pohjatiedot!$B$3:$CD$298,2) -> 5458325 | C7: =VLOOKUP($A$4,pohjatiedot!$B$3:$CD$298,40) -> 5474083 | D7: =VLOOKUP($A$4,väestöennuste!$A$8:$K$305,4) -> 5482281 | E7: =VLOOKUP($A$4,väestöennuste!$A$8:$K$305,5) -> 5503261 | F7: =VLOOKUP($A$4,väestöennuste!$A$8:$K$305,6) -> 5524063 | G7: =VLOOKUP($A$4,väestöennuste!$A$8:$K$305,7) -> 5544619 | H7: =VLOOKUP($A$4,väestöennuste!$A$8:$K$305,8) -> 5564874 | I7: =VLOOKUP($A$4,väestöennuste!$A$8:$K$305,9) -> 5584791 | J7: =VLOOKUP($A$4,väestöennuste!$A$8:$K$305,10) -> 5604290 | K7: =VLOOKUP($A$4,väestöennuste!$A$8:$K$305,11) -> 5623257 | L7: =K7 -> 5623257 | M7: =L7 -> 5623257 | N7: Väestöennuste TK 2015
A8: Veroprosentti | B8: =VLOOKUP($A$4,pohjatiedot!$B$3:$CD$298,3) -> 19.85 | C8: =VLOOKUP($A$4,pohjatiedot!$B$3:$CD$298,41) -> 19.89 | D8: =VLOOKUP($A$4,pohjatiedot!$B$3:$CG$298,81) -> 19.92 | E8: =D8 -> 19.92 | F8: =E8 -> 19.92 | G8: =VLOOKUP($A$4,pohjatiedot!$B$3:$CG$298,81) -> 19.92 | H8: 19.92 | I8: 19.92 | J8: 19.92 | K8: 19.92 | L8: 19.92 | M8: 19.92 | O8: Vuoden 2020 veroprosentti on saatu vähentämällä kunnilta 12,47 %-yksikköä
A9: vero-% yksikön tuotto | B9: =B15/B8 -> 929129.4207 | C9: 945567.823 | D9: =D15/D8 -> 941785.5517 | E9: =E15/E8 -> 962504.8339 | F9: 992342.4837 | G9: 458462.2275 | H9: 444249.8984 | I9: 430478.1516 | J9: 417133.3289 | K9: 404202.1957 | L9: 391671.9276 | M9: 379530.0979
A10: → noston vaikutus | D10: =(D8-C8)*C9 -> 28367.03469 | E10: =(E8-D8)*D9 -> 0 | F10: 0 | G10: 0 | H10: 0 | I10: 0 | J10: 0 | K10: 0 | L10: 0 | M10: 0
A11: Toimintatuotot (sis. valm. okäytt.) | B11: =VLOOKUP($A$4,pohjatiedot!$B$3:$CD$298,6) -> 23476833 | C11: =VLOOKUP($A$4,pohjatiedot!$B$3:$CD$298,44) -> 23891978 | D11: =C11*(1+D70/100) -> 22960190.86 | E11: =D11*(1+E70/100) -> 23143872.38 | F11: =E11*(1+F70/100) -> 23537318.22 | G11: =F11*(1+G70/100) -> 18782779.94 | H11: =G11*(1+H70/100) -> 19271132.21 | I11: 19772181.65 | J11: 20286258.37 | K11: 20813701.09 | L11: 21354857.32 | M11: 21910083.61 | O11: Näiden erin muutos-
A12: Toimintakulut | B12: =VLOOKUP($A$4,pohjatiedot!$B$3:$CD$298,7) -> 49847855 | C12: =VLOOKUP($A$4,pohjatiedot!$B$3:$CD$298,45) -> 50389944 | D12: =C12*(1+D71/100) -> 49130195.4 | E12: 49670627.55 | F12: 50713710.73 | G12: 24596149.7 | H12: 25235649.6 | I12: 25891776.48 | J12: 26564962.67 | K12: 27255651.7 | L12: 27964298.65 | M12: 28691370.41 | O12: prosentit syötetään
A13: Osuus osakk.yht. voitoista/tappioista | B13: =VLOOKUP($A$4,pohjatiedot!$B$3:$CD$298,8) -> 59655 | C13: =VLOOKUP($A$4,pohjatiedot!$B$3:$CD$298,46) -> 68081 | D13: =C13 -> 68081 | E13: =D13 -> 68081 | F13: =E13 -> 68081 | G13: 68081 | H13: 68081 | I13: 68081 | J13: 68081 | K13: 68081 | L13: 68081 | M13: 68081 | O13: alla olevaan taulukkoon
A14: Toimintakate | B14: =B11-B12+B13 -> -26311367 | C14: =C11-C12+C13 -> -26429885 | D14: =D11-D12+D13 -> -26101923.54 | E14: =E11-E12+E13 -> -26458674.16 | F14: -27108311.51 | G14: -5745288.767 | H14: -5896436.381 | I14: -6051513.833 | J14: -6210623.299 | K14: -6373869.61 | L14: -6541360.326 | M14: -6713205.801
A15: Kunnallisverot | B15: =VLOOKUP($A$4,pohjatiedot!$B$3:$CD$298,9) -> 18443219 | C15: =VLOOKUP($A$4,pohjatiedot!$B$3:$CD$298,47) -> 18807344 | D15: =(C15+D10)*(1+D72/100) -> 18760368.19 | E15: =(D15+E10)*(1+E72/100) -> 19173096.29 | F15: =(E15+F10)*(1+F72/100) -> 19767462.28 | G15: =F15*(1+G72/100) -> 9132567.571 | H15: =(G15+H10)*(1+H72/100) -> 8849457.977 | I15: =(H15+I10)*(1+I72/100) -> 8575124.779 | J15: 8309295.911 | K15: 8051707.738 | L15: 7802104.798 | M15: 7560239.549
A16: Yhteisöverot | B16: =VLOOKUP($A$4,pohjatiedot!$B$3:$CD$298,10) -> 1638497 | C16: =VLOOKUP($A$4,pohjatiedot!$B$3:$CD$298,48) -> 1539341 | D16: =C16*(1+D73/100) -> 1898007.453 | E16: =D16*(1+E73/100) -> 1930273.58 | F16: 1984321.24 | G16: 1623174.774 | H16: 1485204.918 | I16: 1358962.5 | J16: 1243450.688 | K16: 1137757.379 | L16: 1041048.002 | M16: 952558.922
A17: Kiinteistöverot | B17: =VLOOKUP($A$4,pohjatiedot!$B$3:$CD$298,11) -> 1581155 | C17: =VLOOKUP($A$4,pohjatiedot!$B$3:$CD$298,49) -> 1640918 | D17: =C17*(1+D74/100) -> 1721322.982 | E17: 1779847.963 | F17: 1836803.098 | G17: 1860681.538 | H17: 1881149.035 | I17: 1901841.675 | J17: 1922761.933 | K17: 1943912.314 | L17: 1965295.35 | M17: 1986913.599
A18: Verotulot | B18: =VLOOKUP($A$4,pohjatiedot!$B$3:$CD$298,12) -> 21662871 | C18: =VLOOKUP($A$4,pohjatiedot!$B$3:$CD$298,50) -> 21987603 | D18: =SUM(D15:D17) -> 22379698.63 | E18: 22883217.83 | F18: 23588586.61 | G18: 12616423.88 | H18: 12215811.93 | I18: 11835928.95 | J18: 11475508.53 | K18: 11133377.43 | L18: 10808448.15 | M18: 10499712.07
A19: Valtionosuudet | B19: =VLOOKUP($A$4,pohjatiedot!$B$3:$CD$298,13) -> 9442539 | C19: =VLOOKUP($A$4,pohjatiedot!$B$3:$CD$298,51) -> 10050212 | D19: =C19*(1+D75/100) -> 9979860.516 | E19: =D19*(1+E75/100) -> 9730364.003 | F19: =E19*(1+F75/100) -> 9350879.807 | G19: =F19*(1+G75/100) -> 2739807.783 | H19: =G19*(1+H75/100) -> 2824741.825 | I19: 2912308.821 | J19: 3002590.395 | K19: 3095670.697 | L19: 3191636.489 | M19: 3290577.22
D20: Kuntatalousohjelma-->
A21: Korkotuotot | B21: =VLOOKUP($A$4,pohjatiedot!$B$3:$CD$298,14) -> 89280 | C21: =VLOOKUP($A$4,pohjatiedot!$B$3:$CD$298,52) -> 77076 | D21: =C21 -> 77076 | E21: =D21 -> 77076 | F21: 77076 | G21: 77076 | H21: 77076 | I21: 77076 | J21: 77076 | K21: 77076 | L21: 77076 | M21: 77076
A22: Korkokulut | B22: =VLOOKUP($A$4,pohjatiedot!$B$3:$CD$298,15) -> 524605 | C22: =VLOOKUP($A$4,pohjatiedot!$B$3:$CD$298,53) -> 461683 | D22: =($H$78/100)*C61 -> 674185.22 | E22: =($H$78/100)*D61 -> 668481.2619 | F22: 664595.0348 | G22: 666514.9831 | H22: 600409.3073 | I22: 542342.9097 | J22: 492010.2288 | K22: 449127.1877 | L22: 413429.6379 | M22: 384671.9273
A23: Muut rahoitustuotot | B23: =VLOOKUP($A$4,pohjatiedot!$B$3:$CD$298,16) -> 235166 | C23: =VLOOKUP($A$4,pohjatiedot!$B$3:$CD$298,54) -> 186106 | D23: =C23 -> 186106 | E23: =D23 -> 186106 | F23: 186106 | G23: 186106 | H23: 186106 | I23: 186106 | J23: 186106 | K23: 186106 | L23: 186106 | M23: 186106
A24: Muut rahoituskulut | B24: =VLOOKUP($A$4,pohjatiedot!$B$3:$CD$298,17) -> 98989 | C24: =VLOOKUP($A$4,pohjatiedot!$B$3:$CD$298,55) -> 69647 | D24: =C24 -> 69647 | E24: =D24 -> 69647 | F24: 69647 | G24: 69647 | H24: 69647 | I24: 69647 | J24: 69647 | K24: 69647 | L24: 69647 | M24: 69647
A25: VUOSIKATE | B25: =VLOOKUP($A$4,pohjatiedot!$B$3:$CD$298,18) -> 4449264 | C25: =VLOOKUP($A$4,pohjatiedot!$B$3:$CD$298,56) -> 5294232 | D25: =D14+D18+D19+D21-D22+D23-D24 -> 5776985.38 | E25: =E14+E18+E19+E21-E22+E23-E24 -> 5679961.41 | F25: 5360094.874 | G25: 9137962.917 | H25: 8737243.067 | I25: 8347916.033 | J25: 7969000.4 | K25: 7599586.331 | L25: 7238829.675 | M25: 6885946.562
A26: €/asukas | B26: =1000*B25/B7 -> 815.1335804 | C26: =1000*C25/C7 -> 967.1449994 | D26: =1000*D25/D7 -> 1053.755796 | E26: =1000*E25/E7 -> 1032.10831 | F26: 970.3174771 | G26: 1648.077698 | H26: 1570.070242 | I26: 1494.758897 | J26: 1421.946473 | K26: 1351.456341 | L26: 1287.301945 | M26: 1224.547724
A27: Poistot ja arvonalent. | B27: =VLOOKUP($A$4,pohjatiedot!$B$3:$CD$298,20) -> 3816180 | C27: =VLOOKUP($A$4,pohjatiedot!$B$3:$CD$298,58) -> 3936135 | D27: =C27*$O$27 -> 4059860.577 | E27: =D27*$O$27 -> 4187475.254 | F27: 4319101.276 | G27: 4454864.734 | H27: 4594895.681 | I27: 4739328.258 | J27: 4888300.823 | K27: 5041956.081 | L27: 5200441.227 | M27: 5363908.078 | O27: =C27/B27 -> 1.031433266 | P27: kasvuoletus 06/16
A28: Satunnaiset erät | B28: =VLOOKUP($A$4,pohjatiedot!$B$3:$CD$298,21) -> 128426 | C28: =VLOOKUP($A$4,pohjatiedot!$B$3:$CD$298,59) -> 322374 | D28: =C28 -> 322374 | E28: =D28 -> 322374 | F28: 322374 | G28: 322374 | H28: 322374 | I28: 322374 | J28: 322374 | K28: 322374 | L28: 322374 | M28: 322374
A30: Tilikauden tulos | B30: =VLOOKUP($A$4,pohjatiedot!$B$3:$CD$298,23) -> 761510 | C30: =VLOOKUP($A$4,pohjatiedot!$B$3:$CD$298,61) -> 1680471 | D30: =D25-D27+D28-D29 -> 2039498.802 | E30: =E25-E27+E28-E29 -> 1814860.157 | F30: 1363367.597 | G30: 5005472.183 | H30: 4464721.386 | I30: 3930961.775 | J30: 3403073.577 | K30: 2880004.249 | L30: 2360762.448 | M30: 1844412.484
A31: Tilinpäätössiirrot | B31: =VLOOKUP($A$4,pohjatiedot!$B$3:$CD$298,24) -> -66137 | C31: =VLOOKUP($A$4,pohjatiedot!$B$3:$CD$298,62) -> -15533 | D31: =C31 -> -15533 | E31: -15533 | F31: -15533 | G31: -15533 | H31: -15533 | I31: -15533 | J31: -15533 | K31: -15533 | L31: -15533 | M31: -15533
A32: Tilikauden verot | C32: =VLOOKUP($A$4,pohjatiedot!$B$3:$CD$298,63) -> 68562 | D32: =C32 -> 68562 | E32: 68562 | F32: 68562 | G32: 68562 | H32: 68562 | I32: 68562 | J32: 68562 | K32: 68562 | L32: 68562 | M32: 68562
A33: Laskenalliset verot | C33: =VLOOKUP($A$4,pohjatiedot!$B$3:$CD$298,64) -> -43947 | D33: -43947 | E33: -43947 | F33: -43947 | G33: -43947 | H33: -43947 | I33: -43947 | J33: -43947 | K33: -43947 | L33: -43947 | M33: -43947
A34: Vähemmistöosuudet | B34: =VLOOKUP($A$4,pohjatiedot!$B$3:$CD$298,25) -> -26951 | C34: =VLOOKUP($A$4,pohjatiedot!$B$3:$CD$298,65) -> -32889 | D34: -32889 | E34: -32889 | F34: -32889 | G34: -32889 | H34: -32889 | I34: -32889 | J34: -32889 | K34: -32889 | L34: -32889 | M34: -32889
A35: Tilikauden yli-/alijäämä | B35: =VLOOKUP($A$4,pohjatiedot!$B$3:$CD$298,27) -> 668422 | C35: =VLOOKUP($A$4,pohjatiedot!$B$3:$CD$298,66) -> 1519540 | D35: =D30+D31+D32+D33 -> 2048580.802 | E35: =E30+E31+E32+E33 -> 1823942.157 | F35: 1372449.597 | G35: 5014554.183 | H35: 4473803.386 | I35: 3940043.775 | J35: 3412155.577 | K35: 2889086.249 | L35: 2369844.448 | M35: 1853494.484
A36: TASEESTA
A37: Kertynyt yli-/alijäämä | B37: =VLOOKUP($A$4,pohjatiedot!$B$3:$CD$298,29) -> 9192259 | C37: =VLOOKUP($A$4,pohjatiedot!$B$3:$CD$298,68) -> 10805452 | D37: =C37+D35 -> 12854032.8 | E37: 14677974.96 | F37: 16050424.56 | G37: 21064978.74 | H37: 25538782.13 | I37: 29478825.9 | J37: 32890981.48 | K37: 35780067.73 | L37: 38149912.17 | M37: 40003406.66
A38: €/asukas | B38: =1000*B37/B7 -> 1684.080556 | C38: =1000*C37/C7 -> 1973.929149 | D38: 2344.650484 | E38: 2667.141347 | F38: 2905.546978 | G38: 3799.175153 | H38: 4589.283086 | I38: 5278.411654 | J38: 5868.893558 | K38: 6362.872571 | L38: 6784.30884 | M38: 7113.921106
A40: RAHOITUSLASKELMAN JA TASEEN TIETOJA (sisältäen rahoitusjäämän ja sen vajeen kattamisoletukset)
A41: Vuosikate | B41: =B25 -> 4449264 | C41: =C25 -> 5294232 | D41: =D25 -> 5776985.38 | E41: =E25 -> 5679961.41 | F41: 5360094.874 | G41: 9137962.917 | H41: 8737243.067 | I41: 8347916.033 | J41: 7969000.4 | K41: 7599586.331 | L41: 7238829.675 | M41: 6885946.562
A42: Tulorahoituksen korjauserät | C42: =VLOOKUP($A$4,pohjatiedot!$B$3:$CU$298,96) -> -635925 | D42: =C42 -> -635925 | E42: =D42 -> -635925 | F42: =E42 -> -635925 | G42: -635925 | H42: -635925 | I42: -635925 | J42: -635925 | K42: -635925 | L42: -635925 | M42: -635925
A43: Satunnaiset erät, netto | B43: =B28-B29 -> 128426 | C43: =C28-C29 -> 322374 | D43: =D28-D29 -> 322374 | E43: =E28-E29 -> 322374 | F43: 322374 | G43: 322374 | H43: 322374 | I43: 322374 | J43: 322374 | K43: 322374 | L43: 322374 | M43: 322374
A44: = 1. Tulorahoitus, netto | C44: =SUM(C41:C43) -> 4980681 | D44: =SUM(D41:D43) -> 5463434.38 | E44: 5366410.41 | F44: 5046543.874 | G44: 8824411.917 | H44: 8423692.067 | I44: 8034365.033 | J44: 7655449.4 | K44: 7286035.331 | L44: 6925278.675 | M44: 6572395.562
A45: Investointimenot | C45: =VLOOKUP($A$4,pohjatiedot!$B$3:$CV$298,97) -> -7001117 | D45: =C45 -> -7001117 | E45: =D45 -> -7001117 | F45: -7001117 | G45: -7001117 | H45: -7001117 | I45: -7001117 | J45: -7001117 | K45: -7001117 | L45: -7001117 | M45: -7001117
A46: Rahoitusosuudet investointeihin | C46: =VLOOKUP($A$4,pohjatiedot!$B$3:$CV$298,98) -> 173789 | D46: =C46 -> 173789 | E46: =D46 -> 173789 | F46: 173789 | G46: 173789 | H46: 173789 | I46: 173789 | J46: 173789 | K46: 173789 | L46: 173789 | M46: 173789
A47: Inv.hyödykkeiden luovutustulot | C47: =VLOOKUP($A$4,pohjatiedot!$B$3:$CV$298,99) -> 1186717 | D47: =C47 -> 1186717 | E47: =D47 -> 1186717 | F47: 1186717 | G47: 1186717 | H47: 1186717 | I47: 1186717 | J47: 1186717 | K47: 1186717 | L47: 1186717 | M47: 1186717
A48: = 2. Nettoinvestoinnit | B48: =VLOOKUP($A$4,pohjatiedot!$B$3:$CD$298,32) -> -5369920 | C48: =C47+C46+C45 -> -5640611 | D48: =D47+D46+D45 -> -5640611 | E48: =E47+E46+E45 -> -5640611 | F48: -5640611 | G48: -5640611 | H48: -5640611 | I48: -5640611 | J48: -5640611 | K48: -5640611 | L48: -5640611 | M48: -5640611
A49: €/asukas | B49: =1000*B48/B7 -> -983.8036394 | C49: -1030.421168 | D49: -1028.880315 | E49: -1024.957929 | F49: -1021.098239 | G49: -1017.312641 | H49: -1013.609832 | I49: -1009.995002 | J49: -1006.480928 | K49: -1003.086112 | L49: -1003.086112 | M49: -1003.086112
A50: Vuosikate-nettoinv. | B50: =B25+B48 -> -920656 | C50: -346379 | D50: 136374.3796 | E50: 39350.41048 | F50: -280516.1264 | G50: 3497351.917 | H50: 3096632.067 | I50: 2707305.033 | J50: 2328389.4 | K50: 1958975.331 | L50: 1598218.675 | M50: 1245335.562
A51: €/asukas | B51: =1000*B50/B7 -> -168.670059 | C51: -63.27616881 | D51: 24.87548149 | E51: 7.150380561 | F51: -50.78076162 | G51: 630.7650566 | H51: 556.4604099 | I51: 484.7638941 | J51: 415.4655451 | K51: 348.3702293 | L51: 284.2158334 | M51: 221.4616123
A52: = 3. Rahoitusjäämä
A53: (1. Tulorahoitus+ 2.Nettoinv.) | C53: =C44+C48 -> -659930 | D53: =D44+D48 -> -177176.6204 | E53: =E44+E48 -> -274200.5895 | F53: -594067.1264 | G53: 3183800.917 | H53: 2783081.067 | I53: 2393754.033 | J53: 2014838.4 | K53: 1645424.331 | L53: 1284667.675 | M53: 931784.5618
A54: 4. Bruttorahoitustarve
A55: (= Rahoitusjäämä + antolainasaam.
A56: muutokset + lainanlyh.) | D56: =D53-D59-D57 -> -4364955.245 | E56: =E53-E59-E57 -> -4426329.477 | F56: -4721907.094 | G56: -956038.727 | H56: -943598.1037 | I56: -970010.1528 | J56: -1034346.53 | K56: -1135741.593 | L56: -1273388.562 | M56: -1446535.984
A57: Antolainauksen muutokset | C57: =VLOOKUP($A$4,pohjatiedot!$B$3:$CW$298,100) -> -25879 | D57: =C57 -> -25879 | E57: =D57 -> -25879 | F57: -25879 | G57: -25879 | H57: -25879 | I57: -25879 | J57: -25879 | K57: -25879 | L57: -25879 | M57: -25879 | N57: Positiivinen arvo=nettolisäys.
A58: Lainamäärän muutos; | C58: =C61-B61 -> 1019769 | D58: =D60-D59 -> -285197.9041 | E58: =E60-E59 -> -194311.3581 | F58: 95997.41704 | G58: -3305283.79 | H58: -2903319.877 | I58: -2516634.048 | J58: -2144152.053 | K58: -1784877.49 | L58: -1437885.531 | M58: -1102317.16
A59: Lainanlyhennykset | D59: =IF(C61>0,(C61*(1/$H$77)),IF(C61=0,0)) -> 4213657.625 | E59: =IF(D61>0,(D61*(1/$H$77)),IF(D61=0,0)) -> 4178007.887 | F59: 4153718.967 | G59: 4165718.644 | H59: 3752558.171 | I59: 3389643.186 | J59: 3075063.93 | K59: 2807044.923 | L59: 2583935.237 | M59: 2404199.546
A60: Lainanlisäystarve | D60: =-(D56+(C63-D63)) -> 3928459.721 | E60: 3983696.529 | F60: 4249716.384 | G60: 860434.8543 | H60: 849238.2933 | I60: 873009.1375 | J60: 930911.8772 | K60: 1022167.433 | L60: 1146049.706 | M60: 1301882.386
A61: Lainakanta | B61: =VLOOKUP($A$4,pohjatiedot!$B$3:$CD$298,37) -> 32689492 | C61: =VLOOKUP($A$4,pohjatiedot!$B$3:$CD$298,76) -> 33709261 | D61: =C61-D59+D60 -> 33424063.1 | E61: =D61-E59+E60 -> 33229751.74 | F61: 33325749.15 | G61: 30020465.36 | H61: 27117145.49 | I61: 24600511.44 | J61: 22456359.39 | K61: 20671481.9 | L61: 19233596.37 | M61: 18131279.21
A62: €/asukas | B62: =1000*B61/B7 -> 5988.923708 | C62: 6157.974039 | D62: =1000*D61/D7 -> 6096.743873 | E62: 6038.192944 | F62: 6032.832927 | G62: 5414.342332 | H62: 4872.912754 | I62: 4404.91174 | J62: 4006.994532 | K62: 3676.069206 | L62: 3420.365878 | M62: 3224.33764
A63: Rahavarat | B63: =VLOOKUP($A$4,pohjatiedot!$B$3:$CD$298,35) -> 6589264 | C63: =VLOOKUP($A$4,pohjatiedot!$B$3:$CD$298,74) -> 6826757 | D63: =IF(D56>0,(C63+D56),IF(C63+(D56*$H$79)<0,0,IF(C63+(D56*$H$79)>0,C63+(D56*$H$79)))) -> 6390261.475 | E63: 5947628.528 | F63: 5475437.818 | G63: 5379833.946 | H63: 5285474.135 | I63: 5188473.12 | J63: 5085038.467 | K63: 4971464.308 | L63: 4844125.452 | M63: 4699471.853
A64: €/asukas | B64: =1000*B63/B7 -> 1207.195248 | C64: 1247.105132 | D64: 1165.62093 | E64: 1080.746221 | F64: 991.1975693 | G64: 970.2801844 | H64: 949.7922388 | I64: 929.03622 | J64: 907.3474904 | K64: 884.0898269 | L64: 861.4447911 | M64: 835.7206247
A65: Nettovelka (rahat-lainat) | B65: =B63-B61 -> -26100228 | C65: =C63-C61 -> -26882504 | D65: -27033801.62 | E65: -27282123.21 | F65: -27850311.34 | G65: -24640631.42 | H65: -21831671.35 | I65: -19412038.32 | J65: -17371320.92 | K65: -15700017.59 | L65: -14389470.91 | M65: -13431807.35
A66: €/asukas | B66: =1000*B65/B7 -> -4781.728461 | C66: -4910.868907 | D66: -4931.122943 | E66: -4957.446723 | F66: -5041.635357 | G66: -4444.062147 | H66: -3923.120515 | I66: -3475.87552 | J66: -3099.647042 | K66: -2791.979379 | L66: -2558.921087 | M66: -2388.617015
A68: TULOSLASKELMAN ERIEN KASVUPROSENTIT:
A69: Muutos ed. vuodesta, %: | C69: 11/12 | D69: SYÖTÄ HALUAMASI KASVUPROSENTIT! | J69: oletuksena samat arvot kuin v. 2021 > | O69: Syötä muutos-
A70: Toimintatuotot | C70: =((C11/B11)-1)*100 -> 1.768317728 | D70: -3.9 | E70: 0.8 | F70: 1.7 | G70: -20.2 | H70: 2.6 | I70: =H70 -> 2.6 | J70: =I70 -> 2.6 | K70: 2.6 | L70: 2.6 | M70: 2.6 | O70: prosentit
A71: Toimintakulut | C71: =((C12/B12)-1)*100 -> 1.087487115 | D71: -2.5 | E71: 1.1 | F71: 2.1 | G71: -51.5 | H71: 2.6 | I71: 2.6 | J71: 2.6 | K71: 2.6 | L71: 2.6 | M71: 2.6 | O71: Vuosien 2017 - 2021
A72: Kunnallisverot | C72: =((C15/B15)-1)*100 -> 1.974302859 | D72: -0.4 | E72: 2.2 | F72: 3.1 | G72: -53.8 | H72: -3.1 | I72: -3.1 | J72: -3.1 | K72: -3.1 | L72: -3.1 | M72: -3.1 | O72: pohjana KTO:n huhti/2017
A73: Yhteisöverot | C73: =((C16/B16)-1)*100 -> -6.051643671 | D73: 23.3 | E73: 1.7 | F73: 2.8 | G73: -18.2 | H73: -8.5 | I73: -8.5 | J73: -8.5 | K73: -8.5 | L73: -8.5 | M73: -8.5 | O73: arvioluvut koko maan
A74: Kiinteistöverot | C74: =((C17/B17)-1)*100 -> 3.779705342 | D74: 4.9 | E74: 3.4 | F74: 3.2 | G74: 1.3 | H74: 1.1 | I74: 1.1 | J74: 1.1 | K74: 1.1 | L74: 1.1 | M74: 1.1 | O74: kehityksestä
A75: Valtionosuudet (pl. hark.var.) | C75: =((C19/B19)-1)*100 -> 6.435483084 | D75: -0.7 | E75: -2.5 | F75: -3.9 | G75: -70.7 | H75: 3.1 | I75: 3.1 | J75: 3.1 | K75: 3.1 | L75: 3.1 | M75: 3.1 | O75: V. 2017 lopulliset vossit.
A76: TAUSTAMUUTTUJAT:
A77: VALITSE KESKIMÄÄR. LAINANLYHENNYSAIKA (VUODET): | H77: 8 | I77: Esim. lainanlyhennysaika 8 vuotta, jolloin vuosilyhennys = 1/8 eli 12,5 % * lainamäärä
A78: VALITSE KESKIMÄÄR. KORKOKANTA (KORKOPROSENTTI): | H78: 2 | I78: Vaikutus korkomenoihin, ei korkotuloihin
A79: MONTAKO % RAHAVAROISTA KÄYTETÄÄN (4.) BRUTTORAHOITUSTARPEEN KATTAMISEEN ? | H79: 0.1 | I79: Syötä prosenttiosuus, joka käytetään rahavaroista.
B85: =B5 -> TP 2015 | C85: =C5 -> TP 2016 | D85: 2017 | E85: 2018 | F85: 2019 | G85: 2020 | H85: 2021 | I85: 2022 | J85: 2023 | K85: 2024 | L85: 2025 | M85: 2026
A86: Vuosikate | B86: =B26 -> 815.1335804 | C86: =C26 -> 967.1449994 | D86: 1053.755796 | E86: 1032.10831 | F86: 970.3174771 | G86: 1648.077698 | H86: 1570.070242 | I86: 1494.758897 | J86: 1421.946473 | K86: 1351.456341 | L86: 1287.301945 | M86: 1224.547724
A87: Poistot ja arvonalent. | B87: =1000*B27/B7 -> 699.1485483 | C87: =1000*C27/C7 -> 719.0491997 | D87: 740.5422264 | E87: 760.9079878 | F87: 781.8703871 | G87: 803.4573222 | H87: 825.6962658 | I87: 848.6133605 | J87: 872.242661 | K87: 896.6255822 | L87: 924.8094524 | M87: 953.8792336
A88: Nettoinvestoinnit | B88: =-1000*B48/B7 -> 983.8036394 | C88: 1030.421168 | D88: 1028.880315 | E88: 1024.957929 | F88: 1021.098239 | G88: 1017.312641 | H88: 1013.609832 | I88: 1009.995002 | J88: 1006.480928 | K88: 1003.086112 | L88: 1003.086112 | M88: 1003.086112
B115: =B5 -> TP 2015 | C115: =C5 -> TP 2016 | D115: 2017 | E115: 2018 | F115: 2019 | G115: 2020 | H115: 2021 | I115: 2022 | J115: 2023 | K115: 2024 | L115: 2025 | M115: 2026
A116: Rahavarat | B116: =B64 -> 1207.195248 | C116: 1247.105132 | D116: 1165.62093 | E116: 1080.746221 | F116: 991.1975693 | G116: 970.2801844 | H116: 949.7922388 | I116: 929.03622 | J116: 907.3474904 | K116: 884.0898269 | L116: 861.4447911 | M116: 835.7206247
A117: Lainakanta | B117: =B62 -> 5988.923708 | C117: =C62 -> 6157.974039 | D117: 6096.743873 | E117: 6038.192944 | F117: 6032.832927 | G117: 5414.342332 | H117: 4872.912754 | I117: 4404.91174 | J117: 4006.994532 | K117: 3676.069206 | L117: 3420.365878 | M117: 3224.33764
A118: Nettovelka | B118: =B117-B116 -> 4781.728461 | C118: =C117-C116 -> 4910.868907 | D118: 4931.122943 | E118: 4957.446723 | F118: 5041.635357 | G118: 4444.062147 | H118: 3923.120515 | I118: 3475.87552 | J118: 3099.647042 | K118: 2791.979379 | L118: 2558.921087 | M118: 2388.617015

Sheet pohjatiedot
C1: 2015 | D1: 41 | E1: 42 | F1: 43 | G1: 44 | H1: 45 | I1: 46 | J1: 47 | K1: 48 | L1: 49 | M1: 50 | N1: 51 | O1: 52 | P1: 53 | Q1: 54 | R1: 55 | S1: 56 | T1: 57 | U1: 58 | V1: 59 | W1: 60 | X1: 61 | Y1: 62 | Z1: 63 | AA1: 64 | AB1: 65 | AC1: 66 | AD1: 67 | AE1: 68 | AF1: 69 | AG1: 70 | AH1: 71 | AI1: 72 | AJ1: 73 | AK1: 74 | AL1: 75 | AM1: 76 | AN1: 77 | AO1: 2016 | AP1: 41 | AQ1: 42 | AR1: 43 | AS1: 44 | AT1: 45 | AU1: 46 | AV1: 47 | AW1: 48 | AX1: 49 | AY1: 50 | AZ1: 51 | BA1: 52 | BB1: 53 | BC1: 54 | BD1: 55 | BE1: 56 | BF1: 57 | BG1: 58 | BH1: 59 | BI1: 60 | BJ1: 61 | BK1: 62 | BL1: 63 | BM1: 64 | BN1: 65 | BO1: 65 | BP1: 66 | BQ1: 68 | BR1: 68 | BS1: 69 | BT1: 70 | BU1: 71 | BV1: 72 | BW1: 73 | BX1: 74 | BY1: 76 | CA1: 77 | CB1: 78 | CC1: vero-% | CD1: vero-% | CE1: 12.47 | CH1: 2016 | CI1: 2016 | CJ1: 2010 | CK1: 85 | CL1: 2017 | CM1: 2018 | CN1: 89 | CO1: 90 | CP1: 91 | CQ1: 92 | CR1: 2013 | CS1: 2016, rivi 96 | CT1: 2016 | CU1: 90 | CV1: 91 | CW1: 2015
A2: Kunta nro. | B2: Kunta | C2: Asukasluku | D2: Veroprosentti | E2: vero-% yksikön tuotto | F2: -> noston vaikutus | G2: Toimintatuotot | H2: Toimintakulut | I2: Osuus osakkuusyhteisöjen voitoista/tappioista | J2: Kunnallisverot | K2: Yhteisöverot | L2: Kiinteistöverot | M2: Verotulot | N2: Valtionavut | O2: Korkotuotot | P2: Korkokulut | Q2: Muut rahoitustuotot | R2: Muut rahoituskulut | S2: VUOSIKATE | T2: €/as | U2: Poistot ja arvonalent. | V2: Satunnaiset erät | X2: Tlikauden tulos | Y2: Tilinpäätössiirrot | Z2: Vähemmintösiirrot | AB2: Tlikauden yli-/alijäämä | AC2: €/as | AD2: Kertynyt yli-/alijäämä | AE2: €/as | AG2: Nettoinv. | AH2: Vuosikate-nettoinv. | AI2: €/as | AJ2: Rahavarat (ent. kassavarat) | AK2: €/as | AL2: Lainakanta | AM2: €/as | AN2: Saamiset | AO2: Asukasluku | AP2: Veroprosentti | AQ2: vero-% yksikön tuotto | AR2: -> noston vaikutus | AS2: Toimintatuotot | AT2: Toimintakulut | AU2: Osuus osakkuusyhteisöjen voitoista/tappioista | AV2: Kunnallisverot | AW2: Yhteisöverot | AX2: Kiinteistöverot | AY2: Verotulot | AZ2: Valtionavut | BA2: Korkotuotot | BB2: Korkokulut | BC2: Muut rahoitustuotot | BD2: Muut rahoituskulut | BE2: VUOSIKATE | BF2: €/as | BG2: Poistot ja arvonalent. | BH2: Satunnaiset erät | BJ2: Tlikauden tulos | BK2: Tilinpäätössiirrot | BL2: Tilikauden verot | BM2: Lask. verot | BN2: Vähemmistöosuudet | BO2: Tlikauden yli-/alijäämä | BP2: €/as | BQ2: Kertynyt yli-/alijäämä | BR2: €/as | BT2: Nettoinv. | BU2: Vuosikate-nettoinv. | BV2: €/as | BW2: Rahavarat | BX2: €/as | BY2: Lainakanta | BZ2: €/as | CA2: Saamiset | CD2: 2017 | CE2: 2020 | CH2: vos-hava | CI2: hava | CJ2: vos-hava | CK2: Harkvar10 | CL2: Valtionosuudet | CM2: Valtionosuudet | CQ2: vos-hava 2015 | CR2: Kotikuntakorv+elatustuen palautus, netto | CS2: Tulorah.korjauserät | CT2: Investointimenot | CU2: Rahoitusos. inv.menoihin | CV2: Inv.hyödyk. luovutustulot | CW2: antolainauksen muutokset
A3: 20 | B3: Akaa | C3: 17043 | D3: 21.25 | G3: 57367 | H3: 144558 | I3: 0 | J3: 54123 | K3: 1775 | L3: 3194 | M3: 59092 | N3: 32589 | O3: 385 | P3: 814 | Q3: 287 | R3: 387 | S3: 3961 | U3: 6334 | V3: 0 | X3: -2373 | Y3: -24 | Z3: -30 | AB3: -2427 | AD3: -8757 | AG3: -10059 | AJ3: 5118 | AL3: 70056 | AO3: 16923 | AP3: 21.25 | AS3: 57740 | AT3: 143891 | AU3: 22 | AV3: 55165 | AW3: 1606 | AX3: 3377 | AY3: 60148 | AZ3: 34067 | BA3: 374 | BB3: 691 | BC3: 287 | BD3: 155 | BE3: 7901 | BG3: 7116 | BH3: 98 | BJ3: 883 | BK3: 9 | BL3: 73 | BM3: -46 | BN3: -84 | BO3: 689 | BQ3: -7699 | BW3: 9534 | BY3: 70428 | CD3: 21.25 | CE3: =CD3-$CE$1 -> 8.78 | CJ3: 27814 | CK3: 0 | CL3: 30572.89696 | CM3: 29351.9121 | CO3: =CM3-CN3 -> 29351.9121 | CQ3: =N3-CP3 -> 32589 | CR3: -322.9622294 | CS3: -165 | CT3: -6421 | CU3: 394 | CV3: 473 | CW3: -63
A4: 5 | B4: Alajärvi | C4: 10006 | D4: 21.5 | G4: 66627 | H4: 124182 | I4: 91 | J4: 24150 | K4: 2048 | L4: 2256 | M4: 28454 | N4: 36816 | O4: 27 | P4: 527 | Q4: 157 | R4: 43 | S4: 7420 | U4: 4849 | V4: -38 | X4: 2533 | Y4: -94 | Z4: -130 | AB4: 2309 | AD4: -783 | AG4: -3719 | AJ4: 10662 | AL4: 41488 | AO4: 9899 | AP4: 22 | AS4: 66345 | AT4: 123039 | AU4: 77 | AV4: 25084 | AW4: 2039 | AX4: 2313 | AY4: 29436 | AZ4: 39395 | BA4: 21 | BB4: 498 | BC4: 185 | BD4: 128 | BE4: 11794 | BG4: 4798 | BH4: 0 | BJ4: 6996 | BK4: 83 | BL4: 68 | BM4: -9 | BN4: -65 | BO4: 6937 | BQ4: 5760 | BW4: 9170 | BY4: 38620 | CD4: 21.75 | CE4: =CD4-$CE$1 -> 9.28 | CJ4: 30121 | CK4: 0 | CL4: 35696.98493 | CM4: 34318.3753 | CO4: =CM4-CN4 -> 34318.3753 | CQ4: =N4-CP4 -> 36816 | CR4: 4798.415523 | CS4: -145 | CT4: -11502 | CU4: 134 | CV4: 2039 | CW4: 22
A5: 9 | B5: Alavieska | C5: 2687 | D5: 21.5 | G5: 16292 | H5: 31617 | I5: 3 | J5: 7099 | K5: 285 | L5: 408 | M5: 7792 | N5: 9346 | O5: 1 | P5: 78 | Q5: 24 | R5: 15 | S5: 1746 | U5: 1149 | V5: 0 | X5: 597 | Y5: 0 | Z5: 0 | AB5: 597 | AD5: -508 | AG5: -931 | AJ5: 478 | AL5: 13050 | AO5: 2639 | AP5: 21.5 | AS5: 16234 | AT5: 32053 | AU5: 0 | AV5: 6892 | AW5: 271 | AX5: 522 | AY5: 7685 | AZ5: 9849 | BA5: 1 | BB5: 51 | BC5: 24 | BD5: 18 | BE5: 1669 | BG5: 1054 | BH5: 681 | BJ5: 1296 | BK5: 0 | BL5: -1 | BM5: -1 | BN5: -1 | BO5: 1295 | BQ5: 329 | BW5: 1978 | BY5: 10838 | CD5: 21.5 | CE5: 9.03 | CJ5: 7636 | CK5: 0 | CL5: 8918.402121 | CM5: 8666.778881 | CO5: 8666.778881 | CQ5: =N5-CP5 -> 9346 | CR5: -54.9151722 | CS5: 3 | CT5: -815 | CU5: 9 | CV5: 281 | CW5: 16
A6: 10 | B6: Alavus | C6: 12044 | D6: 20.75 | G6: 51581 | H6: 118452 | I6: 30 | J6: 29182 | K6: 2245 | L6: 2588 | M6: 34015 | N6: 37398 | O6: 100 | P6: 711 | Q6: 863 | R6: -57 | S6: 4880 | U6: 6038 | V6: 0 | X6: -1158 | Y6: -26 | Z6: -29 | AB6: -1213 | AD6: 9493 | AG6: -13067 | AJ6: 15434 | AL6: 60717 | AO6: 11907 | AP6: 21.25 | AS6: 64883 | AT6: 130531 | AU6: 541 | AV6: 29668 | AW6: 2203 | AX6: 2611 | AY6: 34482 | AZ6: 38870 | BA6: 20 | BB6: 469 | BC6: 939 | BD6: -10 | BE6: 8639 | BG6: 6022 | BH6: 0 | BJ6: 2617 | BK6: -12 | BL6: 6 | BM6: -50 | BN6: -34 | BO6: 2515 | BQ6: 12545 | BW6: 15871 | BY6: 69825 | CD6: 21.25 | CE6: 8.78 | CJ6: 24410 | CK6: 0 | CL6: 38667.8284 | CM6: 37624.46359 | CO6: 37624.46359 | CQ6: 37398 | CR6: -117.7874408 | CS6: -262 | CT6: -12793 | CU6: 546 | CV6: 1981 | CW6: -418
A7: 16 | B7: Asikkala | C7: 8287 | D7: 20.75 | G7: 30917 | H7: 71353 | I7: -14 | J7: 25339 | K7: 1538 | L7: 2501 | M7: 29378 | N7: 16868 | O7: 8 | P7: 314 | Q7: 48 | R7: 187 | S7: 5351 | U7: 3865 | V7: -30 | X7: 1456 | Y7: -22 | Z7: 0 | AB7: 1434 | AD7: 4148 | AG7: -3657 | AJ7: 4094 | AL7: 31761 | AO7: 8323 | AP7: 20.75 | AS7: 31656 | AT7: 71447 | AU7: 4 | AV7: 25836 | AW7: 1430 | AX7: 2659 | AY7: 29925 | AZ7: 17906 | BA7: 8 | BB7: 184 | BC7: 238 | BD7: 409 | BE7: 7698 | BG7: 4014 | BH7: -6 | BJ7: 3678 | BK7: -1 | BL7: 0 | BM7: -81 | BN7: 0 | BO7: 3596 | BQ7: 7509 | BW7: 3141 | BY7: 28449 | CD7: 20.75 | CE7: 8.28 | CJ7: 15106 | CK7: 0 | CL7: 17874.50869 | CM7: 17540.25155 | CO7: 17540.25155 | CQ7: 16868 | CR7: 405.3013662 | CS7: -97 | CT7: -4015 | CU7: 231 | CV7: 392 | CW7: -85
A8: 18 | B8: Askola | C8: 5104 | D8: 20.25 | G8: 14479 | H8: 38746 | I8: -1 | J8: 16391 | K8: 987 | L8: 1052 | M8: 18430 | N8: 6844 | O8: 3 | P8: 202 | Q8: 297 | R8: 50 | S8: 1054 | U8: 1780 | V8: 0 | X8: -726 | Y8: 89 | Z8: 0 | AB8: -637 | AD8: -2084 | AG8: -3010 | AJ8: 2033 | AL8: 21513 | AO8: 5046 | AP8: 20.25 | AS8: 14258 | AT8: 39091 | AU8: 0 | AV8: 17262 | AW8: 868 | AX8: 1044 | AY8: 19174 | AZ8: 7136 | BA8: 0 | BB8: 192 | BC8: 265 | BD8: 49 | BE8: 1501 | BG8: 1892 | BH8: 0 | BJ8: -391 | BK8: 93 | BL8: 0 | BM8: 0 | BN8: 0 | BO8: -298 | BQ8: -2045 | BW8: 1720 | BY8: 21697 | CD8: 20.75 | CE8: 8.28 | CJ8: 5973 | CK8: 0 | CL8: 7397.785898 | CM8: 7458.108076 | CO8: 7458.108076 | CQ8: 6844 | CR8: 582.8977802 | CS8: -153 | CT8: -2567 | CU8: 2 | CV8: 281 | CW8: 0
A9: 19 | B9: Aura | C9: 3986 | D9: 21 | G9: 12423 | H9: 30335 | I9: 1 | J9: 12633 | K9: 506 | L9: 736 | M9: 13875 | N9: 5377 | O9: 3 | P9: 127 | Q9: 25 | R9: 9 | S9: 1233 | U9: 1289 | V9: 0 | X9: -56 | Y9: 0 | Z9: -35 | AB9: -91 | AD9: -1894 | AG9: -1788 | AJ9: 1215 | AL9: 21599 | AO9: 3984 | AP9: 21.75 | AS9: 12522 | AT9: 30312 | AU9: 0 | AV9: 13272 | AW9: 758 | AX9: 410 | AY9: 14440 | AZ9: 6032 | BA9: 2 | BB9: 68 | BC9: 15 | BD9: 3 | BE9: 2628 | BG9: 1259 | BH9: 0 | BJ9: 1369 | BK9: 0 | BL9: 0 | BM9: 0 | BN9: -49 | BO9: 1320 | BQ9: -543 | BW9: 1194 | BY9: 16296 | CD9: 21.75 | CE9: 9.28 | CJ9: 4924 | CK9: 0 | CL9: 5986.134499 | CM9: 5584.246592 | CO9: 5584.246592 | CQ9: 5377 | CR9: -121.3737377 | CS9: -7 | CT9: -958 | CU9: 3 | CV9: 48 | CW9: 0
A10: 46 | B10: Enonkoski | C10: 1473 | D10: 21 | G10: 9643 | H10: 18560 | I10: 0 | J10: 3801 | K10: 606 | L10: 418 | M10: 4825 | N10: 5096 | O10: 11 | P10: 34 | Q10: 229 | R10: 6 | S10: 1204 | U10: 802 | V10: -65 | X10: 337 | Y10: 0 | Z10: 0 | AB10: 337 | AD10: 5610 | AG10: -535 | AJ10: 3223 | AL10: 1471 | AO10: 1453 | AP10: 21 | AS10: 9399 | AT10: 17959 | AU10: 0 | AV10: 3570 | AW10: 550 | AX10: 424 | AY10: 4544 | AZ10: 5227 | BA10: 11 | BB10: 24 | BC10: 214 | BD10: 2 | BE10: 1410 | BG10: 780 | BH10: -65 | BJ10: 565 | BK10: -79 | BL10: 0 | BM10: 9 | BN10: 0 | BO10: 495 | BQ10: 6061 | BW10: 3334 | BY10: 1164 | CD10: 21 | CE10: 8.53 | CJ10: 4469 | CK10: 0 | CL10: 5272.493069 | CM10: 5110.453918 | CO10: 5110.453918 | CQ10: 5096 | CR10: 128.259926 | CS10: -1 | CT10: -787 | CU10: 73 | CV10: 68 | CW10: 82
A11: 47 | B11: Enontekiö | C11: 1861 | D11: 20.75 | G11: 3569 | H11: 17395 | I11: 6 | J11: 4863 | K11: 338 | L11: 822 | M11: 6023 | N11: 8833 | O11: 13 | P11: 217 | Q11: 655 | R11: 226 | S11: 1261 | U11: 1198 | V11: 5 | X11: 68 | Y11: -74 | Z11: -4 | AB11: -10 | AD11: -107 | AG11: -2116 | AJ11: 3417 | AL11: 12005 | AO11: 1872 | AP11: 21.25 | AS11: 2936 | AT11: 16836 | AU11: -4 | AV11: 5003 | AW11: 326 | AX11: 822 | AY11: 6151 | AZ11: 8935 | BA11: 104 | BB11: 186 | BC11: 545 | BD11: 279 | BE11: 1366 | BG11: 1108 | BH11: 0 | BJ11: 258 | BK11: 0 | BL11: 0 | BM11: 2 | BN11: -1 | BO11: 259 | BQ11: 576 | BW11: 2879 | BY11: 11675 | CD11: 21.25 | CE11: 8.78 | CJ11: 7672 | CK11: 0 | CL11: 8847.677803 | CM11: 8708.023092 | CO11: 8708.023092 | CQ11: 8833 | CR11: -10.0864602 | CS11: 0 | CT11: -3331 | CU11: 1021 | CV11: 80 | CW11: 0
A12: 49 | B12: Espoo | C12: 269802 | D12: 18 | G12: 954496 | H12: 2193314 | I12: 692 | J12: 1161281 | K12: 136157 | L12: 96364 | M12: 1393802 | N12: 84376 | O12: 12923 | P12: 40269 | Q12: 49200 | R12: 15679 | S12: 246227 | U12: 220614 | V12: 0 | X12: 25613 | Y12: 39148 | Z12: -42 | AB12: 64719 | AD12: 558885 | AG12: -691927 | AJ12: 893963 | AL12: 2698010 | AO12: 274583 | AP12: 18 | AS12: 982749 | AT12: 2234818 | AU12: -2334 | AV12: 1226153 | AW12: 120589 | AX12: 99740 | AY12: 1446482 | AZ12: 116040 | BA12: 12945 | BB12: 43692 | BC12: 25100 | BD12: 4973 | BE12: 297500 | BG12: 237379 | BH12: 13541 | BJ12: 73662 | BK12: 60 | BL12: 1649 | BM12: 10 | BN12: 29 | BO12: 72112 | BQ12: 629653 | BW12: 1033578 | BY12: 3186678 | CD12: 18 | CE12: 5.53 | CJ12: 24390 | CK12: 0 | CL12: 35423.51401 | CM12: 29148.6603 | CO12: 29148.6603 | CQ12: 84376 | CR12: -12421.98878 | CS12: -37572 | CT12: -726495 | CU12: 30414 | CV12: 63963 | CW12: 1491
A13: 50 | B13: Eura | C13: 12128 | D13: 20.5 | G13: 36066 | H13: 102621 | I13: -44 | J13: 40489 | K13: 2540 | L13: 2262 | M13: 45291 | N13: 26854 | O13: 3 | P13: 787 | Q13: 1227 | R13: 24 | S13: 5965 | U13: 5645 | V13: 0 | X13: 320 | Y13: -102 | Z13: -125 | AB13: 93 | AD13: 3737 | AG13: -8996 | AJ13: 5908 | AL13: 53290 | AO13: 12004 | AP13: 20.5 | AS13: 35238 | AT13: 100185 | AU13: 0 | AV13: 38341 | AW13: 2183 | AX13: 3129 | AY13: 43653 | AZ13: 27037 | BA13: 7 | BB13: 710 | BC13: 1222 | BD13: 14 | BE13: 6248 | BG13: 5435 | BH13: 0 | BJ13: 813 | BK13: 0 | BL13: 1 | BM13: -127 | BN13: -43 | BO13: 642 | BQ13: 4004 | BW13: 5971 | BY13: 54035 | CD13: 20.5 | CE13: 8.03 | CJ13: 22268 | CK13: 0 | CL13: 23934.03429 | CM13: 22959.41518 | CO13: 22959.41518 | CQ13: 26854 | CR13: 68.71245356 | CS13: -149 | CT13: -6501 | CU13: 87 | CV13: -13 | CW13: 315
A14: 51 | B14: Eurajoki | C14: 5938 | D14: 18 | G14: 23606 | H14: 58773 | I14: -2 | J14: 16365 | K14: 2179 | L14: 16002 | M14: 34546 | N14: 8207 | O14: 189 | P14: 65 | Q14: 2789 | R14: 1707 | S14: 8786 | U14: 3763 | V14: -2 | X14: 5021 | Y14: 0 | Z14: -2 | AB14: 5019 | AD14: 68463 | AG14: -10730 | AJ14: 22655 | AL14: 5640 | AO14: 9418 | AP14: 18 | AS14: 21029 | AT14: 59307 | AU14: -6 | AV14: 18489 | AW14: 1426 | AX14: 18126 | AY14: 38041 | AZ14: 8609 | BA14: 110 | BB14: 39 | BC14: 1129 | BD14: 398 | BE14: 9163 | BG14: 4275 | BH14: 3 | BJ14: 4891 | BK14: 0 | BL14: 1 | BM14: -6 | BN14: 2 | BO14: 4886 | BQ14: 73485 | BW14: 24633 | BY14: 3694 | CD14: 18 | CE14: 5.53 | CJ14: 5750 | CK14: 0 | CL14: 13206.54984 | CM14: 11167.54928 | CO14: 11167.54928 | CQ14: 8207 | CR14: -34.22796685 | CS14: -29 | CT14: -8307 | CU14: 16 | CV14: 273 | CW14: 16
A15: 52 | B15: Evijärvi | C15: 2576 | D15: 21.5 | G15: 7223 | H15: 23615 | I15: 7 | J15: 7048 | K15: 1099 | L15: 730 | M15: 8877 | N15: 8406 | O15: 60 | P15: 47 | Q15: 48 | R15: 11 | S15: 948 | U15: 798 | V15: 0 | X15: 150 | Y15: -32 | Z15: -6 | AB15: 112 | AD15: 3263 | AG15: -925 | AJ15: 6910 | AL15: 5899 | AO15: 2535 | AP15: 21.5 | AS15: 7088 | AT15: 23575 | AU15: 4 | AV15: 6961 | AW15: 933 | AX15: 721 | AY15: 8615 | AZ15: 8566 | BA15: 197 | BB15: 26 | BC15: 58 | BD15: 23 | BE15: 904 | BG15: 834 | BH15: 0 | BJ15: 70 | BK15: -30 | BL15: 6 | BM15: -2 | BN15: -7 | BO15: 25 | BQ15: 3286 | BW15: 6655 | BY15: 6210 | CD15: 21.5 | CE15: 9.03 | CJ15: 7542 | CK15: 0 | CL15: 8103.289926 | CM15: 8180.397992 | CO15: 8180.397992 | CQ15: 8406 | CR15: 57.281132 | CS15: 0 | CT15: -1216 | CU15: 9 | CV15: 10 | CW15: 15
A16: 61 | B16: Forssa | C16: 17422 | D16: 20 | G16: 73086 | H16: 166775 | I16: 117 | J16: 51849 | K16: 3453 | L16: 4376 | M16: 59678 | N16: 45264 | O16: 92 | P16: 921 | Q16: 133 | R16: 14 | S16: 10660 | U16: 9067 | V16: 0 | X16: 1593 | Y16: -119 | Z16: 66 | AB16: 1540 | AD16: 20111 | AG16: -10741 | AJ16: 17881 | AL16: 64164 | AO16: 17332 | AP16: 20 | AS16: 73748 | AT16: 166829 | AU16: 56 | AV16: 51886 | AW16: 3143 | AX16: 5379 | AY16: 60408 | AZ16: 47018 | BA16: 51 | BB16: 673 | BC16: 199 | BD16: 45 | BE16: 13933 | BG16: 8501 | BH16: 0 | BJ16: 5432 | BK16: 171 | BL16: 7 | BM16: -47 | BN16: 94 | BO16: 5643 | BQ16: 24755 | BW16: 19683 | BY16: 60008 | CD16: 20.5 | CE16: 8.03 | CJ16: 30500 | CK16: 0 | CL16: 40176.39468 | CM16: 39480.90066 | CO16: 39480.90066 | CQ16: 45264 | CR16: 221.4413849 | CS16: -1668 | CT16: -16789 | CU16: 51 | CV16: 159 | CW16: 31
A17: 69 | B17: Haapajärvi | C17: 7438 | D17: 22 | G17: 44549 | H17: 86667 | I17: 15 | J17: 20055 | K17: 1353 | L17: 1843 | M17: 23251 | N17: 23465 | O17: 26 | P17: 607 | Q17: 2104 | R17: 166 | S17: 5870 | U17: 3524 | V17: 0 | X17: 2346 | Y17: 29 | Z17: -167 | AB17: 2208 | AD17: 5800 | AG17: -3465 | AJ17: 20715 | AL17: 38778 | AO17: 7332 | AP17: 22 | AS17: 40616 | AT17: 87803 | AU17: 19 | AV17: 19865 | AW17: 1382 | AX17: 1889 | AY17: 23136 | AZ17: 27083 | BA17: 15 | BB17: 516 | BC17: 1264 | BD17: 186 | BE17: 3529 | BG17: 3603 | BH17: -259 | BJ17: -333 | BK17: -2 | BL17: 89 | BM17: 19 | BN17: -53 | BO17: -458 | BQ17: 4756 | BW17: 20007 | BY17: 42099 | CD17: 22 | CE17: 9.53 | CJ17: 21546 | CK17: 0 | CL17: 23664.46017 | CM17: 23000.31085 | CO17: 23000.31085 | CQ17: 23465 | CR17: 66.4959228 | CS17: 119 | CT17: -6533 | CU17: 489 | CV17: 86 | CW17: 67
A18: 71 | B18: Haapavesi | C18: 7167 | D18: 21.25 | G18: 51216 | H18: 91724 | I18: 12 | J18: 18583 | K18: 1218 | L18: 1399 | M18: 21200 | N18: 22107 | O18: 68 | P18: 433 | Q18: 687 | R18: 124 | S18: 3009 | U18: 4062 | V18: -19 | X18: -1072 | Y18: -4 | Z18: 2 | AB18: -1074 | AD18: 320 | AG18: -4743 | AJ18: 11503 | AL18: 45288 | AO18: 7098 | AP18: 22 | AS18: 52007 | AT18: 93366 | AU18: 1 | AV18: 18139 | AW18: 1146 | AX18: 1521 | AY18: 20806 | AZ18: 22953 | BA18: 57 | BB18: 327 | BC18: 374 | BD18: 194 | BE18: 2310 | BG18: 3844 | BH18: 0 | BJ18: -1534 | BK18: -4 | BL18: 0 | BM18: -40 | BN18: -1 | BO18: -1579 | BQ18: -1575 | BW18: 11738 | BY18: 48554 | CD18: 22 | CE18: 9.53 | CJ18: 19865 | CK18: 0 | CL18: 24033.38526 | CM18: 23689.69425 | CO18: 23689.69425 | CQ18: 22107 | CR18: 12.2033716 | CS18: 92 | CT18: -6169 | CU18: 1991 | CV18: 41 | CW18: -10
A19: 72 | B19: Hailuoto | C19: 993 | D19: 20 | G19: 4724 | H19: 11068 | I19: 3 | J19: 3048 | K19: 94 | L19: 291 | M19: 3433 | N19: 3703 | O19: 4 | P19: 13 | Q19: 60 | R19: 4 | S19: 841 | U19: 686 | V19: 0 | X19: 155 | Y19: 2 | Z19: 0 | AB19: 157 | AD19: 6657 | AG19: -606 | AJ19: 3407 | AL19: 2827 | AO19: 994 | AP19: 20 | AS19: 4977 | AT19: 11338 | AU19: 0 | AV19: 2916 | AW19: 93 | AX19: 326 | AY19: 3335 | AZ19: 3647 | BA19: 14 | BB19: 23 | BC19: 3 | BD19: 1 | BE19: 615 | BG19: 685 | BH19: 0 | BJ19: -70 | BK19: -1 | BL19: 0 | BM19: -1 | BN19: -1 | BO19: -73 | BQ19: 6621 | BW19: 2661 | BY19: 3392 | CD19: 20 | CE19: 7.53 | CJ19: 3147 | CK19: 0 | CL19: 3476.386846 | CM19: 3281.98339 | CO19: 3281.98339 | CQ19: 3703 | CR19: 0 | CS19: -30 | CT19: -1437 | CU19: 250 | CV19: 68 | CW19: -1
A20: 74 | B20: Halsua | C20: 1225 | D20: 21.5 | G20: 5561 | H20: 13200 | I20: 18 | J20: 3114 | K20: 428 | L20: 295 | M20: 3837 | N20: 4417 | O20: 22 | P20: 190 | Q20: 23 | R20: 0 | S20: 489 | U20: 613 | V20: -14 | X20: -138 | Y20: -94 | Z20: 0 | AB20: -232 | AD20: 2237 | AG20: -6638 | AJ20: 1743 | AL20: 13630 | AO20: 1219 | AP20: 21.5 | AS20: 5581 | AT20: 13051 | AU20: 34 | AV20: 2891 | AW20: 315 | AX20: 443 | AY20: 3649 | AZ20: 4633 | BA20: 10 | BB20: 153 | BC20: 25 | BD20: 1 | BE20: 727 | BG20: 774 | BH20: -4 | BJ20: -51 | BK20: 1 | BL20: 3 | BM20: 2 | BN20: -3 | BO20: -54 | BQ20: 2337 | BW20: 1426 | BY20: 13613 | CD20: 22 | CE20: 9.53 | CJ20: 3768 | CK20: 0 | CL20: 4156.047257 | CM20: 4173.228389 | CO20: 4173.228389 | CQ20: 4417 | CR20: 22.414356 | CS20: -28 | CT20: -590 | CU20: 0 | CV20: 41 | CW20: -10
A21: 75 | B21: Hamina | C21: 20851 | D21: 21 | G21: 87899 | H21: 193973 | I21: -76 | J21: 72430 | K21: 4856 | L21: 5768 | M21: 83054 | N21: 42103 | O21: 45 | P21: 2705 | Q21: 1185 | R21: 91 | S21: 17198 | U21: 16241 | V21: 275 | X21: 1232 | Y21: 83 | Z21: 22 | AB21: 1337 | AD21: 6473 | AG21: -11692 | AJ21: 14137 | AL21: 152096 | AO21: 20636 | AP21: 21 | AS21: 89621 | AT21: 196366 | AU21: 1083 | AV21: 71144 | AW21: 4307 | AX21: 6752 | AY21: 82203 | AZ21: 44992 | BA21: 54 | BB21: 2397 | BC21: 1284 | BD21: 70 | BE21: 20141 | BG21: 16440 | BH21: 0 | BJ21: 3701 | BK21: 0 | BL21: 0 | BM21: -206 | BN21: 53 | BO21: 3548 | BQ21: 10712 | BW21: 18695 | BY21: 148165 | CD21: 21 | CE21: 8.53 | CJ21: 29389 | CK21: 0 | CL21: 37429.58901 | CM21: 36034.99443 | CO21: 36034.99443 | CQ21: 42103 | CR21: -76.50766848 | CS21: -83 | CT21: -15716 | CU21: 72 | CV21: 3850 | CW21: -257
A22: 77 | B22: Hankasalmi | C22: 5240 | D22: 22 | G22: 18510 | H22: 50287 | I22: 6 | J22: 13209 | K22: 790 | L22: 1330 | M22: 15329 | N22: 19985 | O22: 52 | P22: 185 | Q22: 152 | R22: 55 | S22: 3445 | U22: 2490 | V22: 0 | X22: 955 | Y22: -82 | Z22: -10 | AB22: 863 | AD22: -2394 | AG22: -3863 | AJ22: 1611 | AL22: 14775 | AO22: 5159 | AP22: 22 | AS22: 17234 | AT22: 49802 | AU22: 0 | AV22: 13534 | AW22: 1333 | AX22: 708 | AY22: 15575 | AZ22: 21318 | BA22: 48 | BB22: 135 | BC22: 93 | BD22: 56 | BE22: 4214 | BG22: 2483 | BH22: 0 | BJ22: 1731 | BK22: 191 | BL22: 0 | BM22: -64 | BN22: -5 | BO22: 1853 | BQ22: -691 | BW22: 4669 | BY22: 17283 | CD22: 22 | CE22: 9.53 | CJ22: 15657 | CK22: 0 | CL22: 19126.63806 | CM22: 18504.83797 | CO22: 18504.83797 | CQ22: 19985 | CR22: 113.7404043 | CS22: -21 | CT22: -4476 | CU22: 120 | CV22: 75 | CW22: -81
A23: 78 | B23: Hanko | C23: 8864 | D23: 21.75 | G23: 49155 | H23: 92254 | I23: -3 | J23: 34508 | K23: 2842 | L23: 2720 | M23: 40070 | N23: 12103 | O23: 15 | P23: 1205 | Q23: 152 | R23: 110 | S23: 7923 | U23: 7713 | V23: 326 | X23: 536 | Y23: -1 | Z23: 1 | AB23: 536 | AD23: -12607 | AG23: -3511 | AJ23: 10249 | AL23: 74741 | AO23: 8663 | AP23: 21.75 | AS23: 50050 | AT23: 91181 | AU23: -1 | AV23: 33908 | AW23: 2163 | AX23: 2721 | AY23: 38792 | AZ23: 12897 | BA23: 33 | BB23: 1261 | BC23: 166 | BD23: 105 | BE23: 9390 | BG23: 5414 | BH23: 0 | BJ23: 3976 | BK23: 1 | BL23: 504 | BM23: -15 | BN23: -1 | BO23: 3457 | BQ23: -7948 | BW23: 9012 | BY23: 74732 | CD23: 21.75 | CE23: 9.28 | CJ23: 10458 | CK23: 1100 | CL23: 12659.05069 | CM23: 12008.54227 | CO23: 12008.54227 | CQ23: 12103 | CR23: -55.6000553 | CS23: -453 | CT23: -7859 | CU23: 5 | CV23: 896 | CW23: -309
A24: 79 | B24: Harjavalta | C24: 7296 | D24: 19.75 | G24: 26709 | H24: 69358 | I24: -73 | J24: 23439 | K24: 5237 | L24: 1801 | M24: 30477 | N24: 14840 | O24: 2 | P24: 249 | Q24: 44 | R24: 23 | S24: 2368 | U24: 3147 | V24: 14 | X24: -765 | Y24: -37 | Z24: -23 | AB24: -825 | AD24: 9953 | AG24: -6431 | AJ24: 2999 | AL24: 20566 | AO24: 7240 | AP24: 19.75 | AS24: 26885 | AT24: 70411 | AU24: -1 | AV24: 23502 | AW24: 5099 | AX24: 1803 | AY24: 30404 | AZ24: 14193 | BA24: 6 | BB24: 227 | BC24: 38 | BD24: 13 | BE24: 875 | BG24: 3220 | BH24: 0 | BJ24: -2345 | BK24: 0 | BL24: 8 | BM24: -33 | BN24: 7 | BO24: -2379 | BQ24: 7575 | BW24: 4618 | BY24: 23367 | CD24: 20.75 | CE24: 8.28 | CJ24: 9343 | CK24: 0 | CL24: 11773.93946 | CM24: 10945.56763 | CO24: 10945.56763 | CQ24: 14840 | CR24: -85.15836465 | CS24: -222 | CT24: -2643 | CU24: 20 | CV24: 331 | CW24: -1
A25: 81 | B25: Hartola | C25: 2982 | D25: 21.5 | G25: 14037 | H25: 30125 | I25: 0 | J25: 7596 | K25: 1285 | L25: 1338 | M25: 10219 | N25: 8789 | O25: 13 | P25: 395 | Q25: 36 | R25: 11 | S25: 2563 | U25: 1634 | V25: 0 | X25: 929 | Y25: -5 | Z25: -37 | AB25: 887 | AD25: 147 | AG25: -3362 | AJ25: 2912 | AL25: 32378 | AO25: 2924 | AP25: 21.5 | AS25: 14141 | AT25: 29815 | AU25: 0 | AV25: 7157 | AW25: 1232 | AX25: 1352 | AY25: 9741 | AZ25: 9062 | BA25: 14 | BB25: 353 | BC25: 28 | BD25: 6 | BE25: 2812 | BG25: 1738 | BH25: -566 | BJ25: 508 | BK25: 34 | BL25: 0 | BM25: 0 | BN25: -36 | BO25: 506 | BQ25: 1178 | BW25: 1805 | BY25: 32865 | CD25: 21.5 | CE25: 9.03 | CJ25: 8065 | CK25: 450 | CL25: 9145.559993 | CM25: 8808.939876 | CO25: 8808.939876 | CQ25: 8789 | CR25: 65.997826 | CS25: -84 | CT25: -3834 | CU25: 961 | CV25: 209 | CW25: 191
A26: 82 | B26: Hattula | C26: 9747 | D26: 20 | G26: 22081 | H26: 66540 | I26: 18 | J26: 33308 | K26: 1326 | L26: 2134 | M26: 36768 | N26: 12493 | O26: 221 | P26: 333 | Q26: 41 | R26: 137 | S26: 4578 | U26: 2705 | V26: 0 | X26: 1873 | Y26: -60 | Z26: -3 | AB26: 1810 | AD26: 7593 | AG26: -9469 | AJ26: 1202 | AL26: 38701 | AO26: 9682 | AP26: 20 | AS26: 22703 | AT26: 68725 | AU26: 0 | AV26: 33290 | AW26: 1127 | AX26: 2192 | AY26: 36609 | AZ26: 12812 | BA26: 212 | BB26: 260 | BC26: 53 | BD26: 116 | BE26: 3256 | BG26: 2770 | BH26: -271 | BJ26: 215 | BK26: 2 | BL26: 0 | BM26: -82 | BN26: 0 | BO26: 135 | BQ26: 7728 | BW26: 1014 | BY26: 45167 | CD26: 20.5 | CE26: 8.03 | CJ26: 10610 | CK26: 0 | CL26: 9663.2136 | CM26: 8887.297705 | CO26: 8887.297705 | CQ26: 12493 | CR26: 35.40223006 | CS26: -49 | CT26: -10679 | CU26: 265 | CV26: -115 | CW26: 5
A27: 86 | B27: Hausjärvi | C27: 8729 | D27: 21 | G27: 21888 | H27: 62021 | I27: 62 | J27: 29259 | K27: 1250 | L27: 1670 | M27: 32179 | N27: 12542 | O27: 13 | P27: 562 | Q27: 39 | R27: 4 | S27: 4136 | U27: 2848 | V27: 0 | X27: 1288 | Y27: -17 | Z27: 2 | AB27: 1273 | AD27: 3677 | AG27: -544 | AJ27: 7168 | AL27: 32144 | AO27: 8641 | AP27: 21.5 | AS27: 22652 | AT27: 63212 | AU27: 2 | AV27: 29738 | AW27: 1121 | AX27: 1575 | AY27: 32434 | AZ27: 13476 | BA27: 11 | BB27: 431 | BC27: 38 | BD27: 6 | BE27: 4963 | BG27: 2781 | BH27: 0 | BJ27: 2182 | BK27: 26 | BL27: 6 | BM27: 0 | BN27: -6 | BO27: 2196 | BQ27: 5692 | BW27: 4507 | BY27: 26959 | CD27: 21.5 | CE27: 9.03 | CJ27: 12784 | CK27: 0 | CL27: 13534.97494 | CM27: 12708.39548 | CO27: 12708.39548 | CQ27: 12542 | CR27: -637.1903314 | CS27: -717 | CT27: -2120 | CU27: 118 | CV27: 241 | CW27: 17
A28: 111 | B28: Heinola | C28: 19575 | D28: 20.5 | G28: 71155 | H28: 175485 | I28: -1 | J28: 61577 | K28: 3517 | L28: 5960 | M28: 71054 | N28: 37385 | O28: 74 | P28: 1164 | Q28: 5163 | R28: 1892 | S28: 6289 | U28: 8402 | V28: 1123 | X28: -990 | Y28: -27 | Z28: 10 | AB28: -1007 | AD28: 22998 | AG28: -9195 | AJ28: 79383 | AL28: 63600 | AO28: 19350 | AP28: 20.5 | AS28: 73429 | AT28: 178811 | AU28: 0 | AV28: 62084 | AW28: 2993 | AX28: 6249 | AY28: 71326 | AZ28: 41022 | BA28: 35 | BB28: 810 | BC28: 4279 | BD28: 1259 | BE28: 9211 | BG28: 10104 | BH28: -14 | BJ28: -907 | BK28: -2 | BL28: 0 | BM28: 54 | BN28: -1 | BO28: -856 | BQ28: 22036 | BW28: 84347 | BY28: 76029 | CD28: 20.5 | CE28: 8.03 | CJ28: 29427 | CK28: 0 | CL28: 42032.7414 | CM28: 41240.4779 | CO28: 41240.4779 | CQ28: 37385 | CR28: -182.9634071 | CS28: 34 | CT28: -16223 | CU28: 2102 | CV28: 735 | CW28: 33
A29: 90 | B29: Heinävesi | C29: 3574 | D29: 20.75 | G29: 13712 | H29: 37361 | I29: 1 | J29: 8630 | K29: 2182 | L29: 1227 | M29: 12039 | N29: 13492 | O29: 129 | P29: 125 | Q29: 290 | R29: 1 | S29: 2176 | U29: 2146 | V29: 0 | X29: 30 | Y29: 136 | Z29: -3 | AB29: 163 | AD29: 757 | AG29: -1691 | AJ29: 4712 | AL29: 21051 | AO29: 3514 | AP29: 20.75 | AS29: 10299 | AT29: 34474 | AU29: 0 | AV29: 8640 | AW29: 2003 | AX29: 1249 | AY29: 11892 | AZ29: 13922 | BA29: 146 | BB29: 82 | BC29: 303 | BD29: 3 | BE29: 2003 | BG29: 2526 | BH29: 0 | BJ29: -523 | BK29: 267 | BL29: 0 | BM29: -1 | BN29: 0 | BO29: -257 | BQ29: 600 | BW29: 4952 | BY29: 21181 | CD29: 20.75 | CE29: 8.28 | CJ29: 11652 | CK29: 0 | CL29: 13969.25638 | CM29: 13356.0584 | CO29: 13356.0584 | CQ29: 13492 | CR29: 51.1171841 | CS29: -29 | CT29: -1903 | CU29: 342 | CV29: 29 | CW29: -212
A30: 91 | B30: Helsinki | C30: 628208 | D30: 18.5 | G30: 3114365 | H30: 5559544 | I30: 7794 | J30: 2480765 | K30: 372493 | L30: 214657 | M30: 3067915 | N30: 273172 | O30: 19519 | P30: 90085 | Q30: 16692 | R30: 11985 | S30: 837843 | U30: 645659 | V30: 115565 | X30: 307749 | Y30: -26674 | Z30: 1370 | AB30: 282445 | AD30: 3559243 | AG30: -870069 | AJ30: 1498063 | AL30: 5011275 | AO30: 635181 | AP30: 18.5 | AS30: 3156032 | AT30: 5604281 | AU30: 9883 | AV30: 2586063 | AW30: 397315 | AX30: 222227 | AY30: 3205605 | AZ30: 316330 | BA30: 16755 | BB30: 73753 | BC30: 14314 | BD30: 8902 | BE30: 1031983 | BG30: 676631 | BH30: 272830 | BJ30: 628182 | BK30: -12546 | BL30: 10906 | BM30: -8052 | BN30: 1754 | BO30: 598432 | BQ30: 4153306 | BW30: 1257711 | BY30: 4940025 | CD30: 18.5 | CE30: 6.03 | CJ30: 250053 | CK30: 0 | CL30: 218305.8622 | CM30: 168536.3408 | CO30: 168536.3408 | CQ30: 273172 | CR30: -67329.56625 | CS30: -251476 | CT30: -1505347 | CU30: 20003 | CV30: 446372 | CW30: -544
A31: 97 | B31: Hirvensalmi | C31: 2290 | D31: 19.5 | G31: 9858 | H31: 22360 | I31: 0 | J31: 5421 | K31: 872 | L31: 1146 | M31: 7439 | N31: 7056 | O31: 4 | P31: 134 | Q31: 183 | R31: 1 | S31: 2033 | U31: 1338 | V31: 1 | X31: 696 | Y31: 0 | Z31: -3 | AB31: 693 | AD31: 2765 | AG31: -1334 | AJ31: 6828 | AL31: 7968 | AO31: 2274 | AP31: 19.5 | AS31: 10076 | AT31: 22968 | AU31: 0 | AV31: 5417 | AW31: 817 | AX31: 1154 | AY31: 7388 | AZ31: 7135 | BA31: 2 | BB31: 113 | BC31: 119 | BD31: 1 | BE31: 1627 | BG31: 1289 | BH31: 1 | BJ31: 339 | BK31: -6 | BL31: 0 | BM31: -1 | BN31: -4 | BO31: 328 | BQ31: 3014 | BW31: 7090 | BY31: 7682 | CD31: 20 | CE31: 7.53 | CJ31: 6724 | CK31: 0 | CL31: 7290.964168 | CM31: 6906.112411 | CO31: 6906.112411 | CQ31: 7056 | CR31: 13.3863515 | CS31: -23 | CT31: -1420 | CU31: 12 | CV31: 55 | CW31: -24
A32: 98 | B32: Hollola | C32: 23915 | D32: 21 | G32: 143877 | H32: 245405 | I32: 0 | J32: 75686 | K32: 3209 | L32: 4880 | M32: 83775 | N32: 27213 | O32: 11 | P32: 816 | Q32: 1184 | R32: 363 | S32: 9476 | U32: 12745 | V32: -67 | X32: -3336 | Y32: 66 | Z32: -41 | AB32: -3311 | AD32: 11524 | AG32: -16671 | AJ32: 28891 | AL32: 70576 | AO32: 23791 | AP32: 21 | AS32: 140184 | AT32: 250012 | AU32: 31 | AV32: 82861 | AW32: 2753 | AX32: 5376 | AY32: 90990 | AZ32: 35755 | BA32: 11 | BB32: 944 | BC32: 546 | BD32: 301 | BE32: 16260 | BG32: 10542 | BH32: -14 | BJ32: 5704 | BK32: -1 | BL32: 0 | BM32: -56 | BN32: -34 | BO32: 5613 | BQ32: 18195 | BW32: 31965 | BY32: 79879 | CD32: 21 | CE32: 8.53 | CJ32: 24606 | CK32: 0 | CL32: 36740.50868 | CM32: 35524.82732 | CO32: 35524.82732 | CQ32: 27213 | CR32: 1389.016396 | CS32: -407 | CT32: -12995 | CU32: 247 | CV32: 755 | CW32: -36
A33: 99 | B33: Honkajoki | C33: 1793 | D33: 21.5 | G33: 15002 | H33: 25026 | I33: 0 | J33: 4560 | K33: 951 | L33: 497 | M33: 6008 | N33: 4717 | O33: 0 | P33: 82 | Q33: 11 | R33: 6 | S33: 618 | U33: 533 | V33: 0 | X33: 85 | Y33: 0 | Z33: 0 | AB33: 85 | AD33: -1522 | AG33: -286 | AJ33: 720 | AL33: 5021 | AO33: 1759 | AP33: 21.5 | AS33: 14315 | AT33: 24618 | AU33: 0 | AV33: 4835 | AW33: 821 | AX33: 497 | AY33: 6153 | AZ33: 4730 | BA33: 1 | BB33: 60 | BC33: 15 | BD33: 5 | BE33: 525 | BG33: 534 | BH33: 0 | BJ33: -9 | BK33: 0 | BL33: 0 | BM33: 0 | BN33: 1 | BO33: -8 | BQ33: -1525 | BW33: 742 | BY33: 4681 | CD33: 22 | CE33: 9.53 | CJ33: 4832 | CK33: 280 | CL33: 4371.474925 | CM33: 4448.997861 | CO33: 4448.997861 | CQ33: 4717 | CR33: 34.866776 | CS33: 3 | CT33: -295 | CU33: 18 | CV33: 28 | CW33: -1
A34: 102 | B34: Huittinen | C34: 10473 | D34: 20.25 | G34: 28751 | H34: 84994 | I34: -216 | J34: 29159 | K34: 1789 | L34: 2049 | M34: 32997 | N34: 29462 | O34: 13 | P34: 270 | Q34: 67 | R34: 33 | S34: 5777 | U34: 4447 | V34: 0 | X34: 1330 | Y34: -62 | Z34: -20 | AB34: 1248 | AD34: 10546 | AG34: -9138 | AJ34: 6549 | AL34: 26580 | AO34: 10403 | AP34: 20.5 | AS34: 25240 | AT34: 82750 | AU34: -217 | AV34: 28813 | AW34: 1696 | AX34: 2078 | AY34: 32587 | AZ34: 30323 | BA34: 10 | BB34: 262 | BC34: 66 | BD34: 31 | BE34: 4966 | BG34: 4789 | BH34: -1 | BJ34: 176 | BK34: -34 | BL34: 0 | BM34: 0 | BN34: -18 | BO34: 124 | BQ34: 10636 | BW34: 7645 | BY34: 26616 | CD34: 20.75 | CE34: 8.28 | CJ34: 23195 | CK34: 0 | CL34: 25889.59729 | CM34: 25479.76001 | CO34: 25479.76001 | CQ34: 29462 | CR34: 302.7183302 | CS34: -321 | CT34: -3489 | CU34: 108 | CV34: 717 | CW34: 0
A35: 103 | B35: Humppila | C35: 2388 | D35: 21.5 | G35: 8648 | H35: 21699 | I35: 1 | J35: 6755 | K35: 402 | L35: 402 | M35: 7559 | N35: 6877 | O35: 19 | P35: 109 | Q35: 14 | R35: 21 | S35: 1289 | U35: 834 | V35: 0 | X35: 455 | Y35: -14 | Z35: 1 | AB35: 442 | AD35: -642 | AG35: -495 | AJ35: 627 | AL35: 6897 | AO35: 2345 | AP35: 21.5 | AS35: 8777 | AT35: 22399 | AU35: 0 | AV35: 6543 | AW35: 388 | AX35: 511 | AY35: 7442 | AZ35: 6918 | BA35: 11 | BB35: 92 | BC35: 11 | BD35: 22 | BE35: 646 | BG35: 834 | BH35: 0 | BJ35: -188 | BK35: -25 | BL35: 0 | BM35: 0 | BN35: 0 | BO35: -213 | BQ35: -842 | BW35: 581 | BY35: 6810 | CD35: 22 | CE35: 9.53 | CJ35: 5455 | CK35: 350 | CL35: 6054.073811 | CM35: 5549.302477 | CO35: 5549.302477 | CQ35: 6877 | CR35: 14.942904 | CS35: 11 | CT35: -899 | CU35: 34 | CV35: 150 | CW35: 3
A36: 105 | B36: Hyrynsalmi | C36: 2422 | D36: 21.75 | G36: 16752 | H36: 33831 | I36: 0 | J36: 6711 | K36: 763 | L36: 804 | M36: 8278 | N36: 10302 | O36: 2 | P36: 105 | Q36: 19 | R36: 11 | S36: 1344 | U36: 1291 | V36: 36 | X36: 89 | Y36: 0 | Z36: 0 | AB36: 89 | AD36: -2541 | AG36: -770 | AJ36: 1827 | AL36: 10458 | AO36: 2406 | AP36: 21.75 | AS36: 16928 | AT36: 33353 | AU36: 0 | AV36: 6069 | AW36: 703 | AX36: 827 | AY36: 7599 | AZ36: 10106 | BA36: 3 | BB36: 72 | BC36: 17 | BD36: 89 | BE36: 1077 | BG36: 1249 | BH36: 10 | BJ36: -162 | BK36: -14 | BL36: 0 | BM36: 0 | BN36: 0 | BO36: -176 | BQ36: -2717 | BW36: 1323 | BY36: 9172 | CD36: 21.75 | CE36: 9.28 | CJ36: 9997 | CK36: 0 | CL36: 11169.25573 | CM36: 11119.87368 | CO36: 11119.87368 | CQ36: 10302 | CR36: -3.735726 | CS36: -25 | CT36: -820 | CU36: 134 | CV36: 66 | CW36: -14
A37: 106 | B37: Hyvinkää | C37: 46463 | D37: 19.75 | G37: 168924 | H37: 377890 | I37: 771 | J37: 168042 | K37: 14262 | L37: 13149 | M37: 195453 | N37: 46981 | O37: 128 | P37: 4207 | Q37: 711 | R37: 573 | S37: 29756 | U37: 29614 | V37: -589 | X37: -447 | Y37: 115 | Z37: 94 | AB37: -238 | AD37: 42031 | AG37: -34628 | AJ37: 32879 | AL37: 201010 | AO37: 46596 | AP37: 19.75 | AS37: 169167 | AT37: 377443 | AU37: 142 | AV37: 173918 | AW37: 11167 | AX37: 13417 | AY37: 198502 | AZ37: 53470 | BA37: 52 | BB37: 3742 | BC37: 690 | BD37: 546 | BE37: 39720 | BG37: 30728 | BH37: 0 | BJ37: 8992 | BK37: -257 | BL37: 176 | BM37: -559 | BN37: -51 | BO37: 7949 | BQ37: 49475 | BW37: 50015 | BY37: 225234 | CD37: 19.75 | CE37: 7.28 | CJ37: 45178 | CK37: 0 | CL37: 51698.33229 | CM37: 50209.98313 | CO37: 50209.98313 | CQ37: 46981 | CR37: 53.93143102 | CS37: -3860 | CT37: -46118 | CU37: 2308 | CV37: 4595 | CW37: -2
A38: 108 | B38: Hämeenkyrö | C38: 10667 | D38: 21 | G38: 33531 | H38: 85569 | I38: 1 | J38: 32309 | K38: 1208 | L38: 2250 | M38: 35767 | N38: 21185 | O38: 184 | P38: 561 | Q38: 355 | R38: 283 | S38: 4548 | U38: 5056 | V38: 0 | X38: -508 | Y38: -77 | Z38: -10 | AB38: -595 | AD38: 7437 | AG38: -21125 | AJ38: 10558 | AL38: 50327 | AO38: 10681 | AP38: 21 | AS38: 34877 | AT38: 87294 | AU38: 17 | AV38: 32559 | AW38: 1264 | AX38: 2302 | AY38: 36125 | AZ38: 22307 | BA38: 92 | BB38: 473 | BC38: 320 | BD38: 282 | BE38: 5626 | BG38: 7669 | BH38: 52 | BJ38: -1991 | BK38: 5 | BL38: 55 | BM38: -40 | BN38: -81 | BO38: -2162 | BQ38: 5223 | BW38: 12035 | BY38: 58524 | CD38: 22 | CE38: 9.53 | CJ38: 18952 | CK38: 0 | CL38: 21730.6803 | CM38: 20021.97878 | CO38: 20021.97878 | CQ38: 21185 | CR38: 230.3199603 | CS38: -13 | CT38: -13776 | CU38: 531 | CV38: 228 | CW38: 26
A39: 109 | B39: Hämeenlinna | C39: 68011 | D39: 20.5 | G39: 211673 | H39: 558299 | I39: 2381 | J39: 238409 | K39: 15526 | L39: 24183 | M39: 278118 | N39: 113572 | O39: 7359 | P39: 12070 | Q39: 7372 | R39: 1534 | S39: 46215 | U39: 40010 | V39: 0 | X39: 6205 | Y39: -618 | Z39: -250 | AB39: 5337 | AD39: 10748 | AG39: -31642 | AJ39: 105383 | AL39: 384746 | AO39: 67850 | AP39: 20.5 | AS39: 218006 | AT39: 571540 | AU39: 603 | AV39: 237193 | AW39: 13444 | AX39: 24219 | AY39: 274856 | AZ39: 117077 | BA39: 530 | BB39: 9566 | BC39: 6127 | BD39: 3 | BE39: 33680 | BG39: 40104 | BH39: 0 | BJ39: -6424 | BK39: -18 | BL39: 2 | BM39: -37 | BN39: 136 | BO39: -6345 | BQ39: 5228 | BW39: 116164 | BY39: 428009 | CD39: 20.75 | CE39: 8.28 | CJ39: 87257 | CK39: 0 | CL39: 90811.03402 | CM39: 88943.07134 | CO39: 88943.07134 | CQ39: 113572 | CR39: 312.8546001 | CS39: -7715 | CT39: -71492 | CU39: 566 | CV39: 11908 | CW39: 58
A40: 139 | B40: Ii | C40: 9663 | D40: 21.25 | G40: 59803 | H40: 110640 | I40: 19 | J40: 27149 | K40: 1429 | L40: 3055 | M40: 31633 | N40: 26315 | O40: 24 | P40: 869 | Q40: 101 | R40: 20 | S40: 6367 | U40: 5520 | V40: 0 | X40: 847 | Y40: -488 | Z40: -32 | AB40: 327 | AD40: 12007 | AG40: -7946 | AJ40: 9314 | AL40: 43271 | AO40: 9628 | AP40: 21.25 | AS40: 62339 | AT40: 113763 | AU40: 1 | AV40: 26309 | AW40: 1318 | AX40: 3595 | AY40: 31222 | AZ40: 27663 | BA40: 20 | BB40: 672 | BC40: 55 | BD40: 10 | BE40: 6855 | BG40: 5948 | BH40: 0 | BJ40: 907 | BK40: 545 | BL40: 75 | BM40: -66 | BN40: -5 | BO40: 1306 | BQ40: 13291 | BW40: 7557 | BY40: 44502 | CD40: 21.25 | CE40: 8.78 | CJ40: 23088 | CK40: 0 | CL40: 27626.93765 | CM40: 26506.2257 | CO40: 26506.2257 | CQ40: 26315 | CR40: 46.1362161 | CS40: -38 | CT40: -9984 | CU40: 169 | CV40: 113 | CW40: 660
A41: 140 | B41: Iisalmi | C41: 21945 | D41: 20.5 | G41: 118258 | H41: 242055 | I41: 425 | J41: 65900 | K41: 6100 | L41: 5806 | M41: 77806 | N41: 61013 | O41: 36 | P41: 529 | Q41: 2286 | R41: 1507 | S41: 15294 | U41: 12263 | V41: 0 | X41: 3031 | Y41: 341 | Z41: 0 | AB41: 3372 | AD41: 21492 | AG41: -13717 | AJ41: 33323 | AL41: 78452 | AO41: 21767 | AP41: 20.5 | AS41: 118051 | AT41: 241172 | AU41: 406 | AV41: 64796 | AW41: 4535 | AX41: 5775 | AY41: 75106 | AZ41: 62887 | BA41: 105 | BB41: 533 | BC41: 1492 | BD41: 1047 | BE41: 14861 | BG41: 12226 | BH41: 321 | BJ41: 2956 | BK41: 1279 | BL41: 13 | BM41: -171 | BN41: -29 | BO41: 4022 | BQ41: 26532 | BW41: 32298 | BY41: 91334 | CD41: 20.5 | CE41: 8.03 | CJ41: 39248 | CK41: 0 | CL41: 51399.49819 | CM41: 51537.65814 | CO41: 51537.65814 | CQ41: 61013 | CR41: -112.6819486 | CS41: -132 | CT41: -34841 | CU41: 697 | CV41: 4289 | CW41: 674
A42: 142 | B42: Iitti | C42: 6910 | D42: 20.25 | G42: 18568 | H42: 52819 | I42: 0 | J42: 19743 | K42: 1280 | L42: 2496 | M42: 23519 | N42: 15033 | O42: 24 | P42: 341 | Q42: 49 | R42: 20 | S42: 4013 | U42: 3343 | V42: 110 | X42: 780 | Y42: 0 | Z42: 1 | AB42: 781 | AD42: 695 | AG42: -3912 | AJ42: 5203 | AL42: 23608 | AO42: 6889 | AP42: 20.25 | AS42: 19087 | AT42: 55200 | AU42: 0 | AV42: 19968 | AW42: 1319 | AX42: 2326 | AY42: 23613 | AZ42: 15649 | BA42: 11 | BB42: 274 | BC42: 65 | BD42: 15 | BE42: 2936 | BG42: 3254 | BH42: 115 | BJ42: -203 | BK42: 0 | BL42: 0 | BM42: 42 | BN42: 0 | BO42: -161 | BQ42: 534 | BW42: 5633 | BY42: 21440 | CD42: 20.25 | CE42: 7.78 | CJ42: 13157 | CK42: 0 | CL42: 15267.94954 | CM42: 14975.53655 | CO42: 14975.53655 | CQ42: 15033 | CR42: 247.2801564 | CS42: -56 | CT42: -1996 | CU42: 8 | CV42: 207 | CW42: -5
A43: 143 | B43: Ikaalinen | C43: 7207 | D43: 21.25 | G43: 29059 | H43: 71974 | I43: 3 | J43: 21098 | K43: 1621 | L43: 2960 | M43: 25679 | N43: 23378 | O43: 47 | P43: 289 | Q43: 121 | R43: 102 | S43: 5822 | U43: 4091 | V43: 0 | X43: 1731 | Y43: -285 | Z43: -92 | AB43: 1354 | AD43: 1923 | AG43: -2212 | AJ43: 5075 | AL43: 32700 | AO43: 7128 | AP43: 21.25 | AS43: 29801 | AT43: 73413 | AU43: 22 | AV43: 20666 | AW43: 1498 | AX43: 2981 | AY43: 25145 | AZ43: 23965 | BA43: 15 | BB43: 220 | BC43: 116 | BD43: 100 | BE43: 5232 | BG43: 3743 | BH43: 0 | BJ43: 1489 | BK43: 5 | BL43: 65 | BM43: -35 | BN43: -101 | BO43: 1293 | BQ43: 3216 | BW43: 7284 | BY43: 40729 | CD43: 21.25 | CE43: 8.78 | CJ43: 14955 | CK43: 0 | CL43: 18051.2473 | CM43: 17160.27523 | CO43: 17160.27523 | CQ43: 23378 | CR43: 144.5725962 | CS43: -681 | CT43: -11281 | CU43: 269 | CV43: 574 | CW43: 241
A44: 145 | B44: Ilmajoki | C44: 12159 | D44: 20.25 | G44: 61715 | H44: 121145 | I44: 24 | J44: 35628 | K44: 1301 | L44: 2114 | M44: 39043 | N44: 26558 | O44: 41 | P44: 1064 | Q44: 118 | R44: 55 | S44: 5235 | U44: 5044 | V44: 0 | X44: 191 | Y44: -21 | Z44: -20 | AB44: 150 | AD44: 6455 | AG44: -5000 | AJ44: 7847 | AL44: 69107 | AO44: 12167 | AP44: 20.25 | AS44: 63437 | AT44: 123278 | AU44: 14 | AV44: 35072 | AW44: 1266 | AX44: 2128 | AY44: 38466 | AZ44: 28531 | BA44: 92 | BB44: 873 | BC44: 22 | BD44: 49 | BE44: 6361 | BG44: 4983 | BH44: 0 | BJ44: 1378 | BK44: -220 | BL44: 0 | BM44: -8 | BN44: -19 | BO44: 1131 | BQ44: 7827 | BW44: 7937 | BY44: 67810 | CD44: 20.25 | CE44: 7.78 | CJ44: 23277 | CK44: 0 | CL44: 29029.13426 | CM44: 28140.66785 | CO44: 28140.66785 | CQ44: 26558 | CR44: -22.27737938 | CS44: -343 | CT44: -7062 | CU44: 465 | CV44: 1416 | CW44: 417
A45: 146 | B45: Ilomantsi | C45: 5336 | D45: 20.75 | G45: 18951 | H45: 58611 | I45: -1 | J45: 14038 | K45: 3155 | L45: 1298 | M45: 18491 | N45: 24042 | O45: 24 | P45: 278 | Q45: 358 | R45: 86 | S45: 2890 | U45: 2744 | V45: 0 | X45: 146 | Y45: -5 | Z45: 38 | AB45: 179 | AD45: 1563 | AG45: -7139 | AJ45: 6448 | AL45: 20571 | AO45: 5237 | AP45: 20.75 | AS45: 19294 | AT45: 57497 | AU45: -4 | AV45: 13587 | AW45: 2960 | AX45: 1321 | AY45: 17868 | AZ45: 24477 | BA45: 30 | BB45: 319 | BC45: 348 | BD45: 20 | BE45: 4177 | BG45: 3190 | BH45: 0 | BJ45: 987 | BK45: 47 | BL45: 21 | BM45: -25 | BN45: 39 | BO45: 1027 | BQ45: 2494 | BW45: 7398 | BY45: 23187 | CD45: 20.75 | CE45: 8.28 | CJ45: 20361 | CK45: 0 | CL45: 22145.03828 | CM45: 21120.84614 | CO45: 21120.84614 | CQ45: 24042 | CR45: 4.0470365 | CS45: -15 | CT45: -7459 | CU45: 409 | CV45: 15 | CW45: -287
A46: 153 | B46: Imatra | C46: 27835 | D46: 20 | G46: 154456 | H46: 294946 | I46: -31 | J46: 93785 | K46: 4831 | L46: 9005 | M46: 107621 | N46: 61184 | O46: 369 | P46: 2627 | Q46: 416 | R46: 154 | S46: 26236 | U46: 21484 | V46: 0 | X46: 4752 | Y46: -254 | Z46: -98 | AB46: 4400 | AD46: 38109 | AG46: -54627 | AJ46: 18012 | AL46: 189052 | AO46: 27517 | AP46: 20 | AS46: 151530 | AT46: 290861 | AU46: 486 | AV46: 93467 | AW46: 9262 | AX46: 3959 | AY46: 106688 | AZ46: 65204 | BA46: 158 | BB46: 2522 | BC46: 188 | BD46: 6 | BE46: 30866 | BG46: 23087 | BH46: 0 | BJ46: 7779 | BK46: 282 | BL46: 279 | BM46: -131 | BN46: -23 | BO46: 7628 | BQ46: 48119 | BW46: 13707 | BY46: 196872 | CD46: 20 | CE46: 7.53 | CJ46: 42620 | CK46: 0 | CL46: 56050.79121 | CM46: 54521.49403 | CO46: 54521.49403 | CQ46: 61184 | CR46: -1304.306319 | CS46: -3563 | CT46: -58698 | CU46: 2029 | CV46: 20734 | CW46: 83
A47: 148 | B47: Inari | C47: 6804 | D47: 19 | G47: 35376 | H47: 73770 | I47: 0 | J47: 18850 | K47: 2363 | L47: 4068 | M47: 25281 | N47: 22731 | O47: 138 | P47: 1117 | Q47: 295 | R47: 50 | S47: 8884 | U47: 5754 | V47: 44 | X47: 3174 | Y47: -184 | Z47: -29 | AB47: 2961 | AD47: 14511 | AG47: -7804 | AJ47: 11388 | AL47: 48191 | AO47: 6825 | AP47: 19 | AS47: 35417 | AT47: 75437 | AU47: 0 | AV47: 19749 | AW47: 2161 | AX47: 4259 | AY47: 26169 | AZ47: 23792 | BA47: 43 | BB47: 958 | BC47: 153 | BD47: 26 | BE47: 9153 | BG47: 5155 | BH47: 18 | BJ47: 4016 | BK47: 63 | BL47: 0 | BM47: -45 | BN47: -155 | BO47: 3879 | BQ47: 17773 | BW47: 12550 | BY47: 46440 | CD47: 19 | CE47: 6.53 | CJ47: 20079 | CK47: 0 | CL47: 23412.50284 | CM47: 23205.74407 | CO47: 23205.74407 | CQ47: 22731 | CR47: -18.8031542 | CS47: -164 | CT47: -6568 | CU47: 214 | CV47: 295 | CW47: -104
A48: 149 | B48: Inkoo | C48: 5541 | D48: 20.75 | G48: 5875 | H48: 34093 | I48: 2 | J48: 21376 | K48: 2069 | L48: 2922 | M48: 26367 | N48: 5059 | O48: 2 | P48: 203 | Q48: 186 | R48: 185 | S48: 3010 | U48: 1970 | V48: 0 | X48: 1040 | Y48: 0 | Z48: 0 | AB48: 1040 | AD48: 7292 | AG48: -1860 | AJ48: 1964 | AL48: 15407 | AO48: 5585 | AP48: 20.75 | AS48: 13322 | AT48: 42732 | AU48: -1 | AV48: 21280 | AW48: 1397 | AX48: 3086 | AY48: 25763 | AZ48: 5987 | BA48: 1 | BB48: 187 | BC48: 65 | BD48: 62 | BE48: 2157 | BG48: 2080 | BH48: 0 | BJ48: 77 | BK48: 0 | BL48: 0 | BM48: 0 | BN48: 0 | BO48: 77 | BQ48: 7279 | BW48: 1957 | BY48: 16081 | CD48: 20.75 | CE48: 8.28 | CJ48: 5420 | CK48: 0 | CL48: 6108.184055 | CM48: 6538.020673 | CO48: 6538.020673 | CQ48: 5059 | CR48: -2009.83304 | CS48: -42 | CT48: -1901 | CU48: 2 | CV48: 645 | CW48: 0
A49: 151 | B49: Isojoki | C49: 2123 | D49: 22 | G49: 17083 | H49: 31565 | I49: 34 | J49: 5513 | K49: 556 | L49: 401 | M49: 6470 | N49: 9372 | O49: 1 | P49: 58 | Q49: 46 | R49: 25 | S49: 1358 | U49: 860 | V49: 0 | X49: 498 | Y49: -1 | Z49: 4 | AB49: 501 | AD49: 822 | AG49: -681 | AJ49: 1632 | AL49: 3753 | AO49: 2079 | AP49: 22 | AS49: 16560 | AT49: 30504 | AU49: 69 | AV49: 5183 | AW49: 548 | AX49: 414 | AY49: 6145 | AZ49: 9289 | BA49: 1 | BB49: 48 | BC49: 39 | BD49: 19 | BE49: 1532 | BG49: 846 | BH49: 0 | BJ49: 686 | BK49: -4 | BL49: 0 | BM49: 0 | BN49: 0 | BO49: 682 | BQ49: 1469 | BW49: 1741 | BY49: 3532 | CD49: 22 | CE49: 9.53 | CJ49: 7935 | CK49: 0 | CL49: 8318.651956 | CM49: 7855.457305 | CO49: 7855.457305 | CQ49: 9372 | CR49: -2.5527461 | CS49: 0 | CT49: -807 | CU49: 20 | CV49: 1 | CW49: 23
A50: 152 | B50: Isokyrö | C50: 4785 | D50: 21.5 | G50: 13420 | H50: 37893 | I50: -27 | J50: 14296 | K50: 550 | L50: 892 | M50: 15738 | N50: 12062 | O50: 10 | P50: 230 | Q50: 47 | R50: 14 | S50: 3114 | U50: 1875 | V50: 0 | X50: 1239 | Y50: -17 | Z50: -10 | AB50: 1212 | AD50: 8519 | AG50: -1415 | AJ50: 4240 | AL50: 12325 | AO50: 4712 | AP50: 21.5 | AS50: 13506 | AT50: 37806 | AU50: 9 | AV50: 14008 | AW50: 524 | AX50: 906 | AY50: 15438 | AZ50: 12958 | BA50: 8 | BB50: 232 | BC50: 33 | BD50: 14 | BE50: 3901 | BG50: 1883 | BH50: 0 | BJ50: 2018 | BK50: -61 | BL50: 0 | BM50: 0 | BN50: -11 | BO50: 1946 | BQ50: 10876 | BW50: 3811 | BY50: 10140 | CD50: 21.5 | CE50: 9.03 | CJ50: 11136 | CK50: 0 | CL50: 13165.28719 | CM50: 12820.45131 | CO50: 12820.45131 | CQ50: 12062 | CR50: -44.8909741 | CS50: 16 | CT50: -1762 | CU50: 60 | CV50: 35 | CW50: 0
A51: 165 | B51: Janakkala | C51: 16853 | D51: 20.5 | G51: 46898 | H51: 128825 | I51: 27 | J51: 57247 | K51: 2207 | L51: 3091 | M51: 62545 | N51: 27769 | O51: 40 | P51: 996 | Q51: 101 | R51: 5 | S51: 7390 | U51: 7471 | V51: 0 | X51: -81 | Y51: -206 | Z51: -14 | AB51: -301 | AD51: 1905 | AG51: -6124 | AJ51: 13881 | AL51: 71604 | AO51: 16709 | AP51: 20.5 | AS51: 48225 | AT51: 130113 | AU51: 0 | AV51: 57060 | AW51: 2287 | AX51: 3687 | AY51: 63034 | AZ51: 28892 | BA51: 28 | BB51: 711 | BC51: 98 | BD51: 15 | BE51: 9247 | BG51: 7484 | BH51: 0 | BJ51: 1763 | BK51: 5 | BL51: 72 | BM51: -162 | BN51: -8 | BO51: 1526 | BQ51: 3431 | BW51: 15470 | BY51: 73972 | CD51: 21 | CE51: 8.53 | CJ51: 21036 | CK51: 0 | CL51: 24137.04449 | CM51: 22442.89044 | CO51: 22442.89044 | CQ51: 27769 | CR51: -119.7424707 | CS51: -746 | CT51: -9957 | CU51: 180 | CV51: 1624 | CW51: 8
A52: 167 | B52: Joensuu | C52: 75514 | D52: 20.5 | G52: 302795 | H52: 692934 | I52: 160 | J52: 223747 | K52: 18640 | L52: 19607 | M52: 261994 | N52: 187018 | O52: 532 | P52: 7024 | Q52: 4896 | R52: 893 | S52: 56544 | U52: 50905 | V52: -3 | X52: 5636 | Y52: -1275 | Z52: -207 | AB52: 4154 | AD52: 60316 | AG52: -71425 | AJ52: 121231 | AL52: 388906 | AO52: 75848 | AP52: 20.5 | AS52: 308191 | AT52: 705537 | AU52: -59 | AV52: 224447 | AW52: 17132 | AX52: 20727 | AY52: 262306 | AZ52: 193982 | BA52: 594 | BB52: 5600 | BC52: 5082 | BD52: 442 | BE52: 58517 | BG52: 53999 | BH52: 0 | BJ52: 4518 | BK52: 60 | BL52: 396 | BM52: -737 | BN52: 3 | BO52: 3448 | BQ52: 63842 | BW52: 126032 | BY52: 422002 | CD52: 20.5 | CE52: 8.03 | CJ52: 137821 | CK52: 0 | CL52: 139314.8093 | CM52: 138727.2427 | CO52: 138727.2427 | CQ52: 187018 | CR52: -6033.19998 | CS52: -5329 | CT52: -84405 | CU52: 1801 | CV52: 8424 | CW52: -2467
A53: 169 | B53: Jokioinen | C53: 5425 | D53: 20.5 | G53: 26864 | H53: 53623 | I53: -13 | J53: 17492 | K53: 980 | L53: 839 | M53: 19311 | N53: 11145 | O53: 27 | P53: 276 | Q53: 37 | R53: 14 | S53: 3457 | U53: 2123 | V53: 2 | X53: 1336 | Y53: 1 | Z53: 20 | AB53: 1357 | AD53: 7163 | AG53: -4669 | AJ53: 1305 | AL53: 22249 | AO53: 5341 | AP53: 20.5 | AS53: 26879 | AT53: 54651 | AU53: -6 | AV53: 16675 | AW53: 888 | AX53: 845 | AY53: 18408 | AZ53: 11595 | BA53: 2 | BB53: 244 | BC53: 34 | BD53: 16 | BE53: 2001 | BG53: 2526 | BH53: 0 | BJ53: -525 | BK53: 3 | BL53: 0 | BM53: 0 | BN53: 27 | BO53: -495 | BQ53: 6628 | BW53: 1223 | BY53: 21397 | CD53: 20.5 | CE53: 8.03 | CJ53: 8513 | CK53: 0 | CL53: 9739.248481 | CM53: 8903.230411 | CO53: 8903.230411 | CQ53: 11145 | CR53: -79.06041458 | CS53: -60 | CT53: -2075 | CU53: 48 | CV53: 33 | CW53: 1
A54: 171 | B54: Joroinen | C54: 5110 | D54: 20.25 | G54: 15346 | H54: 42316 | I54: -2 | J54: 14684 | K54: 1371 | L54: 1161 | M54: 17216 | N54: 12069 | O54: 21 | P54: 314 | Q54: -132 | R54: 6 | S54: 1834 | U54: 1484 | V54: 187 | X54: 537 | Y54: 0 | Z54: 10 | AB54: 547 | AD54: -656 | AG54: -1833 | AJ54: 16995 | AL54: 25733 | AO54: 5039 | AP54: 20.25 | AS54: 15702 | AT54: 43434 | AU54: 2 | AV54: 14334 | AW54: 1309 | AX54: 1181 | AY54: 16824 | AZ54: 12692 | BA54: 54 | BB54: 280 | BC54: 59 | BD54: 17 | BE54: 1554 | BG54: 1235 | BH54: 216 | BJ54: 535 | BK54: -5 | BL54: 0 | BM54: 0 | BN54: 26 | BO54: 556 | BQ54: 140 | BW54: 15020 | BY54: 24677 | CD54: 20.75 | CE54: 8.28 | CJ54: 11121 | CK54: 0 | CL54: 12483.78887 | CM54: 11976.73574 | CO54: 11976.73574 | CQ54: 12069 | CR54: 55.38836416 | CS54: -27 | CT54: -2535 | CU54: 114 | CV54: 194 | CW54: 302
A55: 172 | B55: Joutsa | C55: 4688 | D55: 21 | G55: 14125 | H55: 40203 | I55: 6 | J55: 12130 | K55: 1278 | L55: 1655 | M55: 15063 | N55: 15934 | O55: 4 | P55: 176 | Q55: 103 | R55: 16 | S55: 4789 | U55: 2153 | V55: 0 | X55: 2636 | Y55: -43 | Z55: -3 | AB55: 2590 | AD55: 1583 | AG55: -1117 | AJ55: 4002 | AL55: 20051 | AO55: 4673 | AP55: 21 | AS55: 14033 | AT55: 41942 | AU55: -4 | AV55: 12259 | AW55: 1244 | AX55: 1714 | AY55: 15217 | AZ55: 16952 | BA55: 2 | BB55: 126 | BC55: 72 | BD55: 24 | BE55: 4129 | BG55: 2178 | BH55: -145 | BJ55: 1806 | BK55: -2 | BL55: 36 | BM55: -5 | BN55: -11 | BO55: 1752 | BQ55: 3331 | BW55: 4907 | BY55: 18975 | CD55: 21 | CE55: 8.53 | CJ55: 13247 | CK55: 0 | CL55: 15603.05913 | CM55: 14858.86249 | CO55: 14858.86249 | CQ55: 15934 | CR55: 120.2903772 | CS55: -4 | CT55: -2468 | CU55: 84 | CV55: 24 | CW55: -3
A56: 176 | B56: Juuka | C56: 5034 | D56: 20.75 | G56: 19303 | H56: 53303 | I56: 2 | J56: 12462 | K56: 1832 | L56: 1226 | M56: 15520 | N56: 22327 | O56: 129 | P56: 139 | Q56: 387 | R56: 18 | S56: 4208 | U56: 2771 | V56: 0 | X56: 1437 | Y56: 337 | Z56: 0 | AB56: 1774 | AD56: 10117 | AG56: -8388 | AJ56: 6205 | AL56: 12514 | AO56: 4938 | AP56: 20.75 | AS56: 19242 | AT56: 53273 | AU56: 0 | AV56: 11562 | AW56: 1689 | AX56: 1244 | AY56: 14495 | AZ56: 22258 | BA56: 117 | BB56: 126 | BC56: 373 | BD56: 3 | BE56: 3083 | BG56: 3145 | BH56: 0 | BJ56: -62 | BK56: 256 | BL56: 13 | BM56: -3 | BN56: 2 | BO56: 180 | BQ56: 10052 | BW56: 6462 | BY56: 12649 | CD56: 20.75 | CE56: 8.28 | CJ56: 18170 | CK56: 0 | CL56: 20846.45409 | CM56: 19879.39408 | CO56: 19879.39408 | CQ56: 22327 | CR56: -21.1068519 | CS56: 3 | CT56: -2785 | CU56: 192 | CV56: 196 | CW56: -192
A57: 177 | B57: Juupajoki | C57: 1988 | D57: 21 | G57: 6571 | H57: 16778 | I57: 4 | J57: 5987 | K57: 752 | L57: 541 | M57: 7280 | N57: 4709 | O57: 28 | P57: 100 | Q57: 9 | R57: -22 | S57: 1745 | U57: 788 | V57: -7 | X57: 950 | Y57: 1 | Z57: 81 | AB57: 1032 | AD57: 1894 | AG57: -900 | AJ57: 1551 | AL57: 6478 | AO57: 1957 | AP57: 21 | AS57: 6800 | AT57: 17075 | AU57: 15 | AV57: 5609 | AW57: 754 | AX57: 549 | AY57: 6912 | AZ57: 4494 | BA57: 28 | BB57: 87 | BC57: 3 | BD57: 5 | BE57: 1085 | BG57: 827 | BH57: 13 | BJ57: 271 | BK57: 12 | BL57: 9 | BM57: 0 | BN57: 74 | BO57: 348 | BQ57: 2299 | BW57: 1422 | BY57: 6359 | CD57: 21 | CE57: 8.53 | CJ57: 4454 | CK57: 0 | CL57: 4285.633396 | CM57: 4013.402246 | CO57: 4013.402246 | CQ57: 4709 | CR57: -20.57139784 | CS57: 0 | CT57: -1108 | CU57: 87 | CV57: 26 | CW57: -3
A58: 178 | B58: Juva | C58: 6548 | D58: 19.75 | G58: 22109 | H58: 58286 | I58: 122 | J58: 15887 | K58: 2448 | L58: 1492 | M58: 19827 | N58: 19937 | O58: 2 | P58: 387 | Q58: 309 | R58: 7 | S58: 3626 | U58: 2354 | V58: -74 | X58: 1198 | Y58: -5 | Z58: -9 | AB58: 1184 | AD58: 1594 | AG58: -3865 | AJ58: 1640 | AL58: 27637 | AO58: 6421 | AP58: 19.75 | AS58: 23334 | AT58: 59034 | AU58: 81 | AV58: 15444 | AW58: 2240 | AX58: 1534 | AY58: 19218 | AZ58: 21308 | BA58: 2 | BB58: 312 | BC58: 385 | BD58: 25 | BE58: 4957 | BG58: 2780 | BH58: -199 | BJ58: 1978 | BK58: -37 | BL58: 0 | BM58: 0 | BN58: -8 | BO58: 1933 | BQ58: 3145 | BW58: 2019 | BY58: 27753 | CD58: 19.75 | CE58: 7.28 | CJ58: 16771 | CK58: 0 | CL58: 21718.61651 | CM58: 21092.80812 | CO58: 21092.80812 | CQ58: 19937 | CR58: -2.54029368 | CS58: -49 | CT58: -4887 | CU58: 130 | CV58: 578 | CW58: -1043
A59: 179 | B59: Jyväskylä | C59: 137368 | D59: 20 | G59: 553679 | H59: 1146692 | I59: 252 | J59: 426989 | K59: 22523 | L59: 40956 | M59: 490468 | N59: 254098 | O59: 604 | P59: 19522 | Q59: 1192 | R59: 913 | S59: 133166 | U59: 122479 | V59: 0 | X59: 10687 | Y59: -4357 | Z59: 89 | AB59: 6419 | AD59: -33462 | AG59: -110561 | AJ59: 30828 | AL59: 1080972 | AO59: 138850 | AP59: 20 | AS59: 562405 | AT59: 1165225 | AU59: 543 | AV59: 439145 | AW59: 21150 | AX59: 47104 | AY59: 507399 | AZ59: 271325 | BA59: 2704 | BB59: 16754 | BC59: 671 | BD59: 1772 | BE59: 160856 | BG59: 118271 | BH59: 3878 | BJ59: 46463 | BK59: -70 | BL59: 4695 | BM59: -2946 | BN59: -953 | BO59: 37799 | BQ59: 4169 | BW59: 55840 | BY59: 1066245 | CD59: 20 | CE59: 7.53 | CJ59: 132908 | CK59: 0 | CL59: 173559.7243 | CM59: 168113.8623 | CO59: 168113.8623 | CQ59: 254098 | CR59: -8879.424715 | CS59: -16375 | CT59: -134941 | CU59: 545 | CV59: 32429 | CW59: -231
A60: 181 | B60: Jämijärvi | C60: 1948 | D60: 21.5 | G60: 9636 | H60: 20902 | I60: 0 | J60: 5198 | K60: 288 | L60: 398 | M60: 5884 | N60: 5909 | O60: 0 | P60: 93 | Q60: 12 | R60: 8 | S60: 428 | U60: 578 | V60: 0 | X60: -150 | Y60: 0 | Z60: 0 | AB60: -150 | AD60: -1910 | AG60: -523 | AJ60: 710 | AL60: 6189 | AO60: 1915 | AP60: 21.5 | AS60: 9091 | AT60: 20697 | AU60: 0 | AV60: 4709 | AW60: 273 | AX60: 401 | AY60: 5383 | AZ60: 5988 | BA60: 1 | BB60: 53 | BC60: 12 | BD60: 6 | BE60: -292 | BG60: 568 | BH60: 0 | BJ60: -860 | BK60: 4 | BL60: 0 | BM60: 0 | BN60: 0 | BO60: -856 | BQ60: -2692 | BW60: 801 | BY60: 6848 | CD60: 22.5 | CE60: 10.03 | CJ60: 5561 | CK60: 0 | CL60: 5862.412021 | CM60: 5470.998613 | CO60: 5470.998613 | CQ60: 5909 | CR60: -16.1258839 | CS60: 0 | CT60: -538 | CU60: 5 | CV60: -4 | CW60: 0
A61: 182 | B61: Jämsä | C61: 21542 | D61: 21 | G61: 65660 | H61: 196738 | I61: 555 | J61: 72040 | K61: 9084 | L61: 5981 | M61: 87105 | N61: 60875 | O61: 84 | P61: 1038 | Q61: 990 | R61: 164 | S61: 17329 | U61: 12966 | V61: 0 | X61: 4363 | Y61: -150 | Z61: -12 | AB61: 4201 | AD61: 13474 | AG61: -13195 | AJ61: 11915 | AL61: 60355 | AO61: 21259 | AP61: 21 | AS61: 64992 | AT61: 199557 | AU61: 434 | AV61: 71823 | AW61: 8939 | AX61: 6179 | AY61: 86941 | AZ61: 61338 | BA61: 24 | BB61: 944 | BC61: 301 | BD61: 203 | BE61: 13326 | BG61: 14169 | BH61: 31 | BJ61: -812 | BK61: 21 | BL61: 23 | BM61: 2 | BN61: -14 | BO61: -826 | BQ61: 12454 | BW61: 11946 | BY61: 65510 | CD61: 21 | CE61: 8.53 | CJ61: 37820 | CK61: 0 | CL61: 43828.85653 | CM61: 41385.57809 | CO61: 41385.57809 | CQ61: 60875 | CR61: -156.0039178 | CS61: -192 | CT61: -16657 | CU61: 0 | CV61: 541 | CW61: 21
A62: 186 | B62: Järvenpää | C62: 40900 | D62: 19.75 | G62: 130483 | H62: 317537 | I62: 13 | J62: 158708 | K62: 4673 | L62: 12121 | M62: 175502 | N62: 35636 | O62: 56 | P62: 2279 | Q62: 535 | R62: 587 | S62: 21192 | U62: 24575 | V62: 27 | X62: -3356 | Y62: -195 | Z62: 2 | AB62: -3549 | AD62: 42696 | AG62: -41506 | AJ62: 24645 | AL62: 252287 | AO62: 41529 | AP62: 19.75 | AS62: 137385 | AT62: 330798 | AU62: 9 | AV62: 164643 | AW62: 4222 | AX62: 12621 | AY62: 181486 | AZ62: 40080 | BA62: 57 | BB62: 1456 | BC62: 467 | BD62: 539 | BE62: 26060 | BG62: 25558 | BH62: 0 | BJ62: 502 | BK62: -92 | BL62: 100 | BM62: -197 | BN62: -2 | BO62: 111 | BQ62: 43742 | BW62: 16457 | BY62: 279613 | CD62: 19.75 | CE62: 7.28 | CJ62: 24104 | CK62: 0 | CL62: 25196.16988 | CM62: 24640.70711 | CO62: 24640.70711 | CQ62: 35636 | CR62: -1010.178913 | CS62: -9928 | CT62: -76160 | CU62: 953 | CV62: 18340 | CW62: 83
A63: 202 | B63: Kaarina | C63: 32590 | D63: 19.25 | G63: 78640 | H63: 231808 | I63: 9 | J63: 118694 | K63: 4671 | L63: 6454 | M63: 129819 | N63: 34622 | O63: 823 | P63: 1330 | Q63: 664 | R63: 44 | S63: 11395 | U63: 11878 | V63: 0 | X63: -483 | Y63: 25 | Z63: 26 | AB63: -432 | AD63: 20480 | AG63: -14307 | AJ63: 16653 | AL63: 105304 | AO63: 32738 | AP63: 19.25 | AS63: 80043 | AT63: 234729 | AU63: 3 | AV63: 126274 | AW63: 4086 | AX63: 6657 | AY63: 137017 | AZ63: 36315 | BA63: 611 | BB63: 1211 | BC63: 661 | BD63: 39 | BE63: 18671 | BG63: 12703 | BH63: -500 | BJ63: 5468 | BK63: 33 | BL63: 5 | BM63: -4 | BN63: 38 | BO63: 5530 | BQ63: 25281 | BW63: 20494 | BY63: 106345 | CD63: 19.75 | CE63: 7.28 | CJ63: 28113 | CK63: 0 | CL63: 28711.90752 | CM63: 27075.38044 | CO63: 27075.38044 | CQ63: 34622 | CR63: -2172.86884 | CS63: -2133 | CT63: -18672 | CU63: 335 | CV63: 3684 | CW63: 0
A64: 204 | B64: Kaavi | C64: 3194 | D64: 21.25 | G64: 13924 | H64: 34742 | I64: 44 | J64: 7342 | K64: 949 | L64: 977 | M64: 9268 | N64: 13179 | O64: 5 | P64: 247 | Q64: 267 | R64: 27 | S64: 1671 | U64: 1291 | V64: 1 | X64: 381 | Y64: -5 | Z64: 1 | AB64: 377 | AD64: 1098 | AG64: -4605 | AJ64: 1947 | AL64: 14180 | AO64: 3154 | AP64: 21.25 | AS64: 14076 | AT64: 35289 | AU64: 9 | AV64: 7268 | AW64: 839 | AX64: 1086 | AY64: 9193 | AZ64: 13624 | BA64: 3 | BB64: 237 | BC64: 210 | BD64: 26 | BE64: 1563 | BG64: 1498 | BH64: 0 | BJ64: 65 | BK64: -7 | BL64: 2 | BM64: -2 | BN64: -11 | BO64: 43 | BQ64: 1142 | BW64: 886 | BY64: 17109 | CD64: 21.25 | CE64: 8.78 | CJ64: 11077 | CK64: 500 | CL64: 12679.08768 | CM64: 12635.04043 | CO64: =CM64-CN64 -> 12635.04043 | CQ64: 13179 | CR64: -1061.008446 | CS64: -22 | CT64: -4939 | CU64: 211 | CV64: 41 | CW64: -19
A65: 205 | B65: Kajaani | C65: 37622 | D65: 21 | G65: 338454 | H65: 527128 | I65: 52 | J65: 122195 | K65: 6127 | L65: 9801 | M65: 138123 | N65: 99516 | O65: 347 | P65: 5715 | Q65: 529 | R65: 1162 | S65: 42246 | U65: 38766 | V65: 190 | X65: 3670 | Y65: 2920 | Z65: -1092 | AB65: 5498 | AD65: 75548 | AG65: -53635 | AJ65: 16448 | AL65: 305817 | AO65: 37521 | AP65: 21 | AS65: 333843 | AT65: 525991 | AU65: -4 | AV65: 122245 | AW65: 5118 | AX65: 9770 | AY65: 137133 | AZ65: 104928 | BA65: 196 | BB65: 5624 | BC65: 391 | BD65: 1191 | BE65: 42944 | BG65: 37838 | BH65: 116 | BJ65: 5222 | BK65: 380 | BL65: 0 | BM65: -326 | BN65: -371 | BO65: 4905 | BQ65: 86242 | BW65: 15871 | BY65: 327093 | CD65: 21 | CE65: 8.53 | CJ65: 69302 | CK65: 0 | CL65: 102010.8206 | CM65: 99901.45308 | CO65: 99901.45308 | CQ65: 99516 | CR65: -179.1156093 | CS65: 115 | CT65: -74676 | CU65: 3823 | CV65: 8804 | CW65: 63
A66: 208 | B66: Kalajoki | C66: 12621 | D66: 20 | G66: 36419 | H66: 98095 | I66: 48 | J66: 32831 | K66: 2933 | L66: 2697 | M66: 38461 | N66: 34248 | O66: 106 | P66: 679 | Q66: 613 | R66: 142 | S66: 10862 | U66: 8351 | V66: 420 | X66: 2931 | Y66: -226 | Z66: -25 | AB66: 2680 | AD66: 18233 | AG66: -8479 | AJ66: 21367 | AL66: 54788 | AO66: 12586 | AP66: 20 | AS66: 36431 | AT66: 100091 | AU66: 90 | AV66: 33344 | AW66: 2720 | AX66: 3034 | AY66: 39098 | AZ66: 35486 | BA66: 83 | BB66: 200 | BC66: 447 | BD66: 355 | BE66: 10891 | BG66: 8959 | BH66: -6 | BJ66: 1926 | BK66: 140 | BL66: 80 | BM66: -50 | BN66: 19 | BO66: 1955 | BQ66: 23106 | BW66: 23229 | BY66: 54062 | CD66: 20 | CE66: 7.53 | CJ66: 26296 | CK66: 0 | CL66: 30269.81282 | CM66: 30150.14066 | CO66: 30150.14066 | CQ66: =N66-CP66 -> 34248 | CR66: -12.3901579 | CS66: -422 | CT66: -9091 | CU66: 1294 | CV66: 794 | CW66: -9
A67: 211 | B67: Kangasala | C67: 30607 | D67: 21 | G67: 108107 | H67: 239851 | I67: 40 | J67: 111088 | K67: 3781 | L67: 6752 | M67: 121621 | N67: 35982 | O67: 38 | P67: 2123 | Q67: 2649 | R67: 537 | S67: 25926 | U67: 18116 | V67: 0 | X67: 7810 | Y67: -455 | Z67: -8 | AB67: 7347 | AD67: 47857 | AG67: -17215 | AJ67: 45984 | AL67: 114837 | AO67: 31190 | AP67: 21 | AS67: 107497 | AT67: 241477 | AU67: 53 | AV67: 114489 | AW67: 3536 | AX67: 6935 | AY67: 124960 | AZ67: 38639 | BA67: 26 | BB67: 1751 | BC67: 1441 | BD67: 50 | BE67: 29339 | BG67: 17886 | BH67: 137 | BJ67: 11590 | BK67: 13 | BL67: 539 | BM67: -267 | BN67: -116 | BO67: 10681 | BQ67: 59792 | BW67: 54163 | BY67: 103137 | CD67: 21 | CE67: 8.53 | CJ67: 31664 | CK67: 0 | CL67: 38215.2086 | CM67: 36425.9576 | CO67: 36425.9576 | CQ67: 35982 | CR67: -675.4005822 | CS67: -1216 | CT67: -19563 | CU67: 1036 | CV67: 3242 | CW67: -74
A68: 213 | B68: Kangasniemi | C68: 5628 | D68: 20 | G68: 17191 | H68: 51318 | I68: 0 | J68: 13713 | K68: 2655 | L68: 1724 | M68: 18092 | N68: 19138 | O68: 33 | P68: 154 | Q68: 140 | R68: 3 | S68: 3119 | U68: 2639 | V68: 0 | X68: 480 | Y68: -1 | Z68: -2 | AB68: 477 | AD68: -1251 | AG68: -6488 | AJ68: 1062 | AL68: 23954 | AO68: 5603 | AP68: 20 | AS68: 17544 | AT68: 51783 | AU68: 0 | AV68: 13457 | AW68: 2528 | AX68: 1745 | AY68: 17730 | AZ68: 19576 | BA68: 25 | BB68: 195 | BC68: 154 | BD68: 2 | BE68: 3050 | BG68: 2560 | BH68: 0 | BJ68: 490 | BK68: -8 | BL68: 0 | BM68: 0 | BN68: 9 | BO68: 491 | BQ68: -1062 | BW68: 1335 | BY68: 28939 | CD68: 20.75 | CE68: =CD68-$CE$1 -> 8.28 | CJ68: 18214 | CK68: 0 | CL68: 18647.531 | CM68: 18015.51838 | CO68: 18015.51838 | CQ68: 19138 | CR68: -98.4363801 | CS68: -4 | CT68: -7715 | CU68: 2730 | CV68: 6 | CW68: 168
A69: 214 | B69: Kankaanpää | C69: 11769 | D69: 21.5 | G69: 65020 | H69: 125620 | I69: 152 | J69: 35602 | K69: 2595 | L69: 3148 | M69: 41345 | N69: 27618 | O69: 81 | P69: 479 | Q69: 507 | R69: 120 | S69: 8504 | U69: 6971 | V69: 0 | X69: 1533 | Y69: -323 | Z69: -23 | AB69: 1187 | AD69: 15037 | AG69: -11941 | AJ69: 5277 | AL69: 58219 | AO69: 11637 | AP69: 21.5 | AS69: 68027 | AT69: 127235 | AU69: 43 | AV69: 35300 | AW69: 2276 | AX69: 3162 | AY69: 40738 | AZ69: 28595 | BA69: 47 | BB69: 418 | BC69: 401 | BD69: 31 | BE69: 10167 | BG69: 7530 | BH69: 0 | BJ69: 2637 | BK69: -1 | BL69: 4 | BM69: -226 | BN69: -783 | BO69: 1623 | BQ69: 9547 | BW69: 7243 | BY69: 66193 | CD69: 21.5 | CE69: 9.03 | CJ69: 23062 | CK69: 0 | CL69: 27271.36784 | CM69: 26606.79389 | CO69: 26606.79389 | CQ69: 27618 | CR69: 212.3511183 | CS69: -47 | CT69: -14807 | CU69: 73 | CV69: 521 | CW69: -34
A70: 216 | B70: Kannonkoski | C70: 1462 | D70: 21 | G70: 14698 | H70: 23450 | I70: 0 | J70: 3343 | K70: 577 | L70: 391 | M70: 4311 | N70: 6196 | O70: 29 | P70: 74 | Q70: 82 | R70: 9 | S70: 1783 | U70: 1204 | V70: -37 | X70: 542 | Y70: 3 | Z70: 10 | AB70: 555 | AD70: 10291 | AG70: -1087 | AJ70: 4089 | AL70: 10044 | AO70: 1424 | AP70: 21 | AS70: 14979 | AT70: 23231 | AU70: 0 | AV70: 3259 | AW70: 507 | AX70: 438 | AY70: 4204 | AZ70: 6414 | BA70: 23 | BB70: 52 | BC70: 30 | BD70: 7 | BE70: 2360 | BG70: 1301 | BH70: 0 | BJ70: 1059 | BK70: 3 | BL70: 0 | BM70: 0 | BN70: 9 | BO70: 1071 | BQ70: 11362 | BW70: 4497 | BY70: 10282 | CD70: 21 | CE70: 8.53 | CJ70: 5525 | CK70: 0 | CL70: 5940.811001 | CM70: 5689.158583 | CO70: 5689.158583 | CQ70: 6196 | CR70: 17.4956501 | CS70: 0 | CT70: -1890 | CU70: 21 | CV70: 1 | CW70: 0
A71: 217 | B71: Kannus | C71: 5590 | D71: 20.5 | G71: 25628 | H71: 52573 | I71: 54 | J71: 16114 | K71: 1147 | L71: 1307 | M71: 18568 | N71: 12824 | O71: 57 | P71: 213 | Q71: 31 | R71: 10 | S71: 4365 | U71: 2762 | V71: 0 | X71: 1603 | Y71: -10 | Z71: -18 | AB71: 1575 | AD71: 14498 | AG71: -2875 | AJ71: 5620 | AL71: 22698 | AO71: 5578 | AP71: 20.5 | AS71: 25588 | AT71: 52926 | AU71: 148 | AV71: 14785 | AW71: 1076 | AX71: 1310 | AY71: 17171 | AZ71: 13214 | BA71: 42 | BB71: 189 | BC71: 28 | BD71: 9 | BE71: 3067 | BG71: 2904 | BH71: 0 | BJ71: 163 | BK71: -29 | BL71: 0 | BM71: 0 | BN71: -34 | BO71: 100 | BQ71: 15556 | BW71: 6707 | BY71: 22524 | CD71: 20.5 | CE71: 8.03 | CJ71: 12475 | CK71: 0 | CL71: 13534.92909 | CM71: 13147.49197 | CO71: 13147.49197 | CQ71: 12824 | CR71: 6.22621 | CS71: -19 | CT71: -2631 | CU71: 0 | CV71: 60 | CW71: -3
A72: 218 | B72: Karijoki | C72: 1369 | D72: 22 | G72: 9933 | H72: 18042 | I72: 2 | J72: 3538 | K72: 301 | L72: 234 | M72: 4073 | N72: 4767 | O72: 15 | P72: 44 | Q72: 9 | R72: 4 | S72: 708 | U72: 449 | V72: 0 | X72: 259 | Y72: 29 | Z72: 3 | AB72: 291 | AD72: 504 | AG72: -395 | AJ72: 2007 | AL72: 3383 | AO72: 1349 | AP72: 22 | AS72: 9804 | AT72: 17798 | AU72: 1 | AV72: 3509 | AW72: 265 | AX72: 227 | AY72: 4001 | AZ72: 4944 | BA72: 1 | BB72: 42 | BC72: 8 | BD72: 4 | BE72: 915 | BG72: 461 | BH72: 0 | BJ72: 454 | BK72: 15 | BL72: 6 | BM72: -1 | BN72: -2 | BO72: 460 | BQ72: 960 | BW72: 2479 | BY72: 3089 | CD72: 22 | CE72: 9.53 | CJ72: 4078 | CK72: 0 | CL72: 4753.803806 | CM72: 4457.330947 | CO72: 4457.330947 | CQ72: 4767 | CR72: -475.8692303 | CS72: 0 | CT72: -409 | CU72: 5 | CV72: 2 | CW72: 1
A73: 224 | B73: Karkkila | C73: 8969 | D73: 20.75 | G73: 50616 | H73: 96076 | I73: -5 | J73: 28524 | K73: 1262 | L73: 2070 | M73: 31856 | N73: 19153 | O73: 16 | P73: 501 | Q73: 138 | R73: 112 | S73: 5081 | U73: 3414 | V73: 0 | X73: 1667 | Y73: -11 | Z73: 0 | AB73: 1656 | AD73: 1541 | AG73: -8482 | AJ73: 6761 | AL73: 53681 | AO73: 8911 | AP73: 20.75 | AS73: 49149 | AT73: 95747 | AU73: -1 | AV73: 28285 | AW73: 1141 | AX73: 2142 | AY73: 31568 | AZ73: 20097 | BA73: 31 | BB73: 582 | BC73: 127 | BD73: 111 | BE73: 4526 | BG73: 3776 | BH73: 0 | BJ73: 750 | BK73: -2 | BL73: 0 | BM73: 0 | BN73: 1 | BO73: 749 | BQ73: 2461 | BW73: 7014 | BY73: 61174 | CD73: 20.75 | CE73: 8.28 | CJ73: 12675 | CK73: 0 | CL73: 17379.99544 | CM73: 17059.00824 | CO73: 17059.00824 | CQ73: 19153 | CR73: -66.67025668 | CS73: -195 | CT73: -11666 | CU73: 5 | CV73: 221 | CW73: 0
A74: 226 | B74: Karstula | C74: 4268 | D74: 20 | G74: 28919 | H74: 52405 | I74: 7 | J74: 10168 | K74: 1234 | L74: 926 | M74: 12328 | N74: 15067 | O74: 118 | P74: 244 | Q74: 115 | R74: 16 | S74: 3889 | U74: 2678 | V74: 0 | X74: 1211 | Y74: -53 | Z74: 29 | AB74: 1187 | AD74: 4010 | AG74: -2844 | AJ74: 9387 | AL74: 21187 | AO74: 4232 | AP74: 20 | AS74: 28416 | AT74: 52086 | AU74: 0 | AV74: 9627 | AW74: 1146 | AX74: 948 | AY74: 11721 | AZ74: 15297 | BA74: 125 | BB74: 132 | BC74: 35 | BD74: 98 | BE74: 3278 | BG74: 3383 | BH74: 0 | BJ74: -105 | BK74: 102 | BL74: 38 | BM74: 20 | BN74: -21 | BO74: -42 | BQ74: 4181 | BW74: 10591 | BY74: 20593 | CD74: 20 | CE74: 7.53 | CJ74: 13386 | CK74: 0 | CL74: 15430.42588 | CM74: 14519.35586 | CO74: 14519.35586 | CQ74: 15067 | CR74: 73.4070159 | CS74: 0 | CT74: -2304 | CU74: 0 | CV74: 146 | CW74: 84
A75: 230 | B75: Karvia | C75: 2475 | D75: 19.75 | G75: 20959 | H75: 33662 | I75: 0 | J75: 5635 | K75: 612 | L75: 413 | M75: 6660 | N75: 9113 | O75: 32 | P75: 51 | Q75: 15 | R75: 11 | S75: 3042 | U75: 2352 | V75: 0 | X75: 690 | Y75: -134 | Z75: -5 | AB75: 551 | AD75: 14739 | AG75: -2444 | AJ75: 4274 | AL75: 6934 | AO75: 2449 | AP75: 19.75 | AS75: 21615 | AT75: 34390 | AU75: 11 | AV75: 5258 | AW75: 596 | AX75: 407 | AY75: 6261 | AZ75: 8717 | BA75: 36 | BB75: 47 | BC75: 21 | BD75: 8 | BE75: 2203 | BG75: 2363 | BH75: 0 | BJ75: -160 | BK75: 0 | BL75: 2 | BM75: -113 | BN75: -319 | BO75: -594 | BQ75: 12736 | BW75: 3374 | BY75: 7666 | CD75: 19.75 | CE75: 7.28 | CJ75: 7817 | CK75: 0 | CL75: 8214.908805 | CM75: 7702.593442 | CO75: 7702.593442 | CQ75: 9113 | CR75: -15.59042984 | CS75: 136 | CT75: -4772 | CU75: 7 | CV75: 1677 | CW75: -10
A76: 231 | B76: Kaskinen | C76: 1285 | D76: 21 | G76: 3860 | H76: 11248 | I76: 0 | J76: 4692 | K76: 892 | L76: 608 | M76: 6192 | N76: 1494 | O76: 5 | P76: 58 | Q76: 8 | R76: 1 | S76: 253 | U76: 1105 | V76: -6 | X76: -858 | Y76: 39 | Z76: -28 | AB76: -847 | AD76: 9468 | AG76: 260 | AJ76: 437 | AL76: 3980 | AO76: 1296 | AP76: 21.5 | AS76: 4084 | AT76: 12213 | AU76: 0 | AV76: 4788 | AW76: 954 | AX76: 600 | AY76: 6342 | AZ76: 1825 | BA76: 2 | BB76: 52 | BC76: 7 | BD76: 3 | BE76: -8 | BG76: 1163 | BH76: 6 | BJ76: -1165 | BK76: 63 | BL76: 0 | BM76: -46 | BN76: 0 | BO76: -1148 | BQ76: 5907 | BW76: 883 | BY76: 4311 | CD76: 22 | CE76: 9.53 | CJ76: 151 | CK76: 0 | CL76: 2162.090436 | CM76: 2112.40035 | CO76: 2112.40035 | CQ76: 1494 | CR76: -310.065258 | CS76: 0 | CT76: -790 | CU76: 18 | CV76: 26 | CW76: 0
A77: 232 | B77: Kauhajoki | C77: 13875 | D77: 22 | G77: 88704 | H77: 171759 | I77: 94 | J77: 39413 | K77: 3910 | L77: 3399 | M77: 46722 | N77: 43446 | O77: 28 | P77: 1438 | Q77: 3439 | R77: 80 | S77: 9156 | U77: 7701 | V77: 0 | X77: 1455 | Y77: -104 | Z77: -34 | AB77: 1317 | AD77: -3609 | AG77: -6596 | AJ77: 18957 | AL77: 86808 | AO77: 13772 | AP77: 22 | AS77: 87141 | AT77: 169360 | AU77: 144 | AV77: 38682 | AW77: 3501 | AX77: 3375 | AY77: 45558 | AZ77: 44581 | BA77: 22 | BB77: 1303 | BC77: 1336 | BD77: 76 | BE77: 8043 | BG77: 8209 | BH77: 0 | BJ77: -166 | BK77: -51 | BL77: 0 | BM77: -38 | BN77: -47 | BO77: -302 | BQ77: -2123 | BW77: 19012 | BY77: 90620 | CD77: 22 | CE77: 9.53 | CJ77: 32678 | CK77: 940 | CL77: 39048.11859 | CM77: 37956.06177 | CO77: 37956.06177 | CQ77: 43446 | CR77: -78.0144113 | CS77: -76 | CT77: -11829 | CU77: 488 | CV77: 445 | CW77: -43
A78: 233 | B78: Kauhava | C78: 16784 | D78: 21.75 | G78: 114185 | H78: 202601 | I78: 86 | J78: 48710 | K78: 3984 | L78: 3911 | M78: 56605 | N78: 45568 | O78: 143 | P78: 1293 | Q78: 162 | R78: 120 | S78: 12735 | U78: 9849 | V78: 0 | X78: 2886 | Y78: -46 | Z78: 111 | AB78: 2951 | AD78: 17519 | AG78: -20507 | AJ78: 30496 | AL78: 103703 | AO78: 16599 | AP78: 21.75 | AS78: 110472 | AT78: 208223 | AU78: 70 | AV78: 47485 | AW78: 3560 | AX78: 3988 | AY78: 55033 | AZ78: 56568 | BA78: 190 | BB78: 1171 | BC78: 141 | BD78: 164 | BE78: 12916 | BG78: 11107 | BH78: 0 | BJ78: 1809 | BK78: 317 | BL78: 121 | BM78: -15 | BN78: -48 | BO78: 1942 | BQ78: 21863 | BW78: 30179 | BY78: 107881 | CD78: 21.75 | CE78: 9.28 | CJ78: 40697 | CK78: 0 | CL78: 49457.25477 | CM78: 48041.28488 | CO78: 48041.28488 | CQ78: 45568 | CR78: 201.729204 | CS78: -134 | CT78: -18854 | CU78: 67 | CV78: 392 | CW78: 2861
A79: 235 | B79: Kauniainen | C79: 9486 | D79: 16.5 | G79: 42692 | H79: 91726 | I79: -2 | J79: 54761 | K79: 1354 | L79: 3825 | M79: 59940 | N79: 325 | O79: 259 | P79: 515 | Q79: 162 | R79: 87 | S79: 11048 | U79: 8808 | V79: 0 | X79: 2240 | Y79: 21 | Z79: 0 | AB79: 2261 | AD79: 37554 | AG79: -642 | AJ79: 8379 | AL79: 20375 | AO79: 9397 | AP79: 16.5 | AS79: 45374 | AT79: 93074 | AU79: 0 | AV79: 57552 | AW79: 1428 | AX79: 3993 | AY79: 62973 | AZ79: 433 | BA79: 242 | BB79: 440 | BC79: 163 | BD79: 93 | BE79: 15577 | BG79: 8670 | BH79: 201 | BJ79: 7108 | BK79: 111 | BL79: 6 | BM79: 27 | BN79: -1 | BO79: 7239 | BQ79: 42805 | BW79: 12155 | BY79: 19861 | CD79: 17 | CE79: 4.53 | CJ79: 2668 | CK79: 0 | CL79: -904.7382838 | CM79: -2658.432058 | CO79: -2658.432058 | CQ79: 325 | CR79: 2570.460913 | CS79: -9050 | CT79: -11499 | CU79: 7 | CV79: 9494 | CW79: 2
A80: 236 | B80: Kaustinen | C80: 4305 | D80: 21.5 | G80: 21806 | H80: 44230 | I80: 40 | J80: 12120 | K80: 1513 | L80: 895 | M80: 14528 | N80: 11633 | O80: 75 | P80: 382 | Q80: 15 | R80: 153 | S80: 3245 | U80: 2735 | V80: -45 | X80: 465 | Y80: -113 | Z80: -15 | AB80: 337 | AD80: 5417 | AG80: -10535 | AJ80: 3262 | AL80: 41096 | AO80: 4298 | AP80: 21.5 | AS80: 23346 | AT80: 45716 | AU80: 107 | AV80: 12296 | AW80: 1411 | AX80: 922 | AY80: 14629 | AZ80: 12263 | BA80: 67 | BB80: 324 | BC80: 14 | BD80: 136 | BE80: 4139 | BG80: 3114 | BH80: 0 | BJ80: 1025 | BK80: 0 | BL80: 0 | BM80: 0 | BN80: -10 | BO80: 1015 | BQ80: 8030 | BW80: 4788 | BY80: 43081 | CD80: 21.5 | CE80: 9.03 | CJ80: 8799 | CK80: 500 | CL80: 10301.17343 | CM80: 10622.52249 | CO80: 10622.52249 | CQ80: 11633 | CR80: 142.0198501 | CS80: -33 | CT80: -3736 | CU80: 0 | CV80: 51 | CW80: 0
A81: 239 | B81: Keitele | C81: 2379 | D81: 19.5 | G81: 9997 | H81: 24157 | I81: 10 | J81: 5810 | K81: 986 | L81: 542 | M81: 7338 | N81: 7898 | O81: 4 | P81: 113 | Q81: 192 | R81: 41 | S81: 1128 | U81: 1070 | V81: 1 | X81: 59 | Y81: -14 | Z81: 2 | AB81: 47 | AD81: 1137 | AG81: -1473 | AJ81: 680 | AL81: 14678 | AO81: 2346 | AP81: 19.5 | AS81: 10518 | AT81: 24712 | AU81: 9 | AV81: 5688 | AW81: 883 | AX81: 534 | AY81: 7105 | AZ81: 8360 | BA81: 3 | BB81: 91 | BC81: 87 | BD81: 32 | BE81: 1248 | BG81: 976 | BH81: 0 | BJ81: 272 | BK81: 0 | BL81: 0 | BM81: 0 | BN81: 0 | BO81: 272 | BQ81: 1457 | BW81: 916 | BY81: 15088 | CD81: 20.5 | CE81: 8.03 | CJ81: 6963 | CK81: 0 | CL81: 7721.155477 | CM81: 7267.836077 | CO81: 7267.836077 | CQ81: 7898 | CR81: 31.66650406 | CS81: -26 | CT81: -1360 | CU81: 31 | CV81: 156 | CW81: 44
A82: 240 | B82: Kemi | C82: 21758 | D82: 21.25 | G82: 101234 | H82: 218697 | I82: 854 | J82: 74603 | K82: 6187 | L82: 6512 | M82: 87302 | N82: 47626 | O82: 18 | P82: 4072 | Q82: 93 | R82: 156 | S82: 13604 | U82: 13760 | V82: 0 | X82: -156 | Y82: -809 | Z82: 50 | AB82: -915 | AD82: -3814 | AG82: -13621 | AJ82: 16756 | AL82: 129158 | AO82: 21602 | AP82: 21.25 | AS82: 101524 | AT82: 219573 | AU82: 607 | AV82: 74083 | AW82: 5987 | AX82: 6722 | AY82: 86792 | AZ82: 51231 | BA82: 11 | BB82: 1782 | BC82: 262 | BD82: 47 | BE82: 18374 | BG82: 14146 | BH82: 0 | BJ82: 4228 | BK82: -86 | BL82: 852 | BM82: -135 | BN82: -44 | BO82: 3111 | BQ82: -752 | BW82: 16359 | BY82: 127693 | CD82: 21.25 | CE82: 8.78 | CJ82: 37066 | CK82: 0 | CL82: 46414.4251 | CM82: 44350.81024 | CO82: 44350.81024 | CQ82: 47626 | CR82: -106.8666684 | CS82: -1949 | CT82: -18058 | CU82: 517 | CV82: 1775 | CW82: 0
A83: 320 | B83: Kemijärvi | C83: 7766 | D83: 20.5 | G83: 54025 | H83: 101115 | I83: 0 | J83: 23378 | K83: 1208 | L83: 3956 | M83: 28542 | N83: 25729 | O83: 157 | P83: 1393 | Q83: 1408 | R83: 414 | S83: 6939 | U83: 7106 | V83: 177 | X83: 10 | Y83: -394 | Z83: 71 | AB83: -313 | AD83: 4429 | AG83: -7975 | AJ83: 11632 | AL83: 68959 | AO83: 7661 | AP83: 21 | AS83: 50692 | AT83: 100658 | AU83: 0 | AV83: 23640 | AW83: 1046 | AX83: 4419 | AY83: 29105 | AZ83: 30442 | BA83: 90 | BB83: 1222 | BC83: 1700 | BD83: 539 | BE83: 9610 | BG83: 6874 | BH83: 51 | BJ83: 2787 | BK83: -350 | BL83: 0 | BM83: -388 | BN83: 68 | BO83: 2117 | BQ83: 5754 | BW83: 11183 | BY83: 67228 | CD83: 21 | CE83: 8.53 | CJ83: 27330 | CK83: 0 | CL83: 25855.8351 | CM83: 25118.65667 | CO83: 25118.65667 | CQ83: 25729 | CR83: -43.58347 | CS83: -3594 | CT83: -11135 | CU83: 5112 | CV83: 13401 | CW83: -10667
A84: 241 | B84: Keminmaa | C84: 8388 | D84: 21.25 | G84: 27229 | H84: 69841 | I84: 0 | J84: 29972 | K84: 3623 | L84: 1060 | M84: 34655 | N84: 12791 | O84: 9 | P84: 583 | Q84: 32 | R84: 17 | S84: 4198 | U84: 4121 | V84: 38 | X84: 115 | Y84: 3 | Z84: 0 | AB84: 118 | AD84: 2414 | AG84: -1783 | AJ84: 7619 | AL84: 32598 | AO84: 8316 | AP84: 21.25 | AS84: 27219 | AT84: 68616 | AU84: -2 | AV84: 30641 | AW84: 741 | AX84: 3853 | AY84: 35235 | AZ84: 13232 | BA84: 6 | BB84: 456 | BC84: 117 | BD84: 26 | BE84: 6647 | BG84: 5513 | BH84: -70 | BJ84: 1064 | BK84: -8 | BL84: 0 | BM84: -180 | BN84: 0 | BO84: 876 | BQ84: 4666 | BW84: 8930 | BY84: 31513 | CD84: 21.25 | CE84: 8.78 | CJ84: 13024 | CK84: 0 | CL84: 12690.91948 | CM84: 11892.37949 | CO84: 11892.37949 | CQ84: 12791 | CR84: 21.169114 | CS84: -162 | CT84: -6081 | CU84: 198 | CV84: 1747 | CW84: -1550
A85: 322 | B85: Kemiönsaari | C85: 6909 | D85: 19.75 | G85: 26861 | H85: 66184 | I85: 3 | J85: 18861 | K85: 811 | L85: 3120 | M85: 22792 | N85: 22532 | O85: 15 | P85: 527 | Q85: 27 | R85: 18 | S85: 5501 | U85: 4393 | V85: 0 | X85: 1108 | Y85: 0 | Z85: -10 | AB85: 1098 | AD85: 17516 | AG85: -12239 | AJ85: 7473 | AL85: 36559 | AO85: 6872 | AP85: 19.75 | AS85: 27501 | AT85: 66357 | AU85: 1 | AV85: 18509 | AW85: 735 | AX85: 3154 | AY85: 22398 | AZ85: 23042 | BA85: -5 | BB85: 476 | BC85: 141 | BD85: 100 | BE85: 6145 | BG85: 5232 | BH85: 0 | BJ85: 913 | BK85: 0 | BL85: 65 | BM85: 11 | BN85: -10 | BO85: 849 | BQ85: 18364 | BW85: 4989 | BY85: 33966 | CD85: 19.75 | CE85: 7.28 | CJ85: 17777 | CK85: 0 | CL85: 22140.79946 | CM85: 20759.3801 | CO85: 20759.3801 | CQ85: 22532 | CR85: 99.6816221 | CS85: -246 | CT85: -4764 | CU85: 54 | CV85: 353 | CW85: 0
A86: 244 | B86: Kempele | C86: 17066 | D86: 20.5 | G86: 36481 | H86: 111522 | I86: -1 | J86: 58387 | K86: 2228 | L86: 2990 | M86: 63605 | N86: 21421 | O86: 8 | P86: 1030 | Q86: 130 | R86: 34 | S86: 9058 | U86: 8163 | V86: 0 | X86: 895 | Y86: -38 | Z86: -37 | AB86: 820 | AD86: 15170 | AG86: -6403 | AJ86: 10268 | AL86: 52036 | AO86: 17297 | AP86: 20.5 | AS86: 33965 | AT86: 114956 | AU86: -66 | AV86: 59921 | AW86: 2599 | AX86: 3133 | AY86: 65653 | AZ86: 29055 | BA86: 6 | BB86: 935 | BC86: 47 | BD86: 7 | BE86: 12761 | BG86: 7993 | BH86: 0 | BJ86: 4768 | BK86: -3 | BL86: 5 | BM86: -14 | BN86: -3 | BO86: 4743 | BQ86: 19699 | BW86: 16658 | BY86: 54039 | CD86: 20.5 | CE86: 8.03 | CJ86: 17196 | CK86: 0 | CL86: 23963.54034 | CM86: 23035.50098 | CO86: 23035.50098 | CQ86: 21421 | CR86: -290.2347792 | CS86: -3377 | CT86: -11369 | CU86: 261 | CV86: 4589 | CW86: -70
A87: 245 | B87: Kerava | C87: 35293 | D87: 19 | G87: 180346 | H87: 329702 | I87: -16 | J87: 132253 | K87: 10198 | L87: 9713 | M87: 152164 | N87: 34689 | O87: 61 | P87: 1629 | Q87: 1810 | R87: 960 | S87: 36332 | U87: 26622 | V87: 0 | X87: 9710 | Y87: -249 | Z87: -161 | AB87: 9300 | AD87: 152051 | AG87: -43044 | AJ87: 18236 | AL87: 170989 | AO87: 35511 | AP87: 19.25 | AS87: 179588 | AT87: 327425 | AU87: -29 | AV87: 135018 | AW87: 10037 | AX87: 9512 | AY87: 154567 | AZ87: 38434 | BA87: 60 | BB87: 1228 | BC87: 1100 | BD87: 802 | BE87: 43775 | BG87: 28119 | BH87: 0 | BJ87: 15656 | BK87: -1152 | BL87: -1 | BM87: -298 | BN87: -149 | BO87: 14058 | BQ87: 166606 | BW87: 18953 | BY87: 169055 | CD87: 19.25 | CE87: 6.78 | CJ87: 18933 | CK87: 0 | CL87: 21369.7138 | CM87: 20390.10066 | CO87: 20390.10066 | CQ87: 34689 | CR87: -712.4129101 | CS87: -6279 | CT87: -44605 | CU87: 11 | CV87: 10342 | CW87: -1
A88: 249 | B88: Keuruu | C88: 10117 | D88: 20.5 | G88: 47241 | H88: 102520 | I88: 119 | J88: 29390 | K88: 2447 | L88: 2541 | M88: 34378 | N88: 31183 | O88: 43 | P88: 728 | Q88: 158 | R88: 22 | S88: 9791 | U88: 8941 | V88: 0 | X88: 850 | Y88: -428 | Z88: 145 | AB88: 567 | AD88: 5664 | AG88: -21769 | AJ88: 3409 | AL88: 85990 | AO88: 9992 | AP88: 20.5 | AS88: 47554 | AT88: 102147 | AU88: 140 | AV88: 28935 | AW88: 2272 | AX88: 2420 | AY88: 33627 | AZ88: 31666 | BA88: 39 | BB88: 698 | BC88: 171 | BD88: 28 | BE88: 10250 | BG88: 10240 | BH88: -1 | BJ88: 9 | BK88: 0 | BL88: 84 | BM88: -171 | BN88: -341 | BO88: -587 | BQ88: 10953 | BW88: 5100 | BY88: 95266 | CD88: 20.5 | CE88: 8.03 | CJ88: 24249 | CK88: 0 | CL88: 28336.34138 | CM88: 27525.33836 | CO88: 27525.33836 | CQ88: 31183 | CR88: 74.44056676 | CS88: -144 | CT88: -19298 | CU88: 49 | CV88: 328 | CW88: 0
A89: 250 | B89: Kihniö | C89: 2038 | D89: 21.5 | G89: 6086 | H89: 18765 | I89: 4 | J89: 5116 | K89: 572 | L89: 508 | M89: 6196 | N89: 6866 | O89: 6 | P89: 144 | Q89: 48 | R89: 22 | S89: 271 | U89: 1068 | V89: 0 | X89: -797 | Y89: -12 | Z89: -13 | AB89: -822 | AD89: 28 | AG89: -895 | AJ89: 2073 | AL89: 9432 | AO89: 1994 | AP89: 21.5 | AS89: 5638 | AT89: 18134 | AU89: 3 | AV89: 5027 | AW89: 577 | AX89: 499 | AY89: 6103 | AZ89: 7451 | BA89: 3 | BB89: 138 | BC89: 41 | BD89: 21 | BE89: 943 | BG89: 1137 | BH89: -11 | BJ89: -205 | BK89: 1 | BL89: 9 | BM89: -6 | BN89: -13 | BO89: -232 | BQ89: -198 | BW89: 1944 | BY89: 9145 | CD89: 21.5 | CE89: 9.03 | CJ89: 5249 | CK89: 0 | CL89: 6975.327733 | CM89: 6703.863081 | CO89: 6703.863081 | CQ89: 6866 | CR89: -47.1946718 | CS89: -5 | CT89: -707 | CU89: 10 | CV89: 158 | CW89: -68
A90: 256 | B90: Kinnula | C90: 1745 | D90: 20.5 | G90: 6562 | H90: 17595 | I90: 0 | J90: 3880 | K90: 544 | L90: 365 | M90: 4789 | N90: 7814 | O90: 92 | P90: 21 | Q90: 82 | R90: 31 | S90: 1687 | U90: 1044 | V90: 0 | X90: 643 | Y90: 0 | Z90: 0 | AB90: 643 | AD90: 6172 | AG90: -742 | AJ90: 2984 | AL90: 6932 | AO90: 1699 | AP90: 20.5 | AS90: 6500 | AT90: 17762 | AU90: 0 | AV90: 3896 | AW90: 505 | AX90: 364 | AY90: 4765 | AZ90: 7659 | BA90: 88 | BB90: 12 | BC90: 58 | BD90: 46 | BE90: 1245 | BG90: 986 | BH90: 0 | BJ90: 259 | BK90: 0 | BL90: 0 | BM90: 0 | BN90: 0 | BO90: 259 | BQ90: 6436 | BW90: 3137 | BY90: 7472 | CD90: 20.5 | CE90: 8.03 | CJ90: 6712 | CK90: 0 | CL90: 7131.336862 | CM90: 6652.597043 | CO90: 6652.597043 | CQ90: 7814 | CR90: 82.2482341 | CS90: 20 | CT90: -1717 | CU90: 1 | CV90: 27 | CW90: 0
A91: 257 | B91: Kirkkonummi | C91: 38649 | D91: 19.5 | G91: 115701 | H91: 300436 | I91: -2 | J91: 160693 | K91: 7947 | L91: 9851 | M91: 178491 | N91: 28225 | O91: 128 | P91: 2923 | Q91: 650 | R91: 384 | S91: 19450 | U91: 18957 | V91: 0 | X91: 493 | Y91: 259 | Z91: 57 | AB91: 809 | AD91: 21649 | AG91: -28616 | AJ91: 21064 | AL91: 147568 | AO91: 39033 | AP91: 19.5 | AS91: 111256 | AT91: 302460 | AU91: 11 | AV91: 168325 | AW91: 6644 | AX91: 9806 | AY91: 184775 | AZ91: 31602 | BA91: 26 | BB91: 2046 | BC91: 712 | BD91: 319 | BE91: 23557 | BG91: 19968 | BH91: 0 | BJ91: 3589 | BK91: 36 | BL91: 1 | BM91: -6 | BN91: 54 | BO91: 3672 | BQ91: 25076 | BW91: 33601 | BY91: 163451 | CD91: 19.5 | CE91: 7.03 | CJ91: 23248 | CK91: 0 | CL91: 22519.01799 | CM91: 19650.41766 | CO91: 19650.41766 | CQ91: 28225 | CR91: -759.6910131 | CS91: -1078 | CT91: -28732 | CU91: 77 | CV91: 1705 | CW91: 97
A92: 260 | B92: Kitee | C92: 10832 | D92: 22.5 | G92: 34983 | H92: 98488 | I92: 2 | J92: 30623 | K92: 2374 | L92: 3100 | M92: 36097 | N92: 39657 | O92: 42 | P92: 561 | Q92: 452 | R92: 30 | S92: 11934 | U92: 4912 | V92: 0 | X92: 7022 | Y92: -175 | Z92: -35 | AB92: 6812 | AD92: 7647 | AG92: -7731 | AJ92: 9375 | AL92: 34767 | AO92: 10719 | AP92: 22 | AS92: 36118 | AT92: 99240 | AU92: 1 | AV92: 29349 | AW92: 2263 | AX92: 3105 | AY92: 34717 | AZ92: 40355 | BA92: 53 | BB92: 417 | BC92: 421 | BD92: 17 | BE92: 11790 | BG92: 5058 | BH92: 0 | BJ92: 6732 | BK92: 11 | BL92: 0 | BM92: -80 | BN92: -25 | BO92: 6638 | BQ92: 14282 | BW92: 9425 | BY92: 30246 | CD92: 21.5 | CE92: 9.03 | CJ92: 20251 | CK92: 0 | CL92: 38024.94675 | CM92: 36954.6482 | CO92: 36954.6482 | CQ92: 39657 | CR92: 192.5144132 | CS92: -119 | CT92: -5968 | CU92: 125 | CV92: 565 | CW92: -604
A93: 261 | B93: Kittilä | C93: 6416 | D93: 19.5 | G93: 45611 | H93: 82541 | I93: 1344 | J93: 18371 | K93: 4330 | L93: 4846 | M93: 27547 | N93: 21182 | O93: 47 | P93: 1183 | Q93: 162 | R93: 797 | S93: 11372 | U93: 8175 | V93: 106 | X93: 3303 | Y93: 575 | Z93: -246 | AB93: 3632 | AD93: 31335 | AG93: -9465 | AJ93: 7378 | AL93: 65256 | AO93: 6383 | AP93: 20.25 | AS93: 49113 | AT93: 83063 | AU93: 1010 | AV93: 19016 | AW93: 3484 | AX93: 5995 | AY93: 28495 | AZ93: 21584 | BA93: 19 | BB93: 1054 | BC93: 488 | BD93: 604 | BE93: 15988 | BG93: 8661 | BH93: 4 | BJ93: 7331 | BK93: 519 | BL93: 51 | BM93: -64 | BN93: -455 | BO93: 7280 | BQ93: 38466 | BW93: 5382 | BY93: 56718 | CD93: 20.25 | CE93: 7.78 | CJ93: 16777 | CK93: 0 | CL93: 20430.34681 | CM93: 21129.46523 | CO93: 21129.46523 | CQ93: 21182 | CR93: 41.81522636 | CS93: 0 | CT93: -8136 | CU93: 813 | CV93: 215 | CW93: 83
A94: 263 | B94: Kiuruvesi | C94: 8600 | D94: 20.75 | G94: 47488 | H94: 101128 | I94: 61 | J94: 21344 | K94: 1935 | L94: 1656 | M94: 24935 | N94: 34529 | O94: 32 | P94: 538 | Q94: 1295 | R94: 241 | S94: 6288 | U94: 5241 | V94: 2 | X94: 1049 | Y94: -21 | Z94: -1 | AB94: 1027 | AD94: 2084 | AG94: -6393 | AJ94: 12204 | AL94: 67120 | AO94: 8444 | AP94: 20.75 | AS94: 46966 | AT94: 100500 | AU94: 67 | AV94: 20093 | AW94: 1780 | AX94: 1683 | AY94: 23556 | AZ94: 35302 | BA94: 13 | BB94: 488 | BC94: 679 | BD94: 234 | BE94: 5218 | BG94: 5236 | BH94: 122 | BJ94: 104 | BK94: 88 | BL94: 4 | BM94: -13 | BN94: -16 | BO94: 159 | BQ94: 2254 | BW94: 11048 | BY94: 54562 | CD94: 20.75 | CE94: 8.28 | CJ94: 27709 | CK94: 0 | CL94: 31254.27332 | CM94: 29686.99675 | CO94: 29686.99675 | CQ94: 34529 | CR94: 191.6801011 | CS94: -2 | CT94: -6298 | CU94: 209 | CV94: 359 | CW94: 140
A95: 265 | B95: Kivijärvi | C95: 1200 | D95: 21 | G95: 10596 | H95: 18887 | I95: 0 | J95: 2630 | K95: 375 | L95: 580 | M95: 3585 | N95: 5800 | O95: 9 | P95: 66 | Q95: 36 | R95: 5 | S95: 1068 | U95: 744 | V95: 0 | X95: 324 | Y95: 2 | Z95: 0 | AB95: 326 | AD95: 2844 | AG95: -3504 | AJ95: 2969 | AL95: 7342 | AO95: 1161 | AP95: 21 | AS95: 10659 | AT95: 19151 | AU95: 0 | AV95: 2511 | AW95: 386 | AX95: 530 | AY95: 3427 | AZ95: 5820 | BA95: 11 | BB95: 73 | BC95: 11 | BD95: 1 | BE95: 703 | BG95: 1273 | BH95: 0 | BJ95: -570 | BK95: -1 | BL95: 1 | BM95: 0 | BN95: 0 | BO95: -572 | BQ95: 2250 | BW95: 2816 | BY95: 7566 | CD95: 21 | CE95: 8.53 | CJ95: 5040 | CK95: 0 | CL95: 5252.621035 | CM95: 4813.350646 | CO95: 4813.350646 | CQ95: 5800 | CR95: -78.5747702 | CS95: -113 | CT95: -1243 | CU95: 241 | CV95: 289 | CW95: 0
A96: 271 | B96: Kokemäki | C96: 7591 | D96: 21.25 | G96: 33390 | H96: 74169 | I96: 0 | J96: 23112 | K96: 1625 | L96: 2284 | M96: 27021 | N96: 17946 | O96: 13 | P96: 398 | Q96: 154 | R96: 74 | S96: 3883 | U96: 3637 | V96: 0 | X96: 246 | Y96: 124 | Z96: -1 | AB96: 369 | AD96: -820 | AG96: -5150 | AJ96: 4402 | AL96: 35904 | AO96: 7498 | AP96: 21.25 | AS96: 32221 | AT96: 75437 | AU96: 0 | AV96: 22613 | AW96: 1508 | AX96: 2382 | AY96: 26503 | AZ96: 21069 | BA96: 7 | BB96: 302 | BC96: 49 | BD96: 29 | BE96: 4157 | BG96: 3509 | BH96: 0 | BJ96: 648 | BK96: 44 | BL96: 0 | BM96: -30 | BN96: 4 | BO96: 666 | BQ96: -127 | BW96: 5083 | BY96: 37974 | CD96: 21.75 | CE96: 9.28 | CJ96: 16561 | CK96: 0 | CL96: 18091.88089 | CM96: 17110.43362 | CO96: 17110.43362 | CQ96: 17946 | CR96: 105.7833079 | CS96: 28 | CT96: -8112 | CU96: 2037 | CV96: 697 | CW96: 0
A97: 272 | B97: Kokkola | C97: 47570 | D97: 21 | G97: 336350 | H97: 556892 | I97: -495 | J97: 153250 | K97: 14686 | L97: 14172 | M97: 182108 | N97: 78907 | O97: 259 | P97: 5679 | Q97: 437 | R97: 4753 | S97: 30242 | U97: 36786 | V97: -373 | X97: -6917 | Y97: -624 | Z97: -231 | AB97: -7772 | AD97: 51456 | AG97: -60997 | AJ97: 102496 | AL97: 483081 | AO97: 47723 | AP97: 21.5 | AS97: 358041 | AT97: 579936 | AU97: -67 | AV97: 156556 | AW97: 12923 | AX97: 14432 | AY97: 183911 | AZ97: 86936 | BA97: 176 | BB97: 5632 | BC97: 1192 | BD97: 157 | BE97: 44464 | BG97: 40395 | BH97: -52 | BJ97: 4017 | BK97: 103 | BL97: 92 | BM97: -1296 | BN97: -35 | BO97: 2697 | BQ97: 55287 | BW97: 80324 | BY97: 461743 | CD97: 21.75 | CE97: 9.28 | CJ97: 66787 | CK97: 0 | CL97: 86990.13575 | CM97: 86450.54871 | CO97: 86450.54871 | CQ97: 78907 | CR97: -340.0880426 | CS97: -4069 | CT97: -53587 | CU97: 1391 | CV97: 11215 | CW97: 264
B98: KOKO MAA (Manner-Suomi) | C98: 5458325 | D98: 19.85 | G98: 23476833 | H98: 49847855 | I98: 59655 | J98: 18443219 | K98: 1638497 | L98: 1581155 | M98: 21662871 | N98: 9442539 | O98: 89280 | P98: 524605 | Q98: 235166 | R98: 98989 | S98: 4449264 | U98: 3816180 | V98: 128426 | X98: 761510 | Y98: -66137 | Z98: -26951 | AB98: 668422 | AD98: 9192259 | AG98: -5369920 | AJ98: 6589264 | AL98: 32689492 | AO98: 5474083 | AP98: 19.89 | AS98: 23891978 | AT98: 50389944 | AU98: 68081 | AV98: 18807344 | AW98: 1539341 | AX98: 1640918 | AY98: 21987603 | AZ98: 10050212 | BA98: 77076 | BB98: 461683 | BC98: 186106 | BD98: 69647 | BE98: 5294232 | BG98: 3936135 | BH98: 322374 | BJ98: 1680471 | BK98: -15533 | BL98: 68562 | BM98: -43947 | BN98: -32889 | BO98: 1519540 | BQ98: 10805452 | BW98: 6826757 | BY98: 33709261 | CD98: 19.92 | CE98: 7.45 | CJ98: 7374694 | CK98: 20000 | CL98: 8501912.987 | CM98: 8201794.861 | CO98: 8201794.861 | CQ98: 9442539 | CR98: 9132.171 | CS98: -635925 | CT98: -7001117 | CU98: 173789 | CV98: 1186717 | CW98: -25879
A99: 273 | B99: Kolari | C99: 3848 | D99: 20 | G99: 15992 | H99: 37756 | I99: 0 | J99: 10300 | K99: 683 | L99: 3234 | M99: 14217 | N99: 12901 | O99: 5 | P99: 225 | Q99: 59 | R99: 37 | S99: 5111 | U99: 3083 | V99: 40 | X99: 2068 | Y99: -6 | Z99: -14 | AB99: 2048 | AD99: 5972 | AG99: -3058 | AJ99: 4900 | AL99: 13834 | AO99: 3827 | AP99: 20 | AS99: 14886 | AT99: 37908 | AU99: 0 | AV99: 10199 | AW99: 630 | AX99: 3097 | AY99: 13926 | AZ99: 14194 | BA99: 6 | BB99: 187 | BC99: 52 | BD99: 18 | BE99: 4907 | BG99: 3109 | BH99: 0 | BJ99: 1798 | BK99: 0 | BL99: 7 | BM99: -4 | BN99: -11 | BO99: 1776 | BQ99: 8490 | BW99: 4642 | BY99: 12473 | CD99: 20 | CE99: 7.53 | CJ99: 10196 | CK99: 0 | CL99: 14368.65125 | CM99: 14352.11688 | CO99: 14352.11688 | CQ99: 12901 | CR99: 109.8926065 | CS99: -48 | CT99: -3719 | CU99: 174 | CV99: 123 | CW99: 0
A100: 275 | B100: Konnevesi | C100: 2757 | D100: 21.5 | G100: 8554 | H100: 24917 | I100: 3 | J100: 7372 | K100: 703 | L100: 767 | M100: 8842 | N100: 9434 | O100: 212 | P100: 136 | Q100: 5 | R100: 35 | S100: 1942 | U100: 1276 | V100: -11 | X100: 655 | Y100: -128 | Z100: 0 | AB100: 527 | AD100: 3292 | AG100: -5924 | AJ100: 2572 | AL100: 15282 | AO100: 2753 | AP100: 21.5 | AS100: 9089 | AT100: 26265 | AU100: 0 | AV100: 7270 | AW100: 675 | AX100: 772 | AY100: 8717 | AZ100: 9929 | BA100: 135 | BB100: 156 | BC100: 5 | BD100: 32 | BE100: 1402 | BG100: 1410 | BH100: 0 | BJ100: -8 | BK100: -30 | BL100: 23 | BM100: 0 | BN100: 0 | BO100: -61 | BQ100: 3640 | BW100: 3247 | BY100: 23472 | CD100: 21.5 | CE100: 9.03 | CJ100: 7998 | CK100: 0 | CL100: 8999.532681 | CM100: 8570.32975 | CO100: 8570.32975 | CQ100: 9434 | CR100: -40.55753194 | CS100: 0 | CT100: -7140 | CU100: 1 | CV100: 255 | CW100: 63
A101: 276 | B101: Kontiolahti | C101: 14827 | D101: 20.5 | G101: 30269 | H101: 95585 | I101: 14 | J101: 45667 | K101: 2104 | L101: 2511 | M101: 50282 | N101: 24124 | O101: 29 | P101: 1163 | Q101: 298 | R101: 26 | S101: 8242 | U101: 5482 | V101: 0 | X101: 2760 | Y101: 59 | Z101: 1 | AB101: 2820 | AD101: 20477 | AG101: -5985 | AJ101: 7354 | AL101: 60170 | AO101: 14806 | AP101: 20.5 | AS101: 34020 | AT101: 96881 | AU101: 18 | AV101: 46273 | AW101: 2005 | AX101: 2601 | AY101: 50879 | AZ101: 22092 | BA101: 26 | BB101: 1117 | BC101: 280 | BD101: 5 | BE101: 9312 | BG101: 5631 | BH101: 7 | BJ101: 3688 | BK101: 89 | BL101: 0 | BM101: -4 | BN101: 4 | BO101: 3777 | BQ101: 24094 | BW101: 14318 | BY101: 65149 | CD101: 20.5 | CE101: 8.03 | CJ101: 21930 | CK101: 0 | CL101: 23443.6051 | CM101: 22293.23588 | CO101: 22293.23588 | CQ101: 24124 | CR101: -27.63690095 | CS101: -384 | CT101: -6426 | CU101: 42 | CV101: 447 | CW101: -835
A102: 280 | B102: Korsnäs | C102: 2201 | D102: 21 | G102: 7898 | H102: 20198 | I102: 0 | J102: 5014 | K102: 969 | L102: 648 | M102: 6631 | N102: 6345 | O102: 2 | P102: 51 | Q102: 22 | R102: 14 | S102: 635 | U102: 1199 | V102: 0 | X102: -564 | Y102: 0 | Z102: 0 | AB102: -564 | AD102: 7889 | AG102: -1866 | AJ102: 892 | AL102: 2852 | AO102: 2171 | AP102: 21 | AS102: 7869 | AT102: 19768 | AU102: 0 | AV102: 5467 | AW102: 882 | AX102: 694 | AY102: 7043 | AZ102: 7121 | BA102: 0 | BB102: 58 | BC102: 19 | BD102: 23 | BE102: 2203 | BG102: 1312 | BH102: 0 | BJ102: 891 | BK102: 0 | BL102: 0 | BM102: 0 | BN102: 0 | BO102: 891 | BQ102: 8844 | BW102: 1492 | BY102: 3834 | CD102: 21 | CE102: 8.53 | CJ102: 5701 | CK102: 0 | CL102: 6824.470678 | CM102: 6451.208499 | CO102: 6451.208499 | CQ102: 6345 | CR102: -844.5480292 | CS102: -23 | CT102: -2757 | CU102: 140 | CV102: 295 | CW102: 5
A103: 284 | B103: Koski tl | C103: 2399 | D103: 19.5 | G103: 9309 | H103: 22341 | I103: 1 | J103: 6010 | K103: 379 | L103: 480 | M103: 6869 | N103: 7425 | O103: 20 | P103: 41 | Q103: 25 | R103: 4 | S103: 1259 | U103: 986 | V103: 0 | X103: 273 | Y103: 23 | Z103: 0 | AB103: 296 | AD103: 3810 | AG103: -917 | AJ103: 3285 | AL103: 2358 | AO103: 2416 | AP103: 19.5 | AS103: 9567 | AT103: 22621 | AU103: 0 | AV103: 5938 | AW103: 374 | AX103: 475 | AY103: 6787 | AZ103: 7515 | BA103: 18 | BB103: 19 | BC103: 23 | BD103: 2 | BE103: 1266 | BG103: 1026 | BH103: 0 | BJ103: 240 | BK103: 127 | BL103: 0 | BM103: 0 | BN103: 0 | BO103: 367 | BQ103: 4359 | BW103: 3010 | BY103: 1760 | CD103: 19.5 | CE103: 7.03 | CJ103: 6324 | CK103: 0 | CL103: 7348.382786 | CM103: 7183.21518 | CO103: 7183.21518 | CQ103: 7425 | CR103: 1024.622475 | CS103: 13 | CT103: -1863 | CU103: 264 | CV103: 121 | CW103: -32
A104: 285 | B104: Kotka | C104: 54319 | D104: 20.5 | G104: 263790 | H104: 526583 | I104: 2147 | J104: 185520 | K104: 10334 | L104: 15224 | M104: 211078 | N104: 114086 | O104: 232 | P104: 9689 | Q104: 322 | R104: 2439 | S104: 51533 | U104: 52390 | V104: 0 | X104: -857 | Y104: -1148 | Z104: -1712 | AB104: -3717 | AD104: -48525 | AG104: -49123 | AJ104: 26194 | AL104: 574971 | AO104: 54187 | AP104: 20.5 | AS104: 282298 | AT104: 538861 | AU104: 4292 | AV104: 185958 | AW104: 8225 | AX104: 15395 | AY104: 209578 | AZ104: 123450 | BA104: 119 | BB104: 8381 | BC104: 129 | BD104: 3041 | BE104: 68154 | BG104: 56064 | BH104: 159 | BJ104: 12249 | BK104: 0 | BL104: 2547 | BM104: -185 | BN104: -2760 | BO104: 6757 | BQ104: -41678 | BW104: 53238 | BY104: 594337 | CD104: 21.5 | CE104: 9.03 | CJ104: 75460 | CK104: 0 | CL104: 106481.1603 | CM104: 110114.8524 | CO104: 110114.8524 | CQ104: 114086 | CR104: -982.6727624 | CS104: 1201 | CT104: -63637 | CU104: 189 | CV104: 10987 | CW104: 64
A105: 286 | B105: Kouvola | C105: 85855 | D105: 20.5 | G105: 295395 | H105: 746779 | I105: 1143 | J105: 288291 | K105: 19392 | L105: 25060 | M105: 332743 | N105: 166672 | O105: 289 | P105: 6737 | Q105: 6558 | R105: 871 | S105: 47102 | U105: 37615 | V105: 0 | X105: 9487 | Y105: -3106 | Z105: 61 | AB105: 6442 | AD105: 2829 | AG105: -42479 | AJ105: 72658 | AL105: 347634 | AO105: 85306 | AP105: 20.75 | AS105: 291984 | AT105: 748987 | AU105: 122 | AV105: 294657 | AW105: 17467 | AX105: 28776 | AY105: 340900 | AZ105: 175852 | BA105: 343 | BB105: 5743 | BC105: 4000 | BD105: 1360 | BE105: 55624 | BG105: 37804 | BH105: 1492 | BJ105: 19312 | BK105: 2 | BL105: 2184 | BM105: -187 | BN105: -40 | BO105: 16903 | BQ105: 19071 | BW105: 58095 | BY105: 333587 | CD105: 20.75 | CE105: 8.28 | CJ105: 146689 | CK105: 0 | CL105: 169315.38 | CM105: 164686.8053 | CO105: 164686.8053 | CQ105: 166672 | CR105: -390.9063686 | CS105: -6252 | CT105: -54219 | CU105: 2165 | CV105: 9729 | CW105: 17
A106: 287 | B106: Kristiinankaupunki | C106: 6793 | D106: 21.5 | G106: 23289 | H106: 61144 | I106: 0 | J106: 20266 | K106: 1185 | L106: 1788 | M106: 23239 | N106: 19391 | O106: 8 | P106: 628 | Q106: 48 | R106: 120 | S106: 4082 | U106: 2962 | V106: 0 | X106: 1120 | Y106: 0 | Z106: 0 | AB106: 1120 | AD106: 1965 | AG106: -3228 | AJ106: 4856 | AL106: 30938 | AO106: 6727 | AP106: 21.5 | AS106: 24125 | AT106: 58948 | AU106: 0 | AV106: 19971 | AW106: 1257 | AX106: 2026 | AY106: 23254 | AZ106: 20967 | BA106: 2 | BB106: 502 | BC106: 67 | BD106: 61 | BE106: 8903 | BG106: 3057 | BH106: 0 | BJ106: 5846 | BK106: 5 | BL106: 0 | BM106: -16 | BN106: 0 | BO106: 5835 | BQ106: 7763 | BW106: 5602 | BY106: 27071 | CD106: 21.5 | CE106: 9.03 | CJ106: 16902 | CK106: 0 | CL106: 20843.24101 | CM106: 20052.91895 | CO106: 20052.91895 | CQ106: 19391 | CR106: 478.7706442 | CS106: -2755 | CT106: -855 | CU106: 0 | CV106: 2756 | CW106: 0
A107: 288 | B107: Kruunupyy | C107: 6682 | D107: 20.75 | G107: 19740 | H107: 55775 | I107: 25 | J107: 19049 | K107: 1504 | L107: 2224 | M107: 22777 | N107: 16004 | O107: 24 | P107: 442 | Q107: 97 | R107: 20 | S107: 2430 | U107: 2297 | V107: 170 | X107: 303 | Y107: 124 | Z107: 0 | AB107: 427 | AD107: 6821 | AG107: -4695 | AJ107: 2720 | AL107: 24292 | AO107: 6620 | AP107: 20.75 | AS107: 20736 | AT107: 56429 | AU107: 8 | AV107: 18792 | AW107: 1509 | AX107: 2037 | AY107: 22338 | AZ107: 16499 | BA107: 14 | BB107: 406 | BC107: 195 | BD107: 19 | BE107: 2936 | BG107: 2488 | BH107: -1 | BJ107: 447 | BK107: 141 | BL107: 0 | BM107: 0 | BN107: -1 | BO107: 587 | BQ107: 7276 | BW107: 4711 | BY107: 24642 | CD107: 21.25 | CE107: 8.78 | CJ107: 15567 | CK107: 0 | CL107: 16560.55015 | CM107: 15909.28051 | CO107: 15909.28051 | CQ107: 16004 | CR107: -298.9826042 | CS107: -170 | CT107: -3531 | CU107: 120 | CV107: 265 | CW107: 0
A108: 290 | B108: Kuhmo | C108: 8806 | D108: 21.5 | G108: 49095 | H108: 106887 | I108: 0 | J108: 24548 | K108: 2949 | L108: 2083 | M108: 29580 | N108: 32479 | O108: 43 | P108: 300 | Q108: 884 | R108: 290 | S108: 4604 | U108: 4231 | V108: 44 | X108: 417 | Y108: 1 | Z108: -118 | AB108: 300 | AD108: 6370 | AG108: -8404 | AJ108: 24861 | AL108: 27624 | AO108: 8647 | AP108: 21.5 | AS108: 48786 | AT108: 105791 | AU108: 0 | AV108: 23817 | AW108: 2734 | AX108: 2156 | AY108: 28707 | AZ108: 32534 | BA108: 36 | BB108: 245 | BC108: 1433 | BD108: 441 | BE108: 5019 | BG108: 4329 | BH108: 294 | BJ108: 984 | BK108: -48 | BL108: 0 | BM108: -28 | BN108: -69 | BO108: 839 | BQ108: 7259 | BW108: 26769 | BY108: 33946 | CD108: 21.5 | CE108: 9.03 | CJ108: 26933 | CK108: 0 | CL108: 32204.9834 | CM108: 31514.991 | CO108: 31514.991 | CQ108: 32479 | CR108: -38.602502 | CS108: 20 | CT108: -9022 | CU108: 414 | CV108: 244 | CW108: -68
A109: 291 | B109: Kuhmoinen | C109: 2334 | D109: 20.75 | G109: 4716 | H109: 20932 | I109: 0 | J109: 5917 | K109: 906 | L109: 1332 | M109: 8155 | N109: 10316 | O109: 105 | P109: 56 | Q109: 50 | R109: 90 | S109: 2264 | U109: 1396 | V109: -2 | X109: 866 | Y109: -9 | Z109: -2 | AB109: 855 | AD109: 4056 | AG109: -1752 | AJ109: 3562 | AL109: 5395 | AO109: 2286 | AP109: 20.75 | AS109: 4341 | AT109: 21187 | AU109: 1 | AV109: 6063 | AW109: 861 | AX109: 1343 | AY109: 8267 | AZ109: 10594 | BA109: 120 | BB109: 48 | BC109: 83 | BD109: 71 | BE109: 2100 | BG109: 1638 | BH109: 3 | BJ109: 465 | BK109: 0 | BL109: 2 | BM109: 0 | BN109: 89 | BO109: 552 | BQ109: 4452 | BW109: 6170 | BY109: 8266 | CD109: 20.75 | CE109: 8.28 | CJ109: 7978 | CK109: 0 | CL109: 9184.371042 | CM109: 8338.758772 | CO109: 8338.758772 | CQ109: 10316 | CR109: 22.414356 | CS109: 15 | CT109: -3285 | CU109: 0 | CV109: 51 | CW109: 1
A110: 297 | B110: Kuopio | C110: 112117 | D110: 20.5 | G110: 545201 | H110: 1076403 | I110: 245 | J110: 369418 | K110: 21790 | L110: 38175 | M110: 429383 | N110: 226189 | O110: 905 | P110: 16785 | Q110: 2587 | R110: 715 | S110: 110607 | U110: 99054 | V110: 309 | X110: 11862 | Y110: -3023 | Z110: -968 | AB110: 7871 | AD110: -40109 | AG110: -111864 | AJ110: 167916 | AL110: 908508 | AO110: 117740 | AP110: 20.5 | AS110: 557569 | AT110: 1092468 | AU110: 418 | AV110: 372394 | AW110: 20477 | AX110: 36264 | AY110: 429135 | AZ110: 244730 | BA110: 403 | BB110: 14905 | BC110: 2576 | BD110: 641 | BE110: 126816 | BG110: 99407 | BH110: 1392 | BJ110: 28801 | BK110: -99 | BL110: 906 | BM110: -2417 | BN110: -1448 | BO110: 23931 | BQ110: -15766 | BW110: 186817 | BY110: 906583 | CD110: 20.5 | CE110: 8.03 | CJ110: 128128 | CK110: 0 | CL110: 197764.6887 | CM110: 191857.7447 | CO110: 191857.7447 | CQ110: 226189 | CR110: -2310.481778 | CS110: -4294 | CT110: -140518 | CU110: 1450 | CV110: 19761 | CW110: 9
A111: 300 | B111: Kuortane | C111: 3715 | D111: 21 | G111: 18955 | H111: 41184 | I111: 10 | J111: 9670 | K111: 611 | L111: 720 | M111: 11001 | N111: 13254 | O111: 22 | P111: 107 | Q111: 91 | R111: 76 | S111: 1965 | U111: 1927 | V111: 0 | X111: 38 | Y111: -5 | Z111: -11 | AB111: 22 | AD111: 1212 | AG111: -1850 | AJ111: 3023 | AL111: 14639 | AO111: 3690 | AP111: 21 | AS111: 28594 | AT111: 50665 | AU111: 3 | AV111: 9655 | AW111: 602 | AX111: 855 | AY111: 11112 | AZ111: 14243 | BA111: 19 | BB111: 97 | BC111: 27 | BD111: 17 | BE111: 3218 | BG111: 1918 | BH111: 0 | BJ111: 1300 | BK111: -31 | BL111: 0 | BM111: 0 | BN111: -13 | BO111: 1256 | BQ111: 2696 | BW111: 3174 | BY111: 15320 | CD111: 21 | CE111: 8.53 | CJ111: 10844 | CK111: 0 | CL111: 13457.05779 | CM111: 12947.07445 | CO111: 12947.07445 | CQ111: 13254 | CR111: 77.2672661 | CS111: -33 | CT111: -2687 | CU111: 58 | CV111: 207 | CW111: 39
A112: 301 | B112: Kurikka | C112: 21734 | D112: 19 | G112: 62198 | H112: 137356 | I112: 14 | J112: 35681 | K112: 2065 | L112: 2169 | M112: 39915 | N112: 35747 | O112: 439 | P112: 1239 | Q112: 9229 | R112: 75 | S112: 8872 | U112: 9126 | V112: 0 | X112: -254 | Y112: -40 | Z112: 32 | AB112: -262 | AD112: 30170 | AG112: -5259 | AJ112: 35158 | AL112: 73476 | AO112: 21501 | AP112: 20 | AS112: 93598 | AT112: 217471 | AU112: 14 | AV112: 55388 | AW112: 3439 | AX112: 4342 | AY112: 63169 | AZ112: 66796 | BA112: 307 | BB112: 1341 | BC112: 8604 | BD112: 243 | BE112: 13433 | BG112: 16033 | BH112: 0 | BJ112: -2600 | BK112: 59 | BL112: 0 | BM112: -68 | BN112: -61 | BO112: -2670 | BQ112: 13876 | BW112: 46398 | BY112: 132104 | CD112: 21 | CE112: 8.53 | CJ112: 31058 | CK112: 0 | CL112: 61228.02691 | CM112: 59889.89844 | CO112: 59889.89844 | CQ112: 35747 | CR112: 164.3221343 | CS112: -54 | CT112: -17529 | CU112: 173 | CV112: 2945 | CW112: 207
A113: 304 | B113: Kustavi | C113: 895 | D113: 19.25 | G113: 4617 | H113: 10261 | I113: 1 | J113: 2502 | K113: 167 | L113: 1359 | M113: 4028 | N113: 2363 | O113: 0 | P113: 69 | Q113: 12 | R113: 6 | S113: 685 | U113: 463 | V113: 0 | X113: 222 | Y113: 0 | Z113: 0 | AB113: 222 | AD113: 2573 | AG113: -639 | AJ113: 840 | AL113: 4055 | AO113: 908 | AP113: 19.25 | AS113: 4652 | AT113: 10297 | AU113: 0 | AV113: 2684 | AW113: 149 | AX113: 1400 | AY113: 4233 | AZ113: 2492 | BA113: 0 | BB113: 51 | BC113: 10 | BD113: 1 | BE113: 1038 | BG113: 489 | BH113: 0 | BJ113: 549 | BK113: -407 | BL113: 0 | BM113: 0 | BN113: 0 | BO113: 142 | BQ113: 2716 | BW113: 1010 | BY113: 4353 | CD113: 19 | CE113: 6.53 | CJ113: 2254 | CK113: 0 | CL113: 2366.901974 | CM113: 2317.827289 | CO113: 2317.827289 | CQ113: 2363 | CR113: -259.010336 | CS113: 0 | CT113: -1061 | CU113: 63 | CV113: 9 | CW113: 0
A114: 305 | B114: Kuusamo | C114: 15688 | D114: 20 | G114: 44788 | H114: 134359 | I114: 20 | J114: 42246 | K114: 3595 | L114: 6873 | M114: 52714 | N114: 44846 | O114: 51 | P114: 1102 | Q114: 1677 | R114: 124 | S114: 8511 | U114: 7241 | V114: 0 | X114: 1270 | Y114: 618 | Z114: 9 | AB114: 1897 | AD114: 14617 | AG114: -6032 | AJ114: 30402 | AL114: 59721 | AO114: 15533 | AP114: 20 | AS114: 49234 | AT114: 136667 | AU114: 1 | AV114: 41662 | AW114: 3304 | AX114: 6828 | AY114: 51794 | AZ114: 46600 | BA114: -29 | BB114: 953 | BC114: 1726 | BD114: 237 | BE114: 11469 | BG114: 8409 | BH114: 0 | BJ114: 3060 | BK114: 538 | BL114: 15 | BM114: -147 | BN114: 2 | BO114: 3438 | BQ114: 18557 | BW114: 33441 | BY114: 60769 | CD114: 20 | CE114: 7.53 | CJ114: 40265 | CK114: 0 | CL114: 46150.12209 | CM114: 45023.71289 | CO114: 45023.71289 | CQ114: 44846 | CR114: -24.36938594 | CS114: -1396 | CT114: -9362 | CU114: 753 | CV114: 1441 | CW114: -7
A115: 312 | B115: Kyyjärvi | C115: 1379 | D115: 20.5 | G115: 9829 | H115: 18019 | I115: 2 | J115: 3519 | K115: 723 | L115: 285 | M115: 4527 | N115: 4528 | O115: 16 | P115: 62 | Q115: 461 | R115: 27 | S115: 1255 | U115: 978 | V115: 0 | X115: 277 | Y115: -7 | Z115: 1 | AB115: 271 | AD115: 1024 | AG115: -3105 | AJ115: 6347 | AL115: 13813 | AO115: 1375 | AP115: 20.5 | AS115: 9707 | AT115: 18494 | AU115: 0 | AV115: 3083 | AW115: 541 | AX115: 283 | AY115: 3907 | AZ115: 4259 | BA115: 22 | BB115: 44 | BC115: 112 | BD115: 4 | BE115: -535 | BG115: 1080 | BH115: 0 | BJ115: -1615 | BK115: 0 | BL115: 0 | BM115: 0 | BN115: 0 | BO115: -1615 | BQ115: -393 | BW115: 6580 | BY115: 14499 | CD115: 21 | CE115: 8.53 | CJ115: 4298 | CK115: 0 | CL115: 4388.210596 | CM115: 4193.680938 | CO115: 4193.680938 | CQ115: 4528 | CR115: -13.697662 | CS115: -3 | CT115: -1332 | CU115: 23 | CV115: 5 | CW115: 102
A116: 316 | B116: Kärkölä | C116: 4604 | D116: 21.75 | G116: 18128 | H116: 41180 | I116: 0 | J116: 14315 | K116: 627 | L116: 1228 | M116: 16170 | N116: 7954 | O116: 23 | P116: 122 | Q116: 6 | R116: 83 | S116: 896 | U116: 1828 | V116: -9 | X116: -941 | Y116: 0 | Z116: -6 | AB116: -947 | AD116: -4440 | AG116: -2335 | AJ116: 2390 | AL116: 17292 | AO116: 4540 | AP116: 21.75 | AS116: 17070 | AT116: 40138 | AU116: 0 | AV116: 14435 | AW116: 625 | AX116: 1163 | AY116: 16223 | AZ116: 8576 | BA116: 4 | BB116: 151 | BC116: 28 | BD116: 13 | BE116: 1599 | BG116: 1610 | BH116: 4842 | BJ116: 4831 | BK116: 1 | BL116: 10 | BM116: 0 | BN116: -10 | BO116: 4812 | BQ116: 333 | BW116: 2686 | BY116: 10567 | CD116: 21.75 | CE116: 9.28 | CJ116: 8022 | CK116: 0 | CL116: 8205.491103 | CM116: 7666.843021 | CO116: 7666.843021 | CQ116: 7954 | CR116: -3696.401258 | CS116: -4 | CT116: -2444 | CU116: 35 | CV116: 1341 | CW116: 361
A117: 317 | B117: Kärsämäki | C117: 2658 | D117: 21.5 | G117: 11066 | H117: 27568 | I117: 7 | J117: 6235 | K117: 476 | L117: 504 | M117: 7215 | N117: 10793 | O117: 28 | P117: 190 | Q117: 530 | R117: 77 | S117: 1768 | U117: 1364 | V117: 0 | X117: 404 | Y117: -2 | Z117: 74 | AB117: 476 | AD117: 4158 | AG117: -1164 | AJ117: 9866 | AL117: 18919 | AO117: 2655 | AP117: 21.5 | AS117: 24223 | AT117: 40199 | AU117: 0 | AV117: 6065 | AW117: 500 | AX117: 498 | AY117: 7063 | AZ117: 11223 | BA117: 8 | BB117: 179 | BC117: 451 | BD117: 225 | BE117: 2329 | BG117: 1328 | BH117: 0 | BJ117: 1001 | BK117: -86 | BL117: 2 | BM117: -9 | BN117: 2 | BO117: 906 | BQ117: 4960 | BW117: 11371 | BY117: 18529 | CD117: 21.5 | CE117: 9.03 | CJ117: 9676 | CK117: 0 | CL117: 11174.81898 | CM117: 11185.86669 | CO117: 11185.86669 | CQ117: 10793 | CR117: 85.9839601 | CS117: -149 | CT117: -1014 | CU117: 7 | CV117: 153 | CW117: -3
A118: 398 | B118: Lahti | C118: 118743 | D118: 20.25 | G118: 541891 | H118: 1036673 | I118: 118 | J118: 336774 | K118: 23485 | L118: 32374 | M118: 392633 | N118: 226483 | O118: 573 | P118: 20896 | Q118: 4962 | R118: 401 | S118: 104714 | U118: 102951 | V118: -495 | X118: 1268 | Y118: -3357 | Z118: 1026 | AB118: -1063 | AD118: 91284 | AG118: -148697 | AJ118: 143912 | AL118: 942838 | AO118: 119452 | AP118: 20.25 | AS118: 558052 | AT118: 1118146 | AU118: 36 | AV118: 390502 | AW118: 22132 | AX118: 36543 | AY118: 449177 | AZ118: 265390 | BA118: 1138 | BB118: 21399 | BC118: 666 | BD118: 2801 | BE118: 127689 | BG118: 117466 | BH118: -135 | BJ118: 10088 | BK118: -10 | BL118: 5346 | BM118: -1079 | BN118: 390 | BO118: 4043 | BQ118: 132152 | BW118: 113155 | BY118: 989489 | CD118: 20.25 | CE118: 7.78 | CJ118: 134371 | CK118: 0 | CL118: 189230.0761 | CM118: 185476.5291 | CO118: 185476.5291 | CQ118: 226483 | CR118: -3867.524904 | CS118: -5551 | CT118: -167825 | CU118: 574 | CV118: 9369 | CW118: 519
A119: 399 | B119: Laihia | C119: 8090 | D119: 21.5 | G119: 19646 | H119: 60379 | I119: 0 | J119: 27383 | K119: 1090 | L119: 1352 | M119: 29825 | N119: 13595 | O119: 19 | P119: 322 | Q119: 142 | R119: 101 | S119: 2357 | U119: 3096 | V119: 0 | X119: -739 | Y119: -21 | Z119: 17 | AB119: -743 | AD119: 980 | AG119: -6744 | AJ119: 2663 | AL119: 27854 | AO119: 8139 | AP119: 21.5 | AS119: 19205 | AT119: 61821 | AU119: 0 | AV119: 27054 | AW119: 933 | AX119: 1227 | AY119: 29214 | AZ119: 14938 | BA119: 7 | BB119: 285 | BC119: 136 | BD119: 63 | BE119: 1267 | BG119: 2897 | BH119: 0 | BJ119: -1630 | BK119: 21 | BL119: 0 | BM119: -28 | BN119: 4 | BO119: -1633 | BQ119: -423 | BW119: 3025 | BY119: 31671 | CD119: 21.75 | CE119: 9.28 | CJ119: 12512 | CK119: 0 | CL119: 15122.84175 | CM119: 14812.87557 | CO119: 14812.87557 | CQ119: 13595 | CR119: -117.6006545 | CS119: -77 | CT119: -5515 | CU119: 253 | CV119: 500 | CW119: 0
A120: 400 | B120: Laitila | C120: 8520 | D120: 20.75 | G120: 36875 | H120: 80389 | I120: 10 | J120: 25205 | K120: 2160 | L120: 1890 | M120: 29255 | N120: 19164 | O120: 13 | P120: 272 | Q120: 33 | R120: -14 | S120: 4702 | U120: 4113 | V120: 0 | X120: 589 | Y120: 7 | Z120: -98 | AB120: 498 | AD120: 7427 | AG120: -8292 | AJ120: 3526 | AL120: 31506 | AO120: 8520 | AP120: 20.75 | AS120: 37761 | AT120: 81043 | AU120: 17 | AV120: 24978 | AW120: 1928 | AX120: 1778 | AY120: 28684 | AZ120: 20488 | BA120: 5 | BB120: 185 | BC120: 41 | BD120: -30 | BE120: 5797 | BG120: 4354 | BH120: 0 | BJ120: 1443 | BK120: 0 | BL120: 0 | BM120: 30 | BN120: -118 | BO120: 1355 | BQ120: 9292 | BW120: 3850 | BY120: 32541 | CD120: 20.75 | CE120: 8.28 | CJ120: 15878 | CK120: 0 | CL120: 20468.16043 | CM120: 20053.66393 | CO120: 20053.66393 | CQ120: 19164 | CR120: 303.7892383 | CS120: -219 | CT120: -6121 | CU120: 587 | CV120: 171 | CW120: -18
A121: 407 | B121: Lapinjärvi | C121: 2774 | D121: 20.5 | G121: 10461 | H121: 24587 | I121: -1 | J121: 7854 | K121: 417 | L121: 553 | M121: 8824 | N121: 6623 | O121: 7 | P121: 258 | Q121: 794 | R121: 29 | S121: 1834 | U121: 1446 | V121: 18 | X121: 406 | Y121: 0 | Z121: 0 | AB121: 406 | AD121: 940 | AG121: -675 | AJ121: 1381 | AL121: 12523 | AO121: 2739 | AP121: 20.5 | AS121: 9028 | AT121: 24905 | AU121: 0 | AV121: 7551 | AW121: 406 | AX121: 545 | AY121: 8502 | AZ121: 7065 | BA121: 7 | BB121: 206 | BC121: 811 | BD121: 28 | BE121: 253 | BG121: 1476 | BH121: 0 | BJ121: -1223 | BK121: -1 | BL121: 0 | BM121: 0 | BN121: 0 | BO121: -1224 | BQ121: -421 | BW121: 1101 | BY121: 12629 | CD121: 20.5 | CE121: 8.03 | CJ121: 6931 | CK121: 0 | CL121: 6800.818666 | CM121: 6582.766835 | CO121: 6582.766835 | CQ121: 6623 | CR121: -311.8335016 | CS121: -38 | CT121: -1046 | CU121: 1 | CV121: 471 | CW121: 0
A122: 402 | B122: Lapinlahti | C122: 9982 | D122: 20.25 | G122: 34508 | H122: 92586 | I122: 115 | J122: 25822 | K122: 2008 | L122: 2228 | M122: 30058 | N122: 32980 | O122: 27 | P122: 685 | Q122: 731 | R122: 56 | S122: 4962 | U122: 5499 | V122: 3 | X122: -534 | Y122: -91 | Z122: 38 | AB122: -587 | AD122: 249 | AG122: -5880 | AJ122: 5141 | AL122: 58639 | AO122: 9882 | AP122: 20.25 | AS122: 35233 | AT122: 93723 | AU122: 109 | AV122: 25300 | AW122: 1707 | AX122: 2223 | AY122: 29230 | AZ122: 33673 | BA122: 28 | BB122: 554 | BC122: 418 | BD122: 50 | BE122: 4241 | BG122: 5565 | BH122: 43 | BJ122: -1281 | BK122: -4 | BL122: 70 | BM122: 16 | BN122: 30 | BO122: -1309 | BQ122: -1062 | BW122: 3438 | BY122: 59777 | CD122: 20.25 | CE122: 7.78 | CJ122: 27251 | CK122: 0 | CL122: 31099.25926 | CM122: 29858.92902 | CO122: 29858.92902 | CQ122: 32980 | CR122: 1.90522026 | CS122: 56 | CT122: -9085 | CU122: 302 | CV122: 855 | CW122: -16
A123: 403 | B123: Lappajärvi | C123: 3215 | D123: 21 | G123: 16195 | H123: 36111 | I123: 9 | J123: 8254 | K123: 1116 | L123: 923 | M123: 10293 | N123: 12153 | O123: 19 | P123: 176 | Q123: 47 | R123: 12 | S123: 2417 | U123: 1829 | V123: 0 | X123: 588 | Y123: -12 | Z123: -2 | AB123: 574 | AD123: 1662 | AG123: -3654 | AJ123: 3283 | AL123: 17239 | AO123: 3176 | AP123: 21 | AS123: 16234 | AT123: 36321 | AU123: 5 | AV123: 8424 | AW123: 1003 | AX123: 927 | AY123: 10354 | AZ123: 12572 | BA123: 9 | BB123: 163 | BC123: 32 | BD123: 13 | BE123: 2709 | BG123: 1667 | BH123: 0 | BJ123: 1042 | BK123: 9 | BL123: 0 | BM123: 6 | BN123: 7 | BO123: 1064 | BQ123: 2732 | BW123: 3866 | BY123: 17969 | CD123: 21 | CE123: 8.53 | CJ123: 8898 | CK123: 0 | CL123: 10748.97287 | CM123: 10767.56218 | CO123: 10767.56218 | CQ123: 12153 | CR123: -31.13105 | CS123: 1 | CT123: -2244 | CU123: 180 | CV123: 7 | CW123: 2
A124: 405 | B124: Lappeenranta | C124: 72875 | D124: 21 | G124: 323407 | H124: 653464 | I124: 328 | J124: 249786 | K124: 23032 | L124: 24144 | M124: 296962 | N124: 115039 | O124: 446 | P124: 8577 | Q124: 517 | R124: 1147 | S124: 71192 | U124: 53279 | V124: 0 | X124: 17913 | Y124: -3167 | Z124: -205 | AB124: 14541 | AD124: 32324 | AG124: -70909 | AJ124: 44335 | AL124: 536161 | AO124: 72872 | AP124: 21 | AS124: 376468 | AT124: 693585 | AU124: 1327 | AV124: 250126 | AW124: 21482 | AX124: 24813 | AY124: 296421 | AZ124: 122300 | BA124: 218 | BB124: 7097 | BC124: 494 | BD124: 1121 | BE124: 92917 | BG124: 49567 | BH124: 0 | BJ124: 43350 | BK124: -29 | BL124: 2177 | BM124: -2087 | BN124: -662 | BO124: 38395 | BQ124: 69752 | BW124: 43894 | BY124: 520003 | CD124: 21 | CE124: 8.53 | CJ124: 90361 | CK124: 0 | CL124: 104931.1215 | CM124: 103306.1033 | CO124: 103306.1033 | CQ124: 115039 | CR124: -2233.984072 | CS124: -576 | CT124: -93568 | CU124: 2452 | CV124: 16137 | CW124: -5
A125: 408 | B125: Lapua | C125: 14609 | D125: 21 | G125: 44243 | H125: 119037 | I125: 46 | J125: 43150 | K125: 2520 | L125: 2763 | M125: 48433 | N125: 36285 | O125: 11 | P125: 1256 | Q125: 366 | R125: 26 | S125: 9066 | U125: 8314 | V125: 3 | X125: 755 | Y125: -25 | Z125: 49 | AB125: 779 | AD125: 11300 | AG125: -9993 | AJ125: 9258 | AL125: 92101 | AO125: 14575 | AP125: 21 | AS125: 43967 | AT125: 118806 | AU125: 59 | AV125: 43199 | AW125: 2207 | AX125: 2851 | AY125: 48257 | AZ125: 39415 | BA125: 13 | BB125: 1319 | BC125: 453 | BD125: 67 | BE125: 11971 | BG125: 8802 | BH125: 0 | BJ125: 3169 | BK125: 16 | BL125: -1 | BM125: -29 | BN125: -38 | BO125: 3119 | BQ125: 14497 | BW125: 10730 | BY125: 90378 | CD125: 21 | CE125: 8.53 | CJ125: 30856 | CK125: 0 | CL125: 36472.22633 | CM125: 35211.74808 | CO125: 35211.74808 | CQ125: 36285 | CR125: -71.8504634 | CS125: -594 | CT125: -9436 | CU125: 33 | CV125: 1095 | CW125: 8
A126: 410 | B126: Laukaa | C126: 18865 | D126: 21.5 | G126: 41431 | H126: 137892 | I126: 18 | J126: 58328 | K126: 2224 | L126: 4754 | M126: 65306 | N126: 40906 | O126: 50 | P126: 264 | Q126: 488 | R126: 49 | S126: 9994 | U126: 10371 | V126: 0 | X126: -377 | Y126: -947 | Z126: 0 | AB126: -1324 | AD126: -6933 | AG126: -16552 | AJ126: 4518 | AL126: 100056 | AO126: 18970 | AP126: 21.5 | AS126: 41588 | AT126: 142812 | AU126: 0 | AV126: 59865 | AW126: 2057 | AX126: 4824 | AY126: 66746 | AZ126: 43720 | BA126: 55 | BB126: 307 | BC126: 302 | BD126: 40 | BE126: 9252 | BG126: 9020 | BH126: 0 | BJ126: 232 | BK126: -8 | BL126: 22 | BM126: -120 | BN126: 0 | BO126: 82 | BQ126: -3969 | BW126: 7387 | BY126: 112039 | CD126: 21.5 | CE126: 9.03 | CJ126: 29357 | CK126: 0 | CL126: 37051.6239 | CM126: 35732.11199 | CO126: 35732.11199 | CQ126: 40906 | CR126: -52.22171375 | CS126: -511 | CT126: -19898 | CU126: 410 | CV126: 937 | CW126: 552
A127: 416 | B127: Lemi | C127: 3073 | D127: 21 | G127: 12487 | H127: 27327 | I127: 10 | J127: 9088 | K127: 513 | L127: 784 | M127: 10385 | N127: 5883 | O127: 1 | P127: 135 | Q127: 9 | R127: 6 | S127: 1307 | U127: 1026 | V127: 0 | X127: 281 | Y127: -1 | Z127: 0 | AB127: 280 | AD127: 79 | AG127: -3103 | AJ127: 1261 | AL127: 10533 | AO127: 3076 | AP127: 21 | AS127: 14123 | AT127: 29337 | AU127: 29 | AV127: 9579 | AW127: 486 | AX127: 813 | AY127: 10878 | AZ127: 6190 | BA127: 1 | BB127: 139 | BC127: 18 | BD127: 2 | BE127: 1731 | BG127: 1103 | BH127: 0 | BJ127: 628 | BK127: -29 | BL127: 0 | BM127: 0 | BN127: 0 | BO127: 599 | BQ127: 679 | BW127: 1429 | BY127: 9791 | CD127: 21 | CE127: 8.53 | CJ127: 5553 | CK127: 0 | CL127: 6011.972607 | CM127: 6025.769338 | CO127: =CM127-CN127 -> 6025.769338 | CQ127: 5883 | CR127: -117.7749884 | CS127: -26 | CT127: -1657 | CU127: 391 | CV127: 92 | CW127: -47
A128: 418 | B128: Lempäälä | C128: 22536 | D128: 20.5 | G128: 56824 | H128: 159803 | I128: -21 | J128: 79515 | K128: 3812 | L128: 5221 | M128: 88548 | N128: 24937 | O128: 24 | P128: 1241 | Q128: 408 | R128: 120 | S128: 9384 | U128: 14012 | V128: 0 | X128: -4628 | Y128: -10 | Z128: -7 | AB128: -4645 | AD128: 4729 | AG128: -18992 | AJ128: 5974 | AL128: 116371 | AO128: 22745 | AP128: 20.5 | AS128: 58520 | AT128: 158752 | AU128: 33 | AV128: 83808 | AW128: 3901 | AX128: 5243 | AY128: 92952 | AZ128: 26429 | BA128: 158 | BB128: 971 | BC128: 371 | BD128: 183 | BE128: 18388 | BG128: 15066 | BH128: 69 | BJ128: 3391 | BK128: 7 | BL128: 115 | BM128: 2 | BN128: -76 | BO128: 3209 | BQ128: 9188 | BW128: 8128 | BY128: 112685 | CD128: 20.5 | CE128: 8.03 | CJ128: 21852 | CK128: 0 | CL128: 23115.00888 | CM128: 21470.62581 | CO128: 21470.62581 | CQ128: 24937 | CR128: -462.6323078 | CS128: -2248 | CT128: -12980 | CU128: 232 | CV128: 2827 | CW128: -29
A129: 420 | B129: Leppävirta | C129: 9953 | D129: 20 | G129: 34235 | H129: 85930 | I129: 33 | J129: 28481 | K129: 2342 | L129: 2275 | M129: 33098 | N129: 25806 | O129: 47 | P129: 573 | Q129: 741 | R129: 85 | S129: 7373 | U129: 5733 | V129: 0 | X129: 1640 | Y129: 160 | Z129: 3 | AB129: 1803 | AD129: 4509 | AG129: -6679 | AJ129: 10048 | AL129: 36288 | AO129: 9865 | AP129: 20 | AS129: 35218 | AT129: 88431 | AU129: 31 | AV129: 28524 | AW129: 2317 | AX129: 2346 | AY129: 33187 | AZ129: 26710 | BA129: 58 | BB129: 516 | BC129: 364 | BD129: 73 | BE129: 6547 | BG129: 6232 | BH129: 0 | BJ129: 315 | BK129: -224 | BL129: 5 | BM129: -3 | BN129: -21 | BO129: 62 | BQ129: 4770 | BW129: 9689 | BY129: 35078 | CD129: 20 | CE129: 7.53 | CJ129: 21592 | CK129: 0 | CL129: 25247.61934 | CM129: 24413.4058 | CO129: 24413.4058 | CQ129: 25806 | CR129: -224.3303463 | CS129: -70 | CT129: -5486 | CU129: 169 | CV129: 130 | CW129: -1
A130: 421 | B130: Lestijärvi | C130: 798 | D130: 20 | G130: 5690 | H130: 10427 | I130: 11 | J130: 1876 | K130: 340 | L130: 232 | M130: 2448 | N130: 3150 | O130: 18 | P130: 41 | Q130: 3 | R130: 1 | S130: 851 | U130: 554 | V130: 45 | X130: 342 | Y130: -57 | Z130: 0 | AB130: 285 | AD130: 3185 | AG130: -379 | AJ130: 1632 | AL130: 2921 | AO130: 811 | AP130: 21 | AS130: 6001 | AT130: 10907 | AU130: 26 | AV130: 1681 | AW130: 330 | AX130: 245 | AY130: 2256 | AZ130: 3112 | BA130: 14 | BB130: 38 | BC130: 7 | BD130: 1 | BE130: 470 | BG130: 566 | BH130: 49 | BJ130: -47 | BK130: 0 | BL130: 0 | BM130: 0 | BN130: 0 | BO130: -47 | BQ130: 3246 | BW130: 1449 | BY130: 3242 | CD130: 21 | CE130: 8.53 | CJ130: 2977 | CK130: 130 | CL130: 3017.778163 | CM130: 2977.922817 | CO130: 2977.922817 | CQ130: =N130-CP130 -> 3150 | CR130: 23.659598 | CS130: 0 | CT130: -976 | CU130: 29 | CV130: 0 | CW130: 90
A131: 422 | B131: Lieksa | C131: 11772 | D131: 21 | G131: 39216 | H131: 114874 | I131: 2 | J131: 33222 | K131: 4422 | L131: 3282 | M131: 40926 | N131: 44386 | O131: 291 | P131: 743 | Q131: 689 | R131: 91 | S131: 9648 | U131: 6807 | V131: 0 | X131: 2841 | Y131: -44 | Z131: 2 | AB131: 2799 | AD131: 24485 | AG131: -5651 | AJ131: 14404 | AL131: 50057 | AO131: 11580 | AP131: 21 | AS131: 38796 | AT131: 115486 | AU131: -3 | AV131: 32192 | AW131: 3316 | AX131: 4303 | AY131: 39811 | AZ131: 45454 | BA131: 268 | BB131: 715 | BC131: 609 | BD131: 40 | BE131: 8543 | BG131: 6017 | BH131: 0 | BJ131: 2526 | BK131: 14 | BL131: 0 | BM131: -11 | BN131: 5 | BO131: 2534 | BQ131: 27357 | BW131: 14624 | BY131: 48278 | CD131: 21 | CE131: 8.53 | CJ131: 34065 | CK131: 0 | CL131: 38724.91662 | CM131: 36975.78914 | CO131: 36975.78914 | CQ131: 44386 | CR131: 48.5021759 | CS131: -53 | CT131: -5225 | CU131: 67 | CV131: 101 | CW131: -704
A132: 423 | B132: Lieto | C132: 19263 | D132: 19.5 | G132: 55091 | H132: 141947 | I132: 5 | J132: 65983 | K132: 3127 | L132: 3500 | M132: 72610 | N132: 23012 | O132: 21 | P132: 886 | Q132: 70 | R132: 15 | S132: 7961 | U132: 7540 | V132: 0 | X132: 421 | Y132: -107 | Z132: 19 | AB132: 333 | AD132: 5480 | AG132: -6233 | AJ132: 5374 | AL132: 67246 | AO132: 19418 | AP132: 19.5 | AS132: 55532 | AT132: 142880 | AU132: 2 | AV132: 69108 | AW132: 2697 | AX132: 3559 | AY132: 75364 | AZ132: 22796 | BA132: 12 | BB132: 666 | BC132: 55 | BD132: 28 | BE132: 10186 | BG132: 8122 | BH132: 0 | BJ132: 2064 | BK132: 0 | BL132: 0 | BM132: -29 | BN132: -49 | BO132: 1986 | BQ132: 8452 | BW132: 10696 | BY132: 76102 | CD132: 19.5 | CE132: =CD132-$CE$1 -> 7.03 | CJ132: 16925 | CK132: 0 | CL132: 20083.25655 | CM132: 18964.18252 | CO132: 18964.18252 | CQ132: 23012 | CR132: -329.8235128 | CS132: -1626 | CT132: -15222 | CU132: 1305 | CV132: 2252 | CW132: -60
A133: 425 | B133: Liminka | C133: 9937 | D133: 20.5 | G133: 22656 | H133: 68475 | I133: 10 | J133: 27755 | K133: 628 | L133: 1168 | M133: 29551 | N133: 24101 | O133: 14 | P133: 270 | Q133: 98 | R133: 11 | S133: 7674 | U133: 5966 | V133: 0 | X133: 1708 | Y133: 18 | Z133: 50 | AB133: 1776 | AD133: 29125 | AG133: -1964 | AJ133: 5544 | AL133: 25511 | AO133: 10000 | AP133: 20.5 | AS133: 20265 | AT133: 72301 | AU133: 1 | AV133: 28187 | AW133: 622 | AX133: 1181 | AY133: 29990 | AZ133: 28110 | BA133: 3 | BB133: 233 | BC133: 51 | BD133: 0 | BE133: 5854 | BG133: 7482 | BH133: 0 | BJ133: -1628 | BK133: -3 | BL133: 5 | BM133: -32 | BN133: 57 | BO133: -1611 | BQ133: 27359 | BW133: 5453 | BY133: 23100 | CD133: 21 | CE133: 8.53 | CJ133: 21999 | CK133: 0 | CL133: 25133.43718 | CM133: 23477.36599 | CO133: 23477.36599 | CQ133: 24101 | CR133: -48.42746138 | CS133: -634 | CT133: -4451 | CU133: 225 | CV133: 905 | CW133: 3
A134: 426 | B134: Liperi | C134: 12338 | D134: 21.5 | G134: 35380 | H134: 97306 | I134: -8 | J134: 36634 | K134: 1379 | L134: 2288 | M134: 40301 | N134: 28039 | O134: 28 | P134: 882 | Q134: 375 | R134: 24 | S134: 5902 | U134: 3981 | V134: 0 | X134: 1921 | Y134: -84 | Z134: 5 | AB134: 1842 | AD134: 7471 | AG134: -9030 | AJ134: 8041 | AL134: 51062 | AO134: 12301 | AP134: 21.5 | AS134: 35280 | AT134: 98314 | AU134: -229 | AV134: 36586 | AW134: 1316 | AX134: 2381 | AY134: 40283 | AZ134: 29715 | BA134: 33 | BB134: 732 | BC134: 347 | BD134: 6 | BE134: 6378 | BG134: 5081 | BH134: 0 | BJ134: 1297 | BK134: 8 | BL134: 26 | BM134: -83 | BN134: 6 | BO134: 1202 | BQ134: 8680 | BW134: 7774 | BY134: 49363 | CD134: 21.5 | CE134: 9.03 | CJ134: 24656 | CK134: 0 | CL134: 27185.72705 | CM134: 26435.74297 | CO134: 26435.74297 | CQ134: 28039 | CR134: -737.7299252 | CS134: -73 | CT134: -4775 | CU134: 37 | CV134: 1394 | CW134: -701
A135: 444 | B135: Lohja | C135: 47353 | D135: 20.5 | G135: 158874 | H135: 396729 | I135: -80 | J135: 168554 | K135: 6700 | L135: 12222 | M135: 187476 | N135: 75055 | O135: 64 | P135: 2300 | Q135: 989 | R135: 691 | S135: 22658 | U135: 22020 | V135: 0 | X135: 638 | Y135: -383 | Z135: 12 | AB135: 267 | AD135: 19887 | AG135: -37092 | AJ135: 18349 | AL135: 163673 | AO135: 47149 | AP135: 20.5 | AS135: 156079 | AT135: 402266 | AU135: 128 | AV135: 172144 | AW135: 5582 | AX135: 12405 | AY135: 190131 | AZ135: 81722 | BA135: 54 | BB135: 1900 | BC135: 796 | BD135: 631 | BE135: 24113 | BG135: 26207 | BH135: 0 | BJ135: -2094 | BK135: -7 | BL135: 377 | BM135: 51 | BN135: 40 | BO135: -2387 | BQ135: 16931 | BW135: 17993 | BY135: 180376 | CD135: 20.5 | CE135: 8.03 | CJ135: 42170 | CK135: 0 | CL135: 68193.67889 | CM135: 65943.26622 | CO135: 65943.26622 | CQ135: 75055 | CR135: 1752.986935 | CS135: -2860 | CT135: -41049 | CU135: 70 | CV135: 2210 | CW135: -30
A136: 430 | B136: Loimaa | C136: 16467 | D136: 20.5 | G136: 61502 | H136: 155253 | I136: 8 | J136: 46825 | K136: 3101 | L136: 4080 | M136: 54006 | N136: 50460 | O136: 8 | P136: 720 | Q136: 162 | R136: 56 | S136: 10118 | U136: 8087 | V136: 0 | X136: 2031 | Y136: -65 | Z136: -219 | AB136: 1747 | AD136: 11396 | AG136: -4875 | AJ136: 10152 | AL136: 57704 | AO136: 16267 | AP136: 20.5 | AS136: 65627 | AT136: 163078 | AU136: 3 | AV136: 46513 | AW136: 3001 | AX136: 4211 | AY136: 53725 | AZ136: 52058 | BA136: 5 | BB136: 505 | BC136: 114 | BD136: 50 | BE136: 7899 | BG136: 8068 | BH136: 0 | BJ136: -169 | BK136: 0 | BL136: 0 | BM136: 9 | BN136: -298 | BO136: -458 | BQ136: 11153 | BW136: 7989 | BY136: 53500 | CD136: 20.5 | CE136: 8.03 | CJ136: 37550 | CK136: 0 | CL136: 42401.6307 | CM136: 40267.20862 | CO136: 40267.20862 | CQ136: 50460 | CR136: 556.623174 | CS136: -693 | CT136: -5459 | CU136: 30 | CV136: 1085 | CW136: 837
A137: 433 | B137: Loppi | C137: 8175 | D137: 20.5 | G137: 23852 | H137: 62584 | I137: -21 | J137: 24125 | K137: 1478 | L137: 2002 | M137: 27605 | N137: 15242 | O137: 5 | P137: 506 | Q137: 52 | R137: 3 | S137: 3642 | U137: 2874 | V137: 0 | X137: 768 | Y137: 4 | Z137: -3 | AB137: 769 | AD137: 11375 | AG137: -4875 | AJ137: 1963 | AL137: 25685 | AO137: 8098 | AP137: 21.5 | AS137: 24289 | AT137: 63233 | AU137: -47 | AV137: 25091 | AW137: 1450 | AX137: 2031 | AY137: 28572 | AZ137: 15986 | BA137: 17 | BB137: 461 | BC137: 55 | BD137: 4 | BE137: 5174 | BG137: 3316 | BH137: 0 | BJ137: 1858 | BK137: 2 | BL137: 0 | BM137: 0 | BN137: 0 | BO137: 1860 | BQ137: 12888 | BW137: 2990 | BY137: 30269 | CD137: 21.5 | CE137: 9.03 | CJ137: 14314 | CK137: 0 | CL137: 16016.97421 | CM137: 14998.84283 | CO137: 14998.84283 | CQ137: 15242 | CR137: -83.08254624 | CS137: -760 | CT137: -9038 | CU137: 139 | CV137: 352 | CW137: 1004
A138: 434 | B138: Loviisa | C138: 15311 | D138: 19.75 | G138: 54705 | H138: 138834 | I138: -4 | J138: 49304 | K138: 9103 | L138: 7425 | M138: 65832 | N138: 24732 | O138: 68 | P138: 679 | Q138: 1696 | R138: 187 | S138: 7262 | U138: 6351 | V138: 6 | X138: 917 | Y138: -38 | Z138: 1 | AB138: 880 | AD138: 3672 | AG138: -5130 | AJ138: 12177 | AL138: 52400 | AO138: 15208 | AP138: 19.75 | AS138: 50698 | AT138: 137554 | AU138: -3 | AV138: 49366 | AW138: 8586 | AX138: 8001 | AY138: 65953 | AZ138: 29758 | BA138: 49 | BB138: 531 | BC138: 1708 | BD138: 170 | BE138: 9839 | BG138: 7986 | BH138: -130 | BJ138: 1723 | BK138: -2 | BL138: 38 | BM138: -24 | BN138: 5 | BO138: 1664 | BQ138: 6164 | BW138: 11559 | BY138: 54364 | CD138: 19.75 | CE138: 7.28 | CJ138: 22724 | CK138: 0 | CL138: 25196.30385 | CM138: 23992.80336 | CO138: 23992.80336 | CQ138: 24732 | CR138: 171.8060387 | CS138: -543 | CT138: -11798 | CU138: 549 | CV138: 622 | CW138: 17
A139: 435 | B139: Luhanka | C139: 761 | D139: 19 | J139: 1810 | K139: 267 | L139: 445 | M139: 2522 | X139: 0 | AG139: 0 | AO139: 756 | AP139: 18.5 | AS139: 2653 | AT139: 7645 | AU139: 0 | AV139: 1593 | AW139: 238 | AX139: 498 | AY139: 2329 | AZ139: 3089 | BA139: 21 | BB139: 27 | BC139: 13 | BD139: 108 | BE139: 325 | BG139: 302 | BH139: 68 | BJ139: 91 | BK139: 0 | BL139: 2 | BM139: 0 | BN139: 0 | BO139: 89 | BQ139: 2354 | BW139: 1771 | BY139: 1996 | CD139: 18.5 | CE139: 6.03 | CJ139: 2731 | CK139: 0 | CL139: 3207.989411 | CM139: 3058.346298 | CO139: 3058.346298 | CQ139: 0 | CR139: -54.5415996 | CS139: 0 | CT139: -746 | CU139: -1 | CV139: -8 | CW139: -37
A140: 436 | B140: Lumijoki | C140: 2076 | D140: 20.5 | G140: 5631 | H140: 16656 | I140: 3 | J140: 5039 | K140: 145 | L140: 255 | M140: 5439 | N140: 6640 | O140: 3 | P140: 106 | Q140: 17 | R140: 3 | S140: 968 | U140: 1028 | V140: 0 | X140: -60 | Y140: 5 | Z140: 0 | AB140: -55 | AD140: 1103 | AG140: -457 | AJ140: 879 | AL140: 8183 | AO140: 2105 | AP140: 20.75 | AS140: 5599 | AT140: 16644 | AU140: 0 | AV140: 4942 | AW140: 132 | AX140: 291 | AY140: 5365 | AZ140: 6840 | BA140: 5 | BB140: 81 | BC140: 3 | BD140: 1 | BE140: 1074 | BG140: 1032 | BH140: 0 | BJ140: 42 | BK140: -1 | BL140: 2 | BM140: -13 | BN140: -8 | BO140: 18 | BQ140: 1007 | BW140: 770 | BY140: 7613 | CD140: 20.75 | CE140: 8.28 | CJ140: 4969 | CK140: 0 | CL140: 6288.875618 | CM140: 6096.8641 | CO140: 6096.8641 | CQ140: 6640 | CR140: 3.02593806 | CS140: -44 | CT140: -557 | CU140: 105 | CV140: 58 | CW140: -1
A141: 440 | B141: Luoto | C141: 5147 | D141: 20 | G141: 8947 | H141: 32549 | I141: 0 | J141: 13624 | K141: 316 | L141: 989 | M141: 14929 | N141: 13007 | O141: 17 | P141: 102 | Q141: 309 | R141: 387 | S141: 4171 | U141: 1877 | V141: 0 | X141: 2294 | Y141: -95 | Z141: 0 | AB141: 2199 | AD141: 13471 | AG141: -1532 | AJ141: 8345 | AL141: 20319 | AO141: 5176 | AP141: 19.5 | AS141: 8975 | AT141: 33423 | AU141: 0 | AV141: 13618 | AW141: 283 | AX141: 998 | AY141: 14899 | AZ141: 13703 | BA141: 78 | BB141: 77 | BC141: 365 | BD141: 131 | BE141: 4389 | BG141: 1990 | BH141: 0 | BJ141: 2399 | BK141: -176 | BL141: 0 | BM141: 0 | BN141: 0 | BO141: 2223 | BQ141: 15683 | BW141: 9105 | BY141: 21252 | CD141: 19.5 | CE141: 7.03 | CJ141: 10541 | CK141: 0 | CL141: 13722.61996 | CM141: 13091.00871 | CO141: 13091.00871 | CQ141: 13007 | CR141: -301.4108261 | CS141: -201 | CT141: -4383 | CU141: 128 | CV141: 270 | CW141: -140
A142: 441 | B142: Luumäki | C142: 4860 | D142: 19.75 | G142: 21954 | H142: 49087 | I142: -37 | J142: 13702 | K142: 1943 | L142: 1325 | M142: 16970 | N142: 11872 | O142: 191 | P142: 154 | Q142: 375 | R142: 77 | S142: 2008 | U142: 2862 | V142: 0 | X142: -854 | Y142: -20 | Z142: 2 | AB142: -872 | AD142: 19349 | AG142: -7189 | AJ142: 18147 | AL142: 16800 | AO142: 4831 | AP142: 19.75 | AS142: 23629 | AT142: 50849 | AU142: 8 | AV142: 13196 | AW142: 1905 | AX142: 1343 | AY142: 16444 | AZ142: 12316 | BA142: 105 | BB142: 164 | BC142: 466 | BD142: 54 | BE142: 1901 | BG142: 3056 | BH142: 0 | BJ142: -1155 | BK142: -2 | BL142: 2 | BM142: -40 | BN142: 0 | BO142: -1199 | BQ142: 17497 | BW142: 16589 | BY142: 17273 | CD142: 19.75 | CE142: 7.28 | CJ142: 10655 | CK142: 0 | CL142: 12066.31907 | CM142: 11380.25129 | CO142: 11380.25129 | CQ142: 11872 | CR142: -29.28809184 | CS142: -2 | CT142: -5129 | CU142: 648 | CV142: 143 | CW142: 0
A143: 475 | B143: Maalahti | C143: 5545 | D143: 21.5 | G143: 23941 | H143: 55964 | I143: 0 | J143: 16988 | K143: 1079 | L143: 1319 | M143: 19386 | N143: 15659 | O143: 3 | P143: 167 | Q143: 67 | R143: 53 | S143: 2841 | U143: 2407 | V143: 0 | X143: 434 | Y143: -26 | Z143: -2 | AB143: 406 | AD143: 4099 | AG143: -6346 | AJ143: 1900 | AL143: 21899 | AO143: 5517 | AP143: 21.5 | AS143: 23790 | AT143: 55995 | AU143: -10 | AV143: 16991 | AW143: 925 | AX143: 1332 | AY143: 19248 | AZ143: 16833 | BA143: 7 | BB143: 158 | BC143: 46 | BD143: 39 | BE143: 3692 | BG143: 3353 | BH143: 0 | BJ143: 339 | BK143: 9 | BL143: 21 | BM143: -18 | BN143: 0 | BO143: 309 | BQ143: 5062 | BW143: 1757 | BY143: 24064 | CD143: 21.5 | CE143: 9.03 | CJ143: 14643 | CK143: 0 | CL143: 16510.26141 | CM143: 15901.05984 | CO143: 15901.05984 | CQ143: 15659 | CR143: 688.6561833 | CS143: -117 | CT143: -7723 | CU143: 740 | CV143: 209 | CW143: 14
A144: 480 | B144: Marttila | C144: 2028 | D144: 20.25 | G144: 6048 | H144: 16219 | I144: 0 | J144: 5599 | K144: 254 | L144: 358 | M144: 6211 | N144: 4797 | O144: 4 | P144: 66 | Q144: 5 | R144: 2 | S144: 778 | U144: 707 | V144: 0 | X144: 71 | Y144: -48 | Z144: 0 | AB144: 23 | AD144: 1970 | AG144: -404 | AJ144: 851 | AL144: 3952 | AO144: 2021 | AP144: 20.25 | AS144: 6124 | AT144: 15912 | AU144: 0 | AV144: 5454 | AW144: 255 | AX144: 370 | AY144: 6079 | AZ144: 5050 | BA144: 3 | BB144: 44 | BC144: 7 | BD144: 1 | BE144: 1305 | BG144: 754 | BH144: 0 | BJ144: 551 | BK144: -485 | BL144: 0 | BM144: 0 | BN144: 0 | BO144: 66 | BQ144: 2086 | BW144: 1203 | BY144: 4050 | CD144: 20.25 | CE144: 7.78 | CJ144: 4007 | CK144: 0 | CL144: 5036.789031 | CM144: 4544.548228 | CO144: 4544.548228 | CQ144: 4797 | CR144: -788.238186 | CS144: -17 | CT144: -1122 | CU144: 284 | CV144: 38 | CW144: 0
A145: 481 | B145: Masku | C145: 9706 | D145: 20.75 | G145: 28211 | H145: 72808 | I145: 3 | J145: 35982 | K145: 1665 | L145: 1831 | M145: 39478 | N145: 10203 | O145: 5 | P145: 227 | Q145: 54 | R145: 28 | S145: 4891 | U145: 3624 | V145: 5829 | X145: 7096 | Y145: 63 | Z145: 1 | AB145: 7160 | AD145: 1725 | AG145: 1165 | AJ145: 2411 | AL145: 35961 | AO145: 9675 | AP145: 20.75 | AS145: 32799 | AT145: 78227 | AU145: 1 | AV145: 35859 | AW145: 1443 | AX145: 1862 | AY145: 39164 | AZ145: 10281 | BA145: 92 | BB145: 231 | BC145: 51 | BD145: 73 | BE145: 3857 | BG145: 6174 | BH145: 0 | BJ145: -2317 | BK145: 23 | BL145: 0 | BM145: -33 | BN145: 1 | BO145: -2326 | BQ145: -1800 | BW145: 3281 | BY145: 37464 | CD145: 20.75 | CE145: 8.28 | CJ145: 9002 | CK145: 0 | CL145: 8632.209783 | CM145: 7468.58164 | CO145: 7468.58164 | CQ145: 10203 | CR145: -62.53605324 | CS145: -714 | CT145: -5066 | CU145: 55 | CV145: 1395 | CW145: 0
A146: 483 | B146: Merijärvi | C146: 1134 | D146: 21 | G146: 4528 | H146: 10958 | I146: 3 | J146: 2489 | K146: 104 | L146: 189 | M146: 2782 | N146: 3917 | O146: 1 | P146: 34 | Q146: 180 | R146: 13 | S146: 406 | U146: 542 | V146: 0 | X146: -136 | Y146: 5 | Z146: 0 | AB146: -131 | AD146: 2937 | AG146: -259 | AJ146: 2923 | AL146: 3230 | AO146: 1131 | AP146: 21.5 | AS146: 4214 | AT146: 10765 | AU146: 0 | AV146: 2178 | AW146: 108 | AX146: 198 | AY146: 2484 | AZ146: 4342 | BA146: 1 | BB146: 27 | BC146: 158 | BD146: 10 | BE146: 397 | BG146: 542 | BH146: 0 | BJ146: -145 | BK146: 0 | BL146: 1 | BM146: -1 | BN146: -1 | BO146: -148 | BQ146: 2809 | BW146: 3440 | BY146: 3301 | CD146: 21.5 | CE146: 9.03 | CJ146: 3996 | CK146: 0 | CL146: 4302.532821 | CM146: 4196.345852 | CO146: 4196.345852 | CQ146: 3917 | CR146: 72.224036 | CS146: -1 | CT146: -252 | CU146: 0 | CV146: 22 | CW146: 0
A147: 484 | B147: Merikarvia | C147: 3185 | D147: 19.5 | G147: 10473 | H147: 30824 | I147: -12 | J147: 8346 | K147: 720 | L147: 986 | M147: 10052 | N147: 12559 | O147: 10 | P147: 45 | Q147: 89 | R147: 6 | S147: 2296 | U147: 1497 | V147: 0 | X147: 799 | Y147: -1 | Z147: 0 | AB147: 798 | AD147: 5911 | AG147: -1552 | AJ147: 4479 | AL147: 2927 | AO147: 3169 | AP147: 19.5 | AS147: 10576 | AT147: 30552 | AU147: -2 | AV147: 7406 | AW147: 696 | AX147: 998 | AY147: 9100 | AZ147: 12486 | BA147: 6 | BB147: 28 | BC147: 42 | BD147: 1 | BE147: 1627 | BG147: 1515 | BH147: 0 | BJ147: 112 | BK147: 0 | BL147: 4 | BM147: 0 | BN147: -10 | BO147: 98 | BQ147: 6012 | BW147: 4321 | BY147: 2584 | CD147: 19.5 | CE147: 7.03 | CJ147: 11004 | CK147: 0 | CL147: 12334.32215 | CM147: 11705.7261 | CO147: 11705.7261 | CQ147: 12559 | CR147: 81.1897784 | CS147: 20 | CT147: -1578 | CU147: 59 | CV147: 154 | CW147: 15
A148: 489 | B148: Miehikkälä | C148: 2085 | D148: 20 | G148: 14493 | H148: 26228 | I148: -2 | J148: 4886 | K148: 715 | L148: 440 | M148: 6041 | N148: 7716 | O148: 11 | P148: 91 | Q148: 19 | R148: 34 | S148: 1925 | U148: 1014 | V148: 0 | X148: 911 | Y148: -84 | Z148: 0 | AB148: 827 | AD148: 3133 | AG148: -3064 | AJ148: 2539 | AL148: 8934 | AO148: 2034 | AP148: 20 | AS148: 14552 | AT148: 26200 | AU148: 0 | AV148: 4706 | AW148: 716 | AX148: 496 | AY148: 5918 | AZ148: 7731 | BA148: 12 | BB148: 69 | BC148: 30 | BD148: 11 | BE148: 1963 | BG148: 1304 | BH148: 0 | BJ148: 659 | BK148: 6 | BL148: 0 | BM148: 18 | BN148: 0 | BO148: 683 | BQ148: 5252 | BW148: 1829 | BY148: 8280 | CD148: 20 | CE148: 7.53 | CJ148: 6902 | CK148: 0 | CL148: 7837.23274 | CM148: 7533.408421 | CO148: 7533.408421 | CQ148: 7716 | CR148: -1350.278163 | CS148: -196 | CT148: -1737 | CU148: 155 | CV148: -155 | CW148: -29
A149: 491 | B149: Mikkeli | C149: 54665 | D149: 20 | G149: 245585 | H149: 528406 | I149: 386 | J149: 168949 | K149: 12366 | L149: 17988 | M149: 199303 | N149: 136132 | O149: 549 | P149: 4239 | Q149: 1961 | R149: 3301 | S149: 45894 | U149: 41440 | V149: 0 | X149: 4454 | Y149: -1775 | Z149: -602 | AB149: 2077 | AD149: 57524 | AG149: -49105 | AJ149: 27304 | AL149: 443077 | AO149: 54517 | AP149: 20 | AS149: 253655 | AT149: 533898 | AU149: 168 | AV149: 169039 | AW149: 11378 | AX149: 18215 | AY149: 198632 | AZ149: 141338 | BA149: 495 | BB149: 4852 | BC149: 792 | BD149: 2774 | BE149: 51530 | BG149: 41542 | BH149: 14 | BJ149: 10002 | BK149: -88 | BL149: 1244 | BM149: -664 | BN149: -407 | BO149: 7599 | BQ149: 64536 | BW149: 38905 | BY149: 476923 | CD149: 20.5 | CE149: 8.03 | CJ149: 79610 | CK149: 0 | CL149: 112621.5592 | CM149: 110846.0353 | CO149: 110846.0353 | CQ149: 136132 | CR149: 62.1375758 | CS149: -3605 | CT149: -82947 | CU149: 1822 | CV149: 17595 | CW149: 1515
A150: 494 | B150: Muhos | C150: 9063 | D150: 20.5 | G150: 34859 | H150: 83292 | I150: 9 | J150: 24169 | K150: 1243 | L150: 3363 | M150: 28775 | N150: 23766 | O150: 28 | P150: 553 | Q150: 53 | R150: 16 | S150: 3629 | U150: 4048 | V150: 0 | X150: -419 | Y150: 21 | Z150: -1 | AB150: -399 | AD150: 113 | AG150: -15100 | AJ150: 2869 | AL150: 43414 | AO150: 8995 | AP150: 20.5 | AS150: 34471 | AT150: 82654 | AU150: 49 | AV150: 24867 | AW150: 1209 | AX150: 3595 | AY150: 29671 | AZ150: 25615 | BA150: 26 | BB150: 488 | BC150: 16 | BD150: 5 | BE150: 6701 | BG150: 4640 | BH150: 0 | BJ150: 2061 | BK150: -5 | BL150: 4 | BM150: -3 | BN150: -3 | BO150: 2046 | BQ150: 3227 | BW150: 4125 | BY150: 45520 | CD150: 20.5 | CE150: 8.03 | CJ150: 21009 | CK150: 0 | CL150: 25186.62348 | CM150: 24440.04096 | CO150: 24440.04096 | CQ150: 23766 | CR150: 325.1700435 | CS150: -212 | CT150: -6812 | CU150: 482 | CV150: 283 | CW150: -63
A151: 495 | B151: Multia | C151: 1710 | D151: 21 | G151: 2539 | H151: 13399 | I151: 0 | J151: 3937 | K151: 1023 | L151: 397 | M151: 5357 | N151: 6507 | O151: 4 | P151: 26 | Q151: 34 | R151: 7 | S151: 1009 | U151: 678 | V151: 0 | X151: 331 | Y151: -13 | Z151: 0 | AB151: 318 | AD151: 213 | AG151: -1130 | AJ151: 1338 | AL151: 2717 | AO151: 1663 | AP151: 21.75 | AS151: 2587 | AT151: 13361 | AU151: 1 | AV151: 4252 | AW151: 932 | AX151: 404 | AY151: 5588 | AZ151: 6460 | BA151: 6 | BB151: 22 | BC151: 22 | BD151: 9 | BE151: 1272 | BG151: 593 | BH151: 0 | BJ151: 679 | BK151: -43 | BL151: 0 | BM151: 0 | BN151: 0 | BO151: 636 | BQ151: 861 | BW151: 2274 | BY151: 2999 | CD151: 21.75 | CE151: 9.28 | CJ151: 5826 | CK151: 280 | CL151: 5885.677679 | CM151: 5582.111771 | CO151: 5582.111771 | CQ151: 6507 | CR151: 2.4282219 | CS151: -29 | CT151: -805 | CU151: 2 | CV151: 41 | CW151: -27
A152: 498 | B152: Muonio | C152: 2358 | D152: 21 | G152: 9203 | H152: 24687 | I152: 0 | J152: 6863 | K152: 639 | L152: 902 | M152: 8404 | N152: 8532 | O152: 3 | P152: 175 | Q152: 22 | R152: 18 | S152: 1284 | U152: 1027 | V152: 16 | X152: 273 | Y152: -73 | Z152: 0 | AB152: 200 | AD152: -816 | AG152: -950 | AJ152: 1744 | AL152: 11207 | AO152: 2350 | AP152: 21 | AS152: 8628 | AT152: 25328 | AU152: 0 | AV152: 7044 | AW152: 575 | AX152: 921 | AY152: 8540 | AZ152: 9670 | BA152: 2 | BB152: 134 | BC152: 18 | BD152: 17 | BE152: 1379 | BG152: 1032 | BH152: 0 | BJ152: 347 | BK152: 4 | BL152: -7 | BM152: 0 | BN152: 0 | BO152: 358 | BQ152: -132 | BW152: 2090 | BY152: 11316 | CD152: 21.5 | CE152: 9.03 | CJ152: 6889 | CK152: 0 | CL152: 9072.19596 | CM152: 9071.932082 | CO152: 9071.932082 | CQ152: 8532 | CR152: 38.602502 | CS152: -17 | CT152: -1953 | CU152: 85 | CV152: 79 | CW152: 68
A153: 499 | B153: Mustasaari | C153: 19302 | D153: 20.75 | G153: 56963 | H153: 151971 | I153: 186 | J153: 68148 | K153: 2504 | L153: 4500 | M153: 75152 | N153: 27621 | O153: 22 | P153: 713 | Q153: 249 | R153: 87 | S153: 7428 | U153: 9007 | V153: 0 | X153: -1579 | Y153: -21 | Z153: 13 | AB153: -1587 | AD153: 5255 | AG153: -10288 | AJ153: 6053 | AL153: 76858 | AO153: 19380 | AP153: 20.75 | AS153: 56883 | AT153: 150521 | AU153: 66 | AV153: 69120 | AW153: 2197 | AX153: 4598 | AY153: 75915 | AZ153: 30106 | BA153: 12 | BB153: 644 | BC153: 283 | BD153: 76 | BE153: 12024 | BG153: 9033 | BH153: 0 | BJ153: 2991 | BK153: 21 | BL153: 0 | BM153: 8 | BN153: 17 | BO153: 3037 | BQ153: 8892 | BW153: 5834 | BY153: 77432 | CD153: 20.75 | CE153: 8.28 | CJ153: 24207 | CK153: 0 | CL153: 31550.96731 | CM153: 30866.46501 | CO153: 30866.46501 | CQ153: 27621 | CR153: -230.2576982 | CS153: -467 | CT153: -12552 | CU153: 197 | CV153: 686 | CW153: 13
A154: 500 | B154: Muurame | C154: 9791 | D154: 19.5 | G154: 22327 | H154: 64986 | I154: 17 | J154: 32763 | K154: 2122 | L154: 1953 | M154: 36838 | N154: 11615 | O154: 8 | P154: 565 | Q154: 195 | R154: 22 | S154: 5426 | U154: 5850 | V154: 0 | X154: -424 | Y154: -52 | Z154: 1 | AB154: -475 | AD154: 2517 | AG154: -8379 | AJ154: 1446 | AL154: 50886 | AO154: 9941 | AP154: 19.5 | AS154: 24022 | AT154: 67618 | AU154: 18 | AV154: 33671 | AW154: 1923 | AX154: 2094 | AY154: 37688 | AZ154: 12747 | BA154: 6 | BB154: 460 | BC154: 134 | BD154: 21 | BE154: 6516 | BG154: 5967 | BH154: 0 | BJ154: 549 | BK154: 9 | BL154: 0 | BM154: -32 | BN154: 2 | BO154: 528 | BQ154: 3585 | BW154: 2297 | BY154: 49454 | CD154: 19.5 | CE154: 7.03 | CJ154: 9917 | CK154: 0 | CL154: 9980.546595 | CM154: 9873.443881 | CO154: 9873.443881 | CQ154: 11615 | CR154: -157.6351848 | CS154: -885 | CT154: -6132 | CU154: 80 | CV154: 1004 | CW154: 96
A155: 503 | B155: Mynämäki | C155: 7859 | D155: 20.5 | G155: 35992 | H155: 78918 | I155: 92 | J155: 23585 | K155: 902 | L155: 1328 | M155: 25815 | N155: 18309 | O155: 13 | P155: 210 | Q155: 46 | R155: 25 | S155: 1114 | U155: 3237 | V155: 0 | X155: -2123 | Y155: 299 | Z155: 16 | AB155: -1808 | AD155: 2160 | AG155: -2558 | AJ155: 3669 | AL155: 23538 | AO155: 7842 | AP155: 21 | AS155: 36048 | AT155: 78080 | AU155: -26 | AV155: 24604 | AW155: 885 | AX155: 1581 | AY155: 27070 | AZ155: 18720 | BA155: 22 | BB155: 139 | BC155: 158 | BD155: 16 | BE155: 3758 | BG155: 3386 | BH155: 0 | BJ155: 372 | BK155: 0 | BL155: 0 | BM155: 0 | BN155: 17 | BO155: 389 | BQ155: 2484 | BW155: 4070 | BY155: 23169 | CD155: 21 | CE155: 8.53 | CJ155: 15376 | CK155: 0 | CL155: 15850.42565 | CM155: 14942.46435 | CO155: 14942.46435 | CQ155: 18309 | CR155: 39.847744 | CS155: -36 | CT155: -2133 | CU155: 175 | CV155: 67 | CW155: 0
A156: 504 | B156: Myrskylä | C156: 1969 | D156: 21.5 | G156: 4796 | H156: 14981 | I156: -63 | J156: 5522 | K156: 427 | L156: 400 | M156: 6349 | N156: 4754 | O156: 2 | P156: 42 | Q156: 276 | R156: 2 | S156: 1089 | U156: 626 | V156: 0 | X156: 463 | Y156: 0 | Z156: 0 | AB156: 463 | AD156: 1975 | AG156: -1118 | AJ156: 1090 | AL156: 3640 | AO156: 1986 | AP156: 21.5 | AS156: 5025 | AT156: 15851 | AU156: 7 | AV156: 5586 | AW156: 403 | AX156: 385 | AY156: 6374 | AZ156: 4626 | BA156: 2 | BB156: 36 | BC156: 283 | BD156: 4 | BE156: 426 | BG156: 688 | BH156: 0 | BJ156: -262 | BK156: 0 | BL156: 0 | BM156: 0 | BN156: 0 | BO156: -262 | BQ156: 1680 | BW156: 2266 | BY156: 3525 | CD156: 21.5 | CE156: 9.03 | CJ156: 4291 | CK156: 0 | CL156: 4256.124429 | CM156: 4266.148569 | CO156: 4266.148569 | CQ156: 4754 | CR156: -726.362111 | CS156: -32 | CT156: -220 | CU156: 90 | CV156: 13 | CW156: 1
A157: 505 | B157: Mäntsälä | C157: 20685 | D157: 20.5 | G157: 87738 | H157: 175089 | I157: -5 | J157: 69507 | K157: 2560 | L157: 6799 | M157: 78866 | N157: 26307 | O157: 1665 | P157: 3242 | Q157: 254 | R157: 192 | S157: 16143 | U157: 13785 | V157: 0 | X157: 2358 | Y157: 469 | Z157: -46 | AB157: 2781 | AD157: 16550 | AG157: -35866 | AJ157: 7397 | AL157: 132314 | AO157: 20853 | AP157: 20.5 | AS157: 87192 | AT157: 176725 | AU157: -1 | AV157: 70565 | AW157: 2481 | AX157: 6730 | AY157: 79776 | AZ157: 32278 | BA157: 20 | BB157: 1468 | BC157: 586 | BD157: 181 | BE157: 21325 | BG157: 12399 | BH157: 0 | BJ157: 8926 | BK157: -5 | BL157: 34 | BM157: 168 | BN157: -45 | BO157: 9010 | BQ157: 25719 | BW157: 10538 | BY157: 147157 | CD157: 20.5 | CE157: 8.03 | CJ157: 25311 | CK157: 0 | CL157: 28834.32538 | CM157: 27587.88297 | CO157: 27587.88297 | CQ157: 26307 | CR157: 109.0084847 | CS157: -1076 | CT157: -32848 | CU157: 13 | CV157: 2089 | CW157: 1
A158: 508 | B158: Mänttä-Vilppula | C158: 10604 | D158: 22 | G158: 58055 | H158: 120784 | I158: -51 | J158: 37316 | K158: 1514 | L158: 2887 | M158: 41717 | N158: 28942 | O158: 116 | P158: 924 | Q158: 307 | R158: 153 | S158: 7226 | U158: 5196 | V158: 0 | X158: 2030 | Y158: -155 | Z158: -28 | AB158: 1847 | AD158: -958 | AG158: -11145 | AJ158: 4913 | AL158: 54001 | AO158: 10448 | AP158: 22 | AS158: 57123 | AT158: 124489 | AU158: -75 | AV158: 36201 | AW158: 1422 | AX158: 2896 | AY158: 40519 | AZ158: 32786 | BA158: 20 | BB158: 709 | BC158: 1826 | BD158: 145 | BE158: 6855 | BG158: 6441 | BH158: 509 | BJ158: 923 | BK158: 16 | BL158: 75 | BM158: -9 | BN158: -152 | BO158: 703 | BQ158: 898 | BW158: 9601 | BY158: 63676 | CD158: 22 | CE158: 9.53 | CJ158: 20512 | CK158: 0 | CL158: 26751.98951 | CM158: 25379.6283 | CO158: 25379.6283 | CQ158: 28942 | CR158: 133.4276803 | CS158: 158 | CT158: -9899 | CU158: 1397 | CV158: 723 | CW158: -38
A159: 507 | B159: Mäntyharju | C159: 6159 | D159: 19.75 | G159: 22698 | H159: 57342 | I159: 0 | J159: 16367 | K159: 2304 | L159: 2548 | M159: 21219 | N159: 18150 | O159: 0 | P159: 297 | Q159: 200 | R159: 141 | S159: 4487 | U159: 2968 | V159: 35 | X159: 1554 | Y159: -34 | Z159: -27 | AB159: 1493 | AD159: 5975 | AG159: -3755 | AJ159: 2358 | AL159: 22911 | AO159: 6097 | AP159: 19.75 | AS159: 23380 | AT159: 57656 | AU159: 0 | AV159: 15573 | AW159: 2011 | AX159: 2580 | AY159: 20164 | AZ159: 18642 | BA159: 1 | BB159: 412 | BC159: 199 | BD159: 15 | BE159: 4303 | BG159: 3311 | BH159: 67 | BJ159: 1059 | BK159: 138 | BL159: 0 | BM159: -73 | BN159: -57 | BO159: 1067 | BQ159: 6858 | BW159: 2253 | BY159: 28032 | CD159: 19.75 | CE159: 7.28 | CJ159: 15041 | CK159: 0 | CL159: 18658.24323 | CM159: 17823.13778 | CO159: 17823.13778 | CQ159: 18150 | CR159: 261.5755345 | CS159: -166 | CT159: -7285 | CU159: 34 | CV159: 453 | CW159: -1408
A160: 529 | B160: Naantali | C160: 18961 | D160: 18.5 | G160: 73341 | H160: 153318 | I160: 20 | J160: 67237 | K160: 7391 | L160: 6060 | M160: 80688 | N160: 16219 | O160: 177 | P160: 1285 | Q160: 602 | R160: 158 | S160: 16008 | U160: 13894 | V160: 0 | X160: 2114 | Y160: -73 | Z160: 4 | AB160: 2045 | AD160: 53241 | AG160: -9807 | AJ160: 9816 | AL160: 81240 | AO160: 19068 | AP160: 18.5 | AS160: 77348 | AT160: 158651 | AU160: 16 | AV160: 69760 | AW160: 7044 | AX160: 6211 | AY160: 83015 | AZ160: 17430 | BA160: 95 | BB160: 1019 | BC160: 1047 | BD160: 42 | BE160: 19239 | BG160: 13015 | BH160: 336 | BJ160: 6560 | BK160: 10 | BL160: 318 | BM160: -308 | BN160: -11 | BO160: 5933 | BQ160: 57043 | BW160: 9086 | BY160: 74050 | CD160: 19 | CE160: 6.53 | CJ160: 15486 | CK160: 0 | CL160: 16027.82428 | CM160: 13951.16667 | CO160: 13951.16667 | CQ160: 16219 | CR160: 0.73469278 | CS160: -1265 | CT160: -12800 | CU160: 72 | CV160: 1824 | CW160: -18
A161: 531 | B161: Nakkila | C161: 5651 | D161: 20.75 | G161: 21160 | H161: 51173 | I161: 0 | J161: 17133 | K161: 677 | L161: 1258 | M161: 19068 | N161: 13159 | O161: 2 | P161: 130 | Q161: 47 | R161: 16 | S161: 2117 | U161: 2593 | V161: 0 | X161: -476 | Y161: 189 | Z161: 27 | AB161: -260 | AD161: 1114 | AG161: -1254 | AJ161: 5392 | AL161: 11616 | AO161: 5548 | AP161: 20.75 | AS161: 20963 | AT161: 50184 | AU161: 13 | AV161: 17593 | AW161: 664 | AX161: 1295 | AY161: 19552 | AZ161: 13310 | BA161: 5 | BB161: 109 | BC161: 49 | BD161: 9 | BE161: 3590 | BG161: 2192 | BH161: 0 | BJ161: 1398 | BK161: 0 | BL161: 1 | BM161: -25 | BN161: 0 | BO161: 1372 | BQ161: 2684 | BW161: 6237 | BY161: 9485 | CD161: 21.25 | CE161: 8.78 | CJ161: 10072 | CK161: 0 | CL161: 10694.70899 | CM161: 10555.4191 | CO161: 10555.4191 | CQ161: 13159 | CR161: -63.25455787 | CS161: -66 | CT161: -1438 | CU161: 15 | CV161: 137 | CW161: 0
A162: 535 | B162: Nivala | C162: 10876 | D162: 21.5 | G162: 69815 | H162: 132036 | I162: 48 | J162: 28234 | K162: 2412 | L162: 1307 | M162: 31953 | N162: 37619 | O162: 171 | P162: 1111 | Q162: 1120 | R162: -63 | S162: 7262 | U162: 6099 | V162: -468 | X162: 695 | Y162: 153 | Z162: -5 | AB162: 843 | AD162: 8580 | AG162: -4276 | AJ162: 24454 | AL162: 93330 | AO162: 10889 | AP162: 21.5 | AS162: 65967 | AT162: 128643 | AU162: 100 | AV162: 27076 | AW162: 1035 | AX162: 2435 | AY162: 30546 | AZ162: 40305 | BA162: 119 | BB162: 843 | BC162: 1500 | BD162: -177 | BE162: 8841 | BG162: 6074 | BH162: -317 | BJ162: 2450 | BK162: -144 | BL162: 7 | BM162: 138 | BN162: 0 | BO162: 2437 | BQ162: 10654 | BW162: 29278 | BY162: 95573 | CD162: 21.5 | CE162: 9.03 | CJ162: 27461 | CK162: 0 | CL162: 37021.86614 | CM162: 36292.08415 | CO162: 36292.08415 | CQ162: 37619 | CR162: -35.57656394 | CS162: -27 | CT162: -6001 | CU162: 22 | CV162: 1592 | CW162: 736
A163: 536 | B163: Nokia | C163: 33162 | D163: 19.75 | G163: 82333 | H163: 230862 | I163: 22 | J163: 110914 | K163: 6657 | L163: 7011 | M163: 124582 | N163: 40634 | O163: 126 | P163: 1726 | Q163: 929 | R163: 347 | S163: 15529 | U163: 15851 | V163: -5200 | X163: -5522 | Y163: -271 | Z163: -68 | AB163: -5861 | AD163: 16596 | AG163: -21504 | AJ163: 26306 | AL163: 104735 | AO163: 33210 | AP163: 19.75 | AS163: 88473 | AT163: 234781 | AU163: 44 | AV163: 114099 | AW163: 5575 | AX163: 6924 | AY163: 126598 | AZ163: 41284 | BA163: 83 | BB163: 1633 | BC163: 546 | BD163: 272 | BE163: 20176 | BG163: 19338 | BH163: -2878 | BJ163: -2040 | BK163: -346 | BL163: 0 | BM163: 0 | BN163: -141 | BO163: -2527 | BQ163: 14102 | BW163: 38763 | BY163: 127983 | CD163: 20 | CE163: 7.53 | CJ163: 32524 | CK163: 0 | CL163: 39027.57507 | CM163: 38442.14788 | CO163: 38442.14788 | CQ163: 40634 | CR163: -616.6239145 | CS163: -10197 | CT163: -24020 | CU163: 499 | CV163: 2121 | CW163: -95
A164: 538 | B164: Nousiainen | C164: 4859 | D164: 21 | G164: 20092 | H164: 43970 | I164: 2 | J164: 15947 | K164: 317 | L164: 858 | M164: 17122 | N164: 8117 | O164: 2 | P164: 139 | Q164: 30 | R164: 147 | S164: 1109 | U164: 1572 | V164: 262 | X164: -201 | Y164: 0 | Z164: 0 | AB164: -201 | AD164: 133 | AG164: -1480 | AJ164: 1216 | AL164: 13133 | AO164: 4815 | AP164: 21 | AS164: 19982 | AT164: 44826 | AU164: 1 | AV164: 16254 | AW164: 877 | AX164: 353 | AY164: 17484 | AZ164: 8727 | BA164: 1 | BB164: 94 | BC164: 31 | BD164: 148 | BE164: 1158 | BG164: 1525 | BH164: 0 | BJ164: -367 | BK164: 0 | BL164: 0 | BM164: 0 | BN164: -1 | BO164: -368 | BQ164: -235 | BW164: 1207 | BY164: 11867 | CD164: 21 | CE164: 8.53 | CJ164: 8748 | CK164: 0 | CL164: 8863.312337 | CM164: 8421.860095 | CO164: 8421.860095 | CQ164: 8117 | CR164: -99.29559708 | CS164: -2485 | CT164: -1128 | CU164: 137 | CV164: 271 | CW164: 0
A165: 541 | B165: Nurmes | C165: 7996 | D165: 20.5 | G165: 34985 | H165: 82647 | I165: 12 | J165: 21347 | K165: 2246 | L165: 1679 | M165: 25272 | N165: 30017 | O165: 68 | P165: 431 | Q165: 392 | R165: 80 | S165: 7588 | U165: 6231 | V165: 0 | X165: 1357 | Y165: -134 | Z165: 7 | AB165: 1230 | AD165: 18483 | AG165: -6151 | AJ165: 10231 | AL165: 24393 | AO165: 7885 | AP165: 20.5 | AS165: 34297 | AT165: 82587 | AU165: 10 | AV165: 20182 | AW165: 2304 | AX165: 1729 | AY165: 24215 | AZ165: 31491 | BA165: 67 | BB165: 354 | BC165: 359 | BD165: 32 | BE165: 7466 | BG165: 6128 | BH165: 0 | BJ165: 1338 | BK165: 87 | BL165: 96 | BM165: -3 | BN165: 7 | BO165: 1333 | BQ165: 19726 | BW165: 9991 | BY165: 22307 | CD165: 20.5 | CE165: 8.03 | CJ165: 24210 | CK165: 0 | CL165: 29987.60574 | CM165: 29041.0337 | CO165: 29041.0337 | CQ165: 30017 | CR165: -90.8404039 | CS165: -96 | CT165: -5892 | CU165: 315 | CV165: 103 | CW165: -453
A166: 543 | B166: Nurmijärvi | C166: 41897 | D166: 19.5 | G166: 122302 | H166: 301632 | I166: -9 | J166: 162221 | K166: 7060 | L166: 8137 | M166: 177418 | N166: 28872 | O166: 80 | P166: 1796 | Q166: 1178 | R166: 505 | S166: 25908 | U166: 24370 | V166: 0 | X166: 1538 | Y166: -842 | Z166: 19 | AB166: 715 | AD166: 80466 | AG166: -38275 | AJ166: 33921 | AL166: 183029 | AO166: 42010 | AP166: 19.5 | AS166: 124498 | AT166: 305434 | AU166: -2 | AV166: 167223 | AW166: 6303 | AX166: 8012 | AY166: 181538 | AZ166: 33477 | BA166: 101 | BB166: 2046 | BC166: 1577 | BD166: 350 | BE166: 33162 | BG166: 25792 | BH166: 0 | BJ166: 7370 | BK166: -6 | BL166: 1267 | BM166: 127 | BN166: 5 | BO166: 6229 | BQ166: 86997 | BW166: 35021 | BY166: 207442 | CD166: 19.5 | CE166: 7.03 | CJ166: 27250 | CK166: 0 | CL166: 29799.36456 | CM166: 27968.2403 | CO166: 27968.2403 | CQ166: 28872 | CR166: -502.1313841 | CS166: -1811 | CT166: -53943 | CU166: 517 | CV166: 3106 | CW166: -1673
A167: 545 | B167: Närpiö | C167: 9387 | D167: 21 | G167: 31551 | H167: 80501 | I167: 0 | J167: 26239 | K167: 2337 | L167: 2348 | M167: 30924 | N167: 23540 | O167: 384 | P167: 788 | Q167: 773 | R167: 316 | S167: 5567 | U167: 4558 | V167: 0 | X167: 1009 | Y167: -283 | Z167: 0 | AB167: 726 | AD167: 6235 | AG167: -7877 | AJ167: 17839 | AL167: 47721 | AO167: 9439 | AP167: 21 | AS167: 31773 | AT167: 81189 | AU167: 0 | AV167: 25990 | AW167: 2188 | AX167: 2697 | AY167: 30875 | AZ167: 27754 | BA167: 390 | BB167: 723 | BC167: 767 | BD167: 124 | BE167: 9523 | BG167: 4729 | BH167: 0 | BJ167: 4794 | BK167: -3145 | BL167: 0 | BM167: -380 | BN167: 0 | BO167: 1269 | BQ167: 13739 | BW167: 20876 | BY167: 50826 | CD167: 21 | CE167: 8.53 | CJ167: 21901 | CK167: 0 | CL167: 28202.17653 | CM167: 28404.77141 | CO167: 28404.77141 | CQ167: 23540 | CR167: 69.08602616 | CS167: -186 | CT167: -9504 | CU167: 568 | CV167: 493 | CW167: -100
A168: 560 | B168: Orimattila | C168: 16326 | D168: 20.5 | G168: 56180 | H168: 133427 | I168: 0 | J168: 46660 | K168: 2712 | L168: 4333 | M168: 53705 | N168: 31577 | O168: 12 | P168: 921 | Q168: 1508 | R168: 93 | S168: 8541 | U168: 7802 | V168: 867 | X168: 1606 | Y168: -78 | Z168: -67 | AB168: 1461 | AD168: 11831 | AG168: -9271 | AJ168: 11999 | AL168: 56107 | AO168: 16279 | AP168: 20.75 | AS168: 59377 | AT168: 137982 | AU168: 2 | AV168: 48784 | AW168: 2429 | AX168: 4427 | AY168: 55640 | AZ168: 33374 | BA168: 16 | BB168: 760 | BC168: 1508 | BD168: 79 | BE168: 11097 | BG168: 7841 | BH168: -10 | BJ168: 3246 | BK168: -6 | BL168: 71 | BM168: -42 | BN168: -100 | BO168: 3027 | BQ168: 14755 | BW168: 14527 | BY168: 53017 | CD168: 20.75 | CE168: 8.28 | CJ168: 31324 | CK168: 0 | CL168: 32394.05766 | CM168: 31780.25299 | CO168: 31780.25299 | CQ168: 31577 | CR168: -90.03971329 | CS168: -352 | CT168: -7500 | CU168: 98 | CV168: 654 | CW168: -1
A169: 561 | B169: Oripää | C169: 1377 | D169: 19.5 | G169: 3987 | H169: 11612 | I169: 0 | J169: 3494 | K169: 399 | L169: 308 | M169: 4201 | N169: 4098 | O169: 5 | P169: 65 | Q169: 3 | R169: 2 | S169: 615 | U169: 540 | V169: 122 | X169: 197 | Y169: 15 | Z169: 0 | AB169: 212 | AD169: 1283 | AG169: -745 | AJ169: 309 | AL169: 4392 | AO169: 1363 | AP169: 19.5 | AS169: 4458 | AT169: 11634 | AU169: 0 | AV169: 3331 | AW169: 395 | AX169: 342 | AY169: 4068 | AZ169: 3860 | BA169: 4 | BB169: 46 | BC169: 3 | BD169: 1 | BE169: 712 | BG169: 589 | BH169: 0 | BJ169: 123 | BK169: 15 | BL169: 0 | BM169: 0 | BN169: 0 | BO169: 138 | BQ169: 1422 | BW169: 207 | BY169: 4191 | CD169: 19.5 | CE169: 7.03 | CJ169: 2793 | CK169: 0 | CL169: 3795.691939 | CM169: 3612.453279 | CO169: 3612.453279 | CQ169: 4098 | CR169: -613.904306 | CS169: 0 | CT169: -437 | CU169: 41 | CV169: 2 | CW169: 0
A170: 562 | B170: Orivesi | C170: 9408 | D170: 22.25 | G170: 27807 | H170: 78936 | I170: 84 | J170: 28783 | K170: 1717 | L170: 3004 | M170: 33504 | N170: 23863 | O170: 65 | P170: 642 | Q170: 116 | R170: 102 | S170: 5657 | U170: 4361 | V170: -605 | X170: 691 | Y170: 129 | Z170: -35 | AB170: 785 | AD170: 2560 | AG170: -6017 | AJ170: 4947 | AL170: 37963 | AO170: 9312 | AP170: 22.25 | AS170: 27769 | AT170: 78760 | AU170: 194 | AV170: 29201 | AW170: 1658 | AX170: 3036 | AY170: 33895 | AZ170: 25129 | BA170: 53 | BB170: 552 | BC170: 115 | BD170: 96 | BE170: 7654 | BG170: 4560 | BH170: 55 | BJ170: 3149 | BK170: 192 | BL170: 41 | BM170: 2 | BN170: -60 | BO170: 3242 | BQ170: 6009 | BW170: 7857 | BY170: 37871 | CD170: 22 | CE170: 9.53 | CJ170: 20650 | CK170: 0 | CL170: 23806.14901 | CM170: 21789.49407 | CO170: 21789.49407 | CQ170: 23863 | CR170: -83.77988176 | CS170: -42 | CT170: -6810 | CU170: 1663 | CV170: 332 | CW170: -30
A171: 563 | B171: Oulainen | C171: 7610 | D171: 21.75 | G171: 29224 | H171: 73003 | I171: 17 | J171: 22315 | K171: 1174 | L171: 1805 | M171: 25294 | N171: 22945 | O171: 13 | P171: 371 | Q171: 674 | R171: 154 | S171: 4638 | U171: 3513 | V171: 0 | X171: 1125 | Y171: -56 | Z171: -1 | AB171: 1068 | AD171: 5375 | AG171: -6629 | AJ171: 16561 | AL171: 39848 | AO171: 7514 | AP171: 21.75 | AS171: 30220 | AT171: 75485 | AU171: 1 | AV171: 22052 | AW171: 1022 | AX171: 1847 | AY171: 24921 | AZ171: 24393 | BA171: 28 | BB171: 247 | BC171: 1130 | BD171: 127 | BE171: 4834 | BG171: 3617 | BH171: 0 | BJ171: 1217 | BK171: -8 | BL171: 5 | BM171: -3 | BN171: -3 | BO171: 1198 | BQ171: 6573 | BW171: 18052 | BY171: 43093 | CD171: 21.5 | CE171: 9.03 | CJ171: 19497 | CK171: 0 | CL171: 24667.82567 | CM171: 23705.63093 | CO171: 23705.63093 | CQ171: 22945 | CR171: 76.24616766 | CS171: 3 | CT171: -7532 | CU171: 634 | CV171: 502 | CW171: 34
A172: 564 | B172: Oulu | C172: 198525 | D172: 20 | G172: 776479 | H172: 1694369 | I172: -2116 | J172: 653256 | K172: 37295 | L172: 43609 | M172: 734160 | N172: 362319 | O172: 2040 | P172: 13267 | Q172: 4809 | R172: 3594 | S172: 166461 | U172: 149293 | V172: 0 | X172: 17168 | Y172: -5614 | Z172: -2636 | AB172: 8918 | AD172: 639776 | AG172: -179589 | AJ172: 200419 | AL172: 876967 | AO172: 200526 | AP172: 20 | AS172: 829752 | AT172: 1742649 | AU172: 991 | AV172: 664334 | AW172: 33793 | AX172: 45522 | AY172: 743649 | AZ172: 380684 | BA172: 2528 | BB172: 15108 | BC172: 4503 | BD172: 1365 | BE172: 200303 | BG172: 147785 | BH172: 0 | BJ172: 52518 | BK172: -182 | BL172: 3381 | BM172: -5436 | BN172: -3064 | BO172: 40455 | BQ172: 676948 | BW172: 211408 | BY172: 874166 | CD172: 20 | CE172: 7.53 | CJ172: 134043 | CK172: 0 | CL172: 269792.6067 | CM172: 264130.9435 | CO172: 264130.9435 | CQ172: 362319 | CR172: -8702.580427 | CS172: -15867 | CT172: -202008 | CU172: 1492 | CV172: 23255 | CW172: 323
A173: 309 | B173: Outokumpu | C173: 7139 | D173: 22.25 | G173: 31730 | H173: 68738 | I173: 2 | J173: 20287 | K173: 1766 | L173: 1560 | M173: 23613 | N173: 22361 | O173: 165 | P173: 616 | Q173: 63 | R173: 26 | S173: 8486 | U173: 5136 | V173: 0 | X173: 3350 | Y173: -204 | Z173: -5 | AB173: 3141 | AD173: 3788 | AG173: -5312 | AJ173: 3931 | AL173: 39449 | AO173: 7091 | AP173: 22.25 | AS173: 31343 | AT173: 71552 | AU173: 0 | AV173: 19876 | AW173: 1319 | AX173: 1775 | AY173: 22970 | AZ173: 22678 | BA173: 150 | BB173: 496 | BC173: 45 | BD173: 8 | BE173: 5063 | BG173: 4841 | BH173: 0 | BJ173: 222 | BK173: 376 | BL173: 7 | BM173: 198 | BN173: -3 | BO173: 786 | BQ173: 4961 | BW173: 2816 | BY173: 37156 | CD173: 21.75 | CE173: 9.28 | CJ173: 16528 | CK173: 1000 | CL173: 20738.24203 | CM173: 20404.88278 | CO173: 20404.88278 | CQ173: 22361 | CR173: 59.43540066 | CS173: 45 | CT173: -12148 | CU173: 4243 | CV173: 422 | CW173: -424
A174: 576 | B174: Padasjoki | C174: 3143 | D174: 21 | G174: 14775 | H174: 32771 | I174: 0 | J174: 8296 | K174: 1184 | L174: 1393 | M174: 10873 | N174: 9689 | O174: 29 | P174: 171 | Q174: 270 | R174: 10 | S174: 2684 | U174: 2137 | V174: -11 | X174: 536 | Y174: 610 | Z174: -3 | AB174: 1143 | AD174: 6996 | AG174: -2519 | AJ174: 8047 | AL174: 11522 | AO174: 3073 | AP174: 21 | AS174: 14871 | AT174: 33423 | AU174: 0 | AV174: 8425 | AW174: 1140 | AX174: 1394 | AY174: 10959 | AZ174: 9949 | BA174: 152 | BB174: 133 | BC174: 19 | BD174: 505 | BE174: 1889 | BG174: 2204 | BH174: -2 | BJ174: -317 | BK174: 375 | BL174: 0 | BM174: -9 | BN174: -18 | BO174: 31 | BQ174: 10623 | BW174: 7425 | BY174: 12813 | CD174: 21 | CE174: 8.53 | CJ174: 8983 | CK174: 0 | CL174: 9573.693344 | CM174: 9346.463539 | CO174: 9346.463539 | CQ174: 9689 | CR174: -42.338228 | CS174: -9 | CT174: -4101 | CU174: 22 | CV174: 98 | CW174: -8
A175: 577 | B175: Paimio | C175: 10620 | D175: 20.75 | G175: 32300 | H175: 89450 | I175: 1 | J175: 37138 | K175: 1354 | L175: 1964 | M175: 40456 | N175: 19562 | O175: 30 | P175: 742 | Q175: 116 | R175: 20 | S175: 2253 | U175: 5118 | V175: 0 | X175: -2865 | Y175: 10 | Z175: 0 | AB175: -2855 | AD175: -7556 | AG175: -7527 | AJ175: 6933 | AL175: 63029 | AO175: 10713 | AP175: 20.75 | AS175: 32508 | AT175: 87548 | AU175: 24 | AV175: 38973 | AW175: 1307 | AX175: 1810 | AY175: 42090 | AZ175: 20501 | BA175: 457 | BB175: 1009 | BC175: 32 | BD175: 2 | BE175: 7053 | BG175: 5227 | BH175: -193 | BJ175: 1633 | BK175: 0 | BL175: 194 | BM175: 0 | BN175: 1 | BO175: 1440 | BQ175: -4998 | BW175: 8047 | BY175: 62720 | CD175: 20.75 | CE175: 8.28 | CJ175: 10768 | CK175: 1500 | CL175: 13730.10277 | CM175: 13271.65966 | CO175: 13271.65966 | CQ175: 19562 | CR175: -59.62218696 | CS175: -271 | CT175: -5088 | CU175: 167 | CV175: 350 | CW175: -100
A176: 578 | B176: Paltamo | C176: 3488 | D176: 22 | G176: 24263 | H176: 45298 | I176: -2 | J176: 9507 | K176: 685 | L176: 1257 | M176: 11449 | N176: 12298 | O176: 0 | P176: 256 | Q176: 29 | R176: 13 | S176: 2470 | U176: 1890 | V176: 23 | X176: 603 | Y176: 1 | Z176: 0 | AB176: 604 | AD176: 1068 | AG176: -2445 | AJ176: 4267 | AL176: 15518 | AO176: 3491 | AP176: 22 | AS176: 24769 | AT176: 45920 | AU176: -1 | AV176: 9257 | AW176: 622 | AX176: 1274 | AY176: 11153 | AZ176: 12645 | BA176: 1 | BB176: 155 | BC176: 29 | BD176: 37 | BE176: 2484 | BG176: 1651 | BH176: 14 | BJ176: 847 | BK176: -18 | BL176: 0 | BM176: -45 | BN176: 0 | BO176: 784 | BQ176: 1408 | BW176: 4361 | BY176: 16886 | CD176: 22 | CE176: 9.53 | CJ176: 10619 | CK176: 0 | CL176: 12699.96801 | CM176: 12388.30645 | CO176: 12388.30645 | CQ176: 12298 | CR176: 2.5527461 | CS176: -430 | CT176: -3199 | CU176: 94 | CV176: 509 | CW176: -17
A177: 445 | B177: Parainen | C177: 15457 | D177: 19.75 | G177: 47392 | H177: 132265 | I177: -153 | J177: 53325 | K177: 2354 | L177: 9092 | M177: 64771 | N177: 31146 | O177: 7 | P177: 1207 | Q177: 63 | R177: 29 | S177: 9725 | U177: 7066 | V177: 0 | X177: 2659 | Y177: -65 | Z177: 8 | AB177: 2602 | AD177: 13502 | AG177: -7158 | AJ177: 5027 | AL177: 54889 | AO177: 15398 | AP177: 19.75 | AS177: 48365 | AT177: 135253 | AU177: 4 | AV177: 54746 | AW177: 2014 | AX177: 9156 | AY177: 65916 | AZ177: 31849 | BA177: 4 | BB177: 1214 | BC177: 71 | BD177: 19 | BE177: 9723 | BG177: 7293 | BH177: 0 | BJ177: 2430 | BK177: -66 | BL177: 0 | BM177: 0 | BN177: 14 | BO177: 2378 | BQ177: 16062 | BW177: 5799 | BY177: 52513 | CD177: 19.75 | CE177: 7.28 | CJ177: 27301 | CK177: 0 | CL177: 30036.55354 | CM177: 28329.25036 | CO177: 28329.25036 | CQ177: 31146 | CR177: 5.7903753 | CS177: 14 | CT177: -7182 | CU177: 161 | CV177: 399 | CW177: 0
A178: 580 | B178: Parikkala | C178: 5235 | D178: 19.5 | G178: 3804 | H178: 33770 | I178: -5 | J178: 13444 | K178: 1252 | L178: 1362 | M178: 16058 | N178: 17862 | O178: 33 | P178: 57 | Q178: 38 | R178: 2 | S178: 3949 | U178: 2235 | V178: 0 | X178: 1714 | Y178: -11 | Z178: -32 | AB178: 1671 | AD178: 16049 | AG178: -3311 | AJ178: 6255 | AL178: 4887 | AO178: 5126 | AP178: 19.5 | AS178: 30098 | AT178: 59624 | AU178: 56 | AV178: 12990 | AW178: 1418 | AX178: 1381 | AY178: 15789 | AZ178: 18200 | BA178: 36 | BB178: 40 | BC178: 43 | BD178: 1 | BE178: 4545 | BG178: 2513 | BH178: 0 | BJ178: 2032 | BK178: -16 | BL178: 0 | BM178: 0 | BN178: -40 | BO178: 1976 | BQ178: 17989 | BW178: 5785 | BY178: 4126 | CD178: 19.5 | CE178: 7.03 | CJ178: 15519 | CK178: 0 | CL178: 17758.96031 | CM178: 16324.26617 | CO178: 16324.26617 | CQ178: 17862 | CR178: -136.3166417 | CS178: -151 | CT178: -4364 | CU178: 205 | CV178: 311 | CW178: 47
A179: 581 | B179: Parkano | C179: 6766 | D179: 20.5 | G179: 30000 | H179: 67615 | I179: 0 | J179: 18469 | K179: 1865 | L179: 1891 | M179: 22225 | N179: 19727 | O179: 23 | P179: 304 | Q179: 107 | R179: 75 | S179: 4037 | U179: 3320 | V179: 0 | X179: 717 | Y179: -16 | Z179: -18 | AB179: 683 | AD179: 9382 | AG179: -3549 | AJ179: 5215 | AL179: 28208 | AO179: 6692 | AP179: 21 | AS179: 35718 | AT179: 74186 | AU179: 330 | AV179: 18541 | AW179: 1848 | AX179: 1843 | AY179: 22232 | AZ179: 20800 | BA179: 17 | BB179: 271 | BC179: 112 | BD179: 75 | BE179: 4625 | BG179: 3707 | BH179: 39 | BJ179: 957 | BK179: 4 | BL179: 38 | BM179: 2 | BN179: -20 | BO179: 905 | BQ179: 10065 | BW179: 5283 | BY179: 28942 | CD179: 21 | CE179: 8.53 | CJ179: 13786 | CK179: 0 | CL179: 18455.37116 | CM179: 17952.72992 | CO179: 17952.72992 | CQ179: 19727 | CR179: 44.18118616 | CS179: -1276 | CT179: -6954 | CU179: 8 | CV179: 1602 | CW179: -28
A180: 599 | B180: Pedersören kunta | C180: 11129 | D180: 20.5 | G180: 30376 | H180: 87267 | I180: 46 | J180: 30703 | K180: 3536 | L180: 2057 | M180: 36296 | N180: 24538 | O180: 19 | P180: 223 | Q180: 256 | R180: 213 | S180: 3828 | U180: 3316 | V180: -3 | X180: 509 | Y180: -168 | Z180: -8 | AB180: 333 | AD180: 11995 | AG180: -6006 | AJ180: 6802 | AL180: 31018 | AO180: 11067 | AP180: 20.5 | AS180: 30303 | AT180: 87740 | AU180: 24 | AV180: 30276 | AW180: 3058 | AX180: 2146 | AY180: 35480 | AZ180: 25316 | BA180: 56 | BB180: 181 | BC180: 195 | BD180: 203 | BE180: 3250 | BG180: 3575 | BH180: -2 | BJ180: -327 | BK180: -97 | BL180: 34 | BM180: 0 | BN180: -1 | BO180: -459 | BQ180: 12273 | BW180: 3287 | BY180: 30598 | CD180: 20.5 | CE180: 8.03 | CJ180: 24766 | CK180: 0 | CL180: 25485.84859 | CM180: 25030.10159 | CO180: 25030.10159 | CQ180: 24538 | CR180: -303.4903802 | CS180: -303 | CT180: -9705 | CU180: 250 | CV180: 3746 | CW180: 0
A181: 583 | B181: Pelkosenniemi | C181: 958 | D181: 19.5 | G181: 5251 | H181: 13114 | I181: -11 | J181: 2476 | K181: 322 | L181: 1650 | M181: 4448 | N181: 4056 | O181: 5 | P181: 76 | Q181: 95 | R181: 5 | S181: 623 | U181: 610 | V181: 616 | X181: 629 | Y181: -110 | Z181: 3 | AB181: 522 | AD181: 1799 | AG181: 438 | AJ181: 1412 | AL181: 4856 | AO181: 951 | AP181: 21.5 | AS181: 5413 | AT181: 13194 | AU181: -10 | AV181: 2868 | AW181: 276 | AX181: 1752 | AY181: 4896 | AZ181: 4027 | BA181: 13 | BB181: 43 | BC181: 38 | BD181: 6 | BE181: 1106 | BG181: 640 | BH181: -26 | BJ181: 440 | BK181: -12 | BL181: 0 | BM181: -9 | BN181: -3 | BO181: 416 | BQ181: 2215 | BW181: 1429 | BY181: 4739 | CD181: 22 | CE181: 9.53 | CJ181: 3431 | CK181: 0 | CL181: 3960.185002 | CM181: 3952.583524 | CO181: 3952.583524 | CQ181: 4056 | CR181: 56.03589 | CS181: -6 | CT181: -937 | CU181: 42 | CV181: 5 | CW181: 0
A182: 854 | B182: Pello | C182: 3623 | D182: 20.25 | G182: 13573 | H182: 39928 | I182: -5 | J182: 9860 | K182: 776 | L182: 677 | M182: 11313 | N182: 16025 | O182: 3 | P182: 96 | Q182: 177 | R182: 29 | S182: 1033 | U182: 1973 | V182: 47 | X182: -893 | Y182: -3 | Z182: 0 | AB182: -896 | AD182: 4971 | AG182: -1779 | AJ182: 4220 | AL182: 9656 | AO182: 3565 | AP182: 20.25 | AS182: 13610 | AT182: 39696 | AU182: 3 | AV182: 9937 | AW182: 672 | AX182: 720 | AY182: 11329 | AZ182: 16420 | BA182: 1 | BB182: 84 | BC182: 86 | BD182: 19 | BE182: 1650 | BG182: 1854 | BH182: 0 | BJ182: -204 | BK182: 0 | BL182: 19 | BM182: 0 | BN182: 2 | BO182: -221 | BQ182: 4736 | BW182: 2868 | BY182: 9617 | CD182: 20.25 | CE182: 7.78 | CJ182: 14081 | CK182: 0 | CL182: 14833.95078 | CM182: 14851.61064 | CO182: 14851.61064 | CQ182: 16025 | CR182: -33.1856993 | CS182: -23 | CT182: -3625 | CU182: 150 | CV182: 538 | CW182: -16
A183: 584 | B183: Perho | C183: 2931 | D183: 21 | G183: 11239 | H183: 27173 | I183: 1 | J183: 6430 | K183: 560 | L183: 473 | M183: 7463 | N183: 11647 | O183: 319 | P183: 46 | Q183: 19 | R183: 13 | S183: 3450 | U183: 1557 | V183: -25 | X183: 1868 | Y183: -837 | Z183: 0 | AB183: 1031 | AD183: 5026 | AG183: -2522 | AJ183: 5779 | AL183: 8577 | AO183: 2907 | AP183: 21 | AS183: 9874 | AT183: 28066 | AU183: -7 | AV183: 6094 | AW183: 547 | AX183: 487 | AY183: 7128 | AZ183: 13024 | BA183: 226 | BB183: 46 | BC183: 11 | BD183: -5 | BE183: 2143 | BG183: 1746 | BH183: -8 | BJ183: 389 | BK183: 1 | BL183: 0 | BM183: 0 | BN183: -4 | BO183: 386 | BQ183: 5474 | BW183: 6474 | BY183: 10666 | CD183: 21.5 | CE183: 9.03 | CJ183: 10360 | CK183: 0 | CL183: 11536.8457 | CM183: 11227.07278 | CO183: 11227.07278 | CQ183: 11647 | CR183: 15.54062016 | CS183: -43 | CT183: -4855 | CU183: 822 | CV183: 43 | CW183: 10
A184: 588 | B184: Pertunmaa | C184: 1817 | D184: 21 | G184: 6957 | H184: 17674 | I184: 0 | J184: 4103 | K184: 818 | L184: 780 | M184: 5701 | N184: 6284 | O184: 1 | P184: 61 | Q184: 54 | R184: 3 | S184: 1259 | U184: 882 | V184: -2 | X184: 375 | Y184: 0 | Z184: -4 | AB184: 371 | AD184: 62 | AG184: -409 | AJ184: 1796 | AL184: 7114 | AO184: 1796 | AP184: 21 | AS184: 7052 | AT184: 17932 | AU184: 0 | AV184: 4056 | AW184: 734 | AX184: 836 | AY184: 5626 | AZ184: 6479 | BA184: 0 | BB184: 44 | BC184: 62 | BD184: 2 | BE184: 1241 | BG184: 827 | BH184: 0 | BJ184: 414 | BK184: -3 | BL184: 0 | BM184: 4 | BN184: -3 | BO184: 412 | BQ184: 409 | BW184: 1870 | BY184: 7657 | CD184: 21 | CE184: 8.53 | CJ184: 5420 | CK184: 0 | CL184: 6163.135615 | CM184: 5714.545087 | CO184: 5714.545087 | CQ184: 6284 | CR184: -33.621534 | CS184: 57 | CT184: -1862 | CU184: 10 | CV184: 49 | CW184: -39
A185: 592 | B185: Petäjävesi | C185: 4008 | D185: 21.25 | G185: 10292 | H185: 32159 | I185: 5 | J185: 11283 | K185: 858 | L185: 899 | M185: 13040 | N185: 12219 | O185: 29 | P185: 242 | Q185: 478 | R185: 67 | S185: 3595 | U185: 1798 | V185: 0 | X185: 1797 | Y185: -11 | Z185: 0 | AB185: 1786 | AD185: 9728 | AG185: -1295 | AJ185: 5459 | AL185: 17111 | AO185: 3981 | AP185: 21.25 | AS185: 10820 | AT185: 34218 | AU185: 0 | AV185: 10960 | AW185: 884 | AX185: 852 | AY185: 12696 | AZ185: 12238 | BA185: 26 | BB185: 180 | BC185: 151 | BD185: 22 | BE185: 1511 | BG185: 1771 | BH185: 0 | BJ185: -260 | BK185: -218 | BL185: 0 | BM185: 0 | BN185: 0 | BO185: -478 | BQ185: 9184 | BW185: 5902 | BY185: 19679 | CD185: 21.25 | CE185: 8.78 | CJ185: 9266 | CK185: 0 | CL185: 10788.01996 | CM185: 10118.00314 | CO185: 10118.00314 | CQ185: 12219 | CR185: 77.6408387 | CS185: -88 | CT185: -3519 | CU185: 1 | CV185: 142 | CW185: 5
A186: 593 | B186: Pieksämäki | C186: 18801 | D186: 21.5 | G186: 51768 | H186: 158287 | I186: 330 | J186: 58853 | K186: 4706 | L186: 3769 | M186: 67328 | N186: 46303 | O186: 31 | P186: 1100 | Q186: 594 | R186: 32 | S186: 6734 | U186: 9856 | V186: 3 | X186: -3119 | Y186: -118 | Z186: 15 | AB186: -3222 | AD186: -8419 | AG186: -7218 | AJ186: 6754 | AL186: 101049 | AO186: 18475 | AP186: 22 | AS186: 53162 | AT186: 156586 | AU186: 80 | AV186: 59467 | AW186: 4151 | AX186: 4264 | AY186: 67882 | AZ186: 49675 | BA186: 29 | BB186: 887 | BC186: 579 | BD186: 23 | BE186: 13640 | BG186: 8695 | BH186: 3 | BJ186: 4948 | BK186: 102 | BL186: 10 | BM186: -124 | BN186: -9 | BO186: 4907 | BQ186: -3491 | BW186: 8270 | BY186: 98935 | CD186: 22 | CE186: 9.53 | CJ186: 41062 | CK186: 0 | CL186: 49602.32225 | CM186: 47737.66045 | CO186: 47737.66045 | CQ186: 46303 | CR186: -168.1039343 | CS186: -647 | CT186: -9775 | CU186: 78 | CV186: 592 | CW186: -146
A187: 595 | B187: Pielavesi | C187: 4740 | D187: 20.75 | G187: 18398 | H187: 51482 | I187: 23 | J187: 11000 | K187: 1452 | L187: 1153 | M187: 13605 | N187: 20771 | O187: 67 | P187: 240 | Q187: 461 | R187: 31 | S187: 1572 | U187: 2204 | V187: -14 | X187: -646 | Y187: -5 | Z187: 2 | AB187: -649 | AD187: -1906 | AG187: -5098 | AJ187: 3165 | AL187: 17871 | AO187: 4697 | AP187: 20.75 | AS187: 19410 | AT187: 51519 | AU187: 20 | AV187: 10470 | AW187: 1339 | AX187: 1164 | AY187: 12973 | AZ187: 21288 | BA187: 53 | BB187: 217 | BC187: 243 | BD187: 34 | BE187: 2183 | BG187: 2382 | BH187: 42 | BJ187: -157 | BK187: -3 | BL187: 3 | BM187: -3 | BN187: -14 | BO187: -180 | BQ187: -1964 | BW187: 3260 | BY187: 26255 | CD187: 20.75 | CE187: 8.28 | CJ187: 17265 | CK187: 0 | CL187: 20364.45725 | CM187: 19723.97552 | CO187: 19723.97552 | CQ187: 20771 | CR187: 29.885808 | CS187: 0 | CT187: -10155 | CU187: 108 | CV187: 26 | CW187: 78
A188: 598 | B188: Pietarsaari | C188: 19436 | D188: 21.25 | G188: 136710 | H188: 240739 | I188: 4770 | J188: 68907 | K188: 5867 | L188: 5438 | M188: 80212 | N188: 37218 | O188: 79 | P188: 1759 | Q188: 1110 | R188: 643 | S188: 16959 | U188: 13639 | V188: -917 | X188: 2403 | Y188: 0 | Z188: -6 | AB188: 2397 | AD188: 85974 | AG188: -18805 | AJ188: 12758 | AL188: 95792 | AO188: 19377 | AP188: 21.25 | AS188: 132705 | AT188: 241366 | AU188: 6303 | AV188: 67731 | AW188: 5140 | AX188: 4677 | AY188: 77548 | AZ188: 39204 | BA188: 129 | BB188: 1332 | BC188: 1520 | BD188: 311 | BE188: 14400 | BG188: 10681 | BH188: -1047 | BJ188: 2672 | BK188: 0 | BL188: 0 | BM188: 0 | BN188: 4 | BO188: 2676 | BQ188: 93902 | BW188: 5930 | BY188: 93625 | CD188: 21.25 | CE188: 8.78 | CJ188: 33518 | CK188: 0 | CL188: 39249.62324 | CM188: 38649.39181 | CO188: 38649.39181 | CQ188: 37218 | CR188: 629.8184988 | CS188: -205 | CT188: -12634 | CU188: 443 | CV188: 674 | CW188: -1914
A189: 601 | B189: Pihtipudas | C189: 4221 | D189: 21 | G189: 26175 | H189: 53064 | I189: 0 | J189: 10132 | K189: 1473 | L189: 875 | M189: 12480 | N189: 18436 | O189: 334 | P189: 207 | Q189: 74 | R189: 203 | S189: 4024 | U189: 2358 | V189: 0 | X189: 1666 | Y189: 3 | Z189: 0 | AB189: 1669 | AD189: 9048 | AG189: -2668 | AJ189: 11559 | AL189: 23891 | AO189: 4202 | AP189: 21 | AS189: 26501 | AT189: 53840 | AU189: 0 | AV189: 9536 | AW189: 1398 | AX189: 859 | AY189: 11793 | AZ189: 18965 | BA189: 365 | BB189: 159 | BC189: 61 | BD189: 61 | BE189: 3625 | BG189: 2347 | BH189: 0 | BJ189: 1278 | BK189: 0 | BL189: 0 | BM189: 0 | BN189: 0 | BO189: 1278 | BQ189: 10522 | BW189: 11528 | BY189: 27551 | CD189: 21 | CE189: 8.53 | CJ189: 15100 | CK189: 0 | CL189: 17185.75717 | CM189: 16315.52903 | CO189: =CM189-CN189 -> 16315.52903 | CQ189: 18436 | CR189: 4667.453422 | CS189: 0 | CT189: -6646 | CU189: 27 | CV189: 153 | CW189: 0
A190: 604 | B190: Pirkkala | C190: 18913 | D190: 20 | G190: 44937 | H190: 128254 | I190: 0 | J190: 74077 | K190: 3275 | L190: 3964 | M190: 81316 | N190: 10963 | O190: 7 | P190: 811 | Q190: 826 | R190: 762 | S190: 8222 | U190: 7965 | V190: 0 | X190: 257 | Y190: -14 | Z190: 77 | AB190: 320 | AD190: 47513 | AG190: -13747 | AJ190: 5054 | AL190: 46500 | AO190: 19163 | AP190: 20 | AS190: 50863 | AT190: 129875 | AU190: 9 | AV190: 77696 | AW190: 2989 | AX190: 4124 | AY190: 84809 | AZ190: 11735 | BA190: 4 | BB190: 595 | BC190: 631 | BD190: 534 | BE190: 17047 | BG190: 10078 | BH190: 38 | BJ190: 7007 | BK190: 4 | BL190: 29 | BM190: 1 | BN190: 49 | BO190: 7032 | BQ190: 54538 | BW190: 12193 | BY190: 46945 | CD190: 20 | CE190: 7.53 | CJ190: 12842 | CK190: 0 | CL190: 11264.74413 | CM190: 10576.65385 | CO190: 10576.65385 | CQ190: 10963 | CR190: -655.964845 | CS190: -8062 | CT190: -11386 | CU190: 596 | CV190: 8367 | CW190: -17
A191: 607 | B191: Polvijärvi | C191: 4556 | D191: 19.5 | G191: 16777 | H191: 40774 | I191: 2 | J191: 10195 | K191: 1097 | L191: 897 | M191: 12189 | N191: 14960 | O191: 13 | P191: 136 | Q191: 259 | R191: 60 | S191: 3230 | U191: 1953 | V191: 0 | X191: 1277 | Y191: -1071 | Z191: 0 | AB191: 206 | AD191: 17089 | AG191: -2032 | AJ191: 9850 | AL191: 6484 | AO191: 4514 | AP191: 20.25 | AS191: 17066 | AT191: 40873 | AU191: 0 | AV191: 9659 | AW191: 1026 | AX191: 919 | AY191: 11604 | AZ191: 15123 | BA191: 20 | BB191: 100 | BC191: 243 | BD191: 19 | BE191: 3064 | BG191: 2391 | BH191: 4 | BJ191: 677 | BK191: 355 | BL191: 0 | BM191: 0 | BN191: 0 | BO191: 1032 | BQ191: 17865 | BW191: 10037 | BY191: 6196 | CD191: 20.25 | CE191: 7.78 | CJ191: 14119 | CK191: 0 | CL191: 14490.69587 | CM191: 14120.86116 | CO191: 14120.86116 | CQ191: 14960 | CR191: -66.23442198 | CS191: -1 | CT191: -2695 | CU191: 192 | CV191: 12 | CW191: -261
A192: 608 | B192: Pomarkku | C192: 2240 | D192: 20.5 | G192: 11395 | H192: 25483 | I192: 0 | J192: 5681 | K192: 459 | L192: 447 | M192: 6587 | N192: 8565 | O192: 1 | P192: 42 | Q192: 12 | R192: 16 | S192: 1011 | U192: 656 | V192: 0 | X192: 355 | Y192: 0 | Z192: 0 | AB192: 355 | AD192: 4097 | AG192: -2634 | AJ192: 910 | AL192: 5253 | AO192: 2233 | AP192: 20.5 | AS192: 11090 | AT192: 25364 | AU192: 0 | AV192: 5578 | AW192: 434 | AX192: 443 | AY192: 6455 | AZ192: 8456 | BA192: 2 | BB192: 36 | BC192: 18 | BD192: 9 | BE192: 604 | BG192: 779 | BH192: 0 | BJ192: -175 | BK192: 0 | BL192: 0 | BM192: -4 | BN192: 0 | BO192: -179 | BQ192: 3914 | BW192: 968 | BY192: 5225 | CD192: 20.5 | CE192: 8.03 | CJ192: 7283 | CK192: 0 | CL192: 7763.786984 | CM192: 7631.852236 | CO192: 7631.852236 | CQ192: 8565 | CR192: -41.9023933 | CS192: 5 | CT192: -447 | CU192: 6 | CV192: 146 | CW192: -4
A193: 609 | B193: Pori | C193: 85363 | D193: 19.75 | G193: 433574 | H193: 892943 | I193: -1020 | J193: 268349 | K193: 17944 | L193: 22102 | M193: 308395 | N193: 222259 | O193: 1378 | P193: 5786 | Q193: 4228 | R193: 31 | S193: 68292 | U193: 67180 | V193: -3274 | X193: -2162 | Y193: -1137 | Z193: -2400 | AB193: -5699 | AD193: 15528 | AG193: -75720 | AJ193: 105392 | AL193: 468032 | AO193: 85059 | AP193: 19.75 | AS193: 423624 | AT193: 863129 | AU193: -681 | AV193: 271049 | AW193: 14121 | AX193: 23230 | AY193: 308400 | AZ193: 221256 | BA193: 1594 | BB193: 5429 | BC193: 3544 | BD193: 275 | BE193: 87157 | BG193: 66301 | BH193: 0 | BJ193: 20856 | BK193: 66 | BL193: 0 | BM193: -2576 | BN193: -516 | BO193: 17830 | BQ193: 41079 | BW193: 100109 | BY193: 450965 | CD193: 19.75 | CE193: 7.28 | CJ193: 162805 | CK193: 0 | CL193: 139000.0646 | CM193: 138742.1088 | CO193: 138742.1088 | CQ193: =N193-CP193 -> 222259 | CR193: -2194.511146 | CS193: -10968 | CT193: -92769 | CU193: 1357 | CV193: 19508 | CW193: -166
A194: 611 | B194: Pornainen | C194: 5125 | D194: 20 | G194: 9590 | H194: 32550 | I194: -4 | J194: 17007 | K194: 387 | L194: 1105 | M194: 18499 | N194: 6787 | O194: 52 | P194: 221 | Q194: 9 | R194: 34 | S194: 2128 | U194: 2188 | V194: 481 | X194: 421 | Y194: 16 | Z194: 0 | AB194: 437 | AD194: 6348 | AG194: -725 | AJ194: 1774 | AL194: 16047 | AO194: 5108 | AP194: 20.5 | AS194: 9657 | AT194: 32397 | AU194: 3 | AV194: 17837 | AW194: 351 | AX194: 1099 | AY194: 19287 | AZ194: 7348 | BA194: 49 | BB194: 219 | BC194: 8 | BD194: 33 | BE194: 3703 | BG194: 2189 | BH194: 0 | BJ194: 1514 | BK194: 17 | BL194: 0 | BM194: 0 | BN194: 0 | BO194: 1531 | BQ194: 7856 | BW194: 4395 | BY194: 16216 | CD194: 20.5 | CE194: 8.03 | CJ194: 6500 | CK194: 0 | CL194: 6002.922386 | CM194: 5452.21349 | CO194: 5452.21349 | CQ194: 6787 | CR194: -127.9361631 | CS194: -164 | CT194: -2454 | CU194: 51 | CV194: 384 | CW194: 15
A195: 638 | B195: Porvoo | C195: 49928 | D195: 19.75 | G195: 217754 | H195: 450128 | I195: 413 | J195: 187564 | K195: 17859 | L195: 16419 | M195: 221842 | N195: 59675 | O195: 146 | P195: 3907 | Q195: 529 | R195: 950 | S195: 45374 | U195: 45812 | V195: 0 | X195: -438 | Y195: -450 | Z195: -5 | AB195: -893 | AD195: 26737 | AG195: -38738 | AJ195: 38481 | AL195: 279902 | AO195: 50144 | AP195: 19.75 | AS195: 230928 | AT195: 469088 | AU195: 467 | AV195: 196962 | AW195: 14924 | AX195: 16841 | AY195: 228727 | AZ195: 70944 | BA195: 367 | BB195: 3521 | BC195: 912 | BD195: 591 | BE195: 59145 | BG195: 46478 | BH195: 2030 | BJ195: 14697 | BK195: -2763 | BL195: 477 | BM195: -461 | BN195: -152 | BO195: 10844 | BQ195: 36598 | BW195: 34730 | BY195: 294488 | CD195: 19.75 | CE195: 7.28 | CJ195: 47509 | CK195: 0 | CL195: 49098.30335 | CM195: 48447.3613 | CO195: 48447.3613 | CQ195: 59675 | CR195: 223.6454632 | CS195: -6936 | CT195: -86509 | CU195: 1104 | CV195: 12091 | CW195: -2
A196: 614 | B196: Posio | C196: 3477 | D196: 21 | G196: 18186 | H196: 42351 | I196: 0 | J196: 8723 | K196: 707 | L196: 1127 | M196: 10557 | N196: 15319 | O196: 6 | P196: 488 | Q196: 441 | R196: 18 | S196: 1653 | U196: 1922 | V196: 42 | X196: -227 | Y196: 11 | Z196: 0 | AB196: -216 | AD196: 1626 | AG196: -847 | AJ196: 9464 | AL196: 20595 | AO196: 3424 | AP196: 21.75 | AS196: 18573 | AT196: 42294 | AU196: 1 | AV196: 8126 | AW196: 705 | AX196: 1234 | AY196: 10065 | AZ196: 15907 | BA196: 2 | BB196: 470 | BC196: 81 | BD196: -4 | BE196: 1869 | BG196: 1750 | BH196: 0 | BJ196: 119 | BK196: 165 | BL196: 0 | BM196: 0 | BN196: -1 | BO196: 283 | BQ196: -1348 | BW196: 6432 | BY196: 19949 | CD196: 21.75 | CE196: =CD196-$CE$1 -> 9.28 | CJ196: 14059 | CK196: 0 | CL196: 17214.19948 | CM196: 16583.16364 | CO196: 16583.16364 | CQ196: 15319 | CR196: -48.6889622 | CS196: 2 | CT196: -1138 | CU196: 31 | CV196: 3 | CW196: 0
A197: 615 | B197: Pudasjärvi | C197: 8257 | D197: 20.5 | G197: 65761 | H197: 119743 | I197: 25 | J197: 18865 | K197: 2527 | L197: 1822 | M197: 23214 | N197: 38040 | O197: 67 | P197: 564 | Q197: 443 | R197: 67 | S197: 7176 | U197: 4875 | V197: 0 | X197: 2301 | Y197: 69 | Z197: 97 | AB197: 2467 | AD197: 13024 | AG197: -9004 | AJ197: 18798 | AL197: 42070 | AO197: 8187 | AP197: 20.5 | AS197: 60663 | AT197: 114867 | AU197: 1 | AV197: 18211 | AW197: 2398 | AX197: 1839 | AY197: 22448 | AZ197: 38491 | BA197: 38 | BB197: 879 | BC197: 494 | BD197: 155 | BE197: 6234 | BG197: 7744 | BH197: 0 | BJ197: -1510 | BK197: 131 | BL197: 0 | BM197: 0 | BN197: -4 | BO197: -1383 | BQ197: 11322 | BW197: 19420 | BY197: 48689 | CD197: 20.5 | CE197: 8.03 | CJ197: 33842 | CK197: 1200 | CL197: 37145.96677 | CM197: 35460.43633 | CO197: 35460.43633 | CQ197: 38040 | CR197: -1.76824364 | CS197: -2730 | CT197: -12657 | CU197: 1517 | CV197: 395 | CW197: 8
A198: 616 | B198: Pukkila | C198: 1971 | D198: 22 | G198: 6849 | H198: 17336 | I198: 0 | J198: 6446 | K198: 340 | L198: 434 | M198: 7220 | N198: 3874 | O198: 0 | P198: 144 | Q198: 145 | R198: 3 | S198: 605 | U198: 670 | V198: 0 | X198: -65 | Y198: 0 | Z198: 0 | AB198: -65 | AD198: -48 | AG198: 37 | AJ198: 1209 | AL198: 6348 | AO198: 1988 | AP198: 22 | AS198: 6855 | AT198: 17513 | AU198: 0 | AV198: 6509 | AW198: 399 | AX198: 406 | AY198: 7314 | AZ198: 3837 | BA198: 1 | BB198: 137 | BC198: 147 | BD198: 4 | BE198: 500 | BG198: 2866 | BH198: 4409 | BJ198: 2043 | BK198: -1 | BL198: 0 | BM198: 0 | BN198: 0 | BO198: 2042 | BQ198: 2889 | BW198: 982 | BY198: 5859 | CD198: 22 | CE198: 9.53 | CJ198: 3759 | CK198: 0 | CL198: 3433.341008 | CM198: 3224.802007 | CO198: 3224.802007 | CQ198: 3874 | CR198: -1017.362714 | CS198: -4451 | CT198: -241 | CU198: 54 | CV198: 4423 | CW198: -4087
A199: 619 | B199: Punkalaidun | C199: 3049 | D199: 21.5 | G199: 10881 | H199: 28784 | I199: 2 | J199: 7872 | K199: 502 | L199: 615 | M199: 8989 | N199: 10862 | O199: 1 | P199: 120 | Q199: 8 | R199: 3 | S199: 1836 | U199: 1378 | V199: 0 | X199: 458 | Y199: 0 | Z199: 0 | AB199: 458 | AD199: 3480 | AG199: -1194 | AJ199: 672 | AL199: 6668 | AO199: 3003 | AP199: 21.5 | AS199: 11281 | AT199: 29194 | AU199: 1 | AV199: 7507 | AW199: 522 | AX199: 617 | AY199: 8646 | AZ199: 11231 | BA199: 0 | BB199: 63 | BC199: 11 | BD199: 0 | BE199: 1913 | BG199: 1497 | BH199: 0 | BJ199: 416 | BK199: 0 | BL199: 0 | BM199: 0 | BN199: 0 | BO199: 416 | BQ199: 3840 | BW199: 1264 | BY199: 6102 | CD199: 21.5 | CE199: 9.03 | CJ199: 10219 | CK199: 0 | CL199: 10917.47897 | CM199: 10151.05897 | CO199: 10151.05897 | CQ199: 10862 | CR199: 205.6019066 | CS199: 0 | CT199: -1282 | CU199: 181 | CV199: 116 | CW199: 0
A200: 620 | B200: Puolanka | C200: 2776 | D200: 21.5 | G200: 20077 | H200: 41366 | I200: 0 | J200: 7254 | K200: 1277 | L200: 794 | M200: 9325 | N200: 13855 | O200: 2 | P200: 97 | Q200: 31 | R200: 26 | S200: 1801 | U200: 1422 | V200: 18 | X200: 397 | Y200: 0 | Z200: 0 | AB200: 397 | AD200: 2720 | AG200: -1247 | AJ200: 1773 | AL200: 9971 | AO200: 2735 | AP200: 21.5 | AS200: 20531 | AT200: 41562 | AU200: 0 | AV200: 6859 | AW200: 1244 | AX200: 813 | AY200: 8916 | AZ200: 14110 | BA200: 2 | BB200: 64 | BC200: 41 | BD200: 37 | BE200: 1937 | BG200: 1639 | BH200: 11 | BJ200: 309 | BK200: -16 | BL200: 0 | BM200: 0 | BN200: 0 | BO200: 293 | BQ200: 3014 | BW200: 1409 | BY200: 9595 | CD200: 21.5 | CE200: 9.03 | CJ200: 12863 | CK200: 0 | CL200: 14220.02569 | CM200: 13754.53295 | CO200: 13754.53295 | CQ200: 13855 | CR200: -6.1639479 | CS200: -12 | CT200: -971 | CU200: 52 | CV200: 16 | CW200: -15
... 98 more rows

Sheet väestöennuste
A1: Väestöennuste 2015 kunnittain 2017-2024
A2: TK, 28.9.2015
A3: 2017 kuntajako | B3: 3 | C3: 4 | D3: 6 | E3: 7 | F3: 8 | G3: 9 | H3: 10 | I3: 11 | J3: 12 | K3: 13
B5: 2015 | C5: 2016 | D5: 2017 | E5: 2018 | F5: 2019 | G5: 2020 | H5: 2021 | I5: 2022 | J5: 2023 | K5: 2024
A8: Akaa | B8: =pohjatiedot!C3 -> 17043 | C8: =pohjatiedot!AO3 -> 16923 | D8: 17070 | E8: 17092 | F8: 17116 | G8: 17150 | H8: 17184 | I8: 17218 | J8: 17248 | K8: 17275
A9: Alajärvi | B9: =pohjatiedot!C4 -> 10006 | C9: =pohjatiedot!AO4 -> 9899 | D9: 10001 | E9: 9923 | F9: 9845 | G9: 9769 | H9: 9697 | I9: 9629 | J9: 9560 | K9: 9499
A10: Alavieska | B10: =pohjatiedot!C5 -> 2687 | C10: =pohjatiedot!AO5 -> 2639 | D10: 2650 | E10: 2631 | F10: 2615 | G10: 2599 | H10: 2586 | I10: 2572 | J10: 2560 | K10: 2549
A11: Alavus | B11: =pohjatiedot!C6 -> 12044 | C11: =pohjatiedot!AO6 -> 11907 | D11: 11877 | E11: 11780 | F11: 11689 | G11: 11605 | H11: 11527 | I11: 11454 | J11: 11384 | K11: 11319
A12: Asikkala | B12: =pohjatiedot!C7 -> 8287 | C12: =pohjatiedot!AO7 -> 8323 | D12: 8294 | E12: 8262 | F12: 8239 | G12: 8219 | H12: 8200 | I12: 8184 | J12: 8172 | K12: 8159
A13: Askola | B13: =pohjatiedot!C8 -> 5104 | C13: =pohjatiedot!AO8 -> 5046 | D13: 5169 | E13: 5220 | F13: 5270 | G13: 5320 | H13: 5365 | I13: 5410 | J13: 5449 | K13: 5490
A14: Aura | B14: =pohjatiedot!C9 -> 3986 | C14: =pohjatiedot!AO9 -> 3984 | D14: 4035 | E14: 4058 | F14: 4079 | G14: 4099 | H14: 4118 | I14: 4134 | J14: 4152 | K14: 4168
A15: Enonkoski | B15: =pohjatiedot!C10 -> 1473 | C15: =pohjatiedot!AO10 -> 1453 | D15: 1462 | E15: 1445 | F15: 1430 | G15: 1416 | H15: 1401 | I15: 1388 | J15: 1375 | K15: 1363
A16: Enontekiö | B16: =pohjatiedot!C11 -> 1861 | C16: =pohjatiedot!AO11 -> 1872 | D16: 1896 | E16: 1902 | F16: 1910 | G16: 1917 | H16: 1926 | I16: 1936 | J16: 1945 | K16: 1956
A17: Espoo | B17: =pohjatiedot!C12 -> 269802 | C17: =pohjatiedot!AO12 -> 274583 | D17: 273484 | E17: 277445 | F17: 281312 | G17: 285087 | H17: 288763 | I17: 292333 | J17: 295784 | K17: 299117
A18: Eura | B18: =pohjatiedot!C13 -> 12128 | C18: =pohjatiedot!AO13 -> 12004 | D18: 12205 | E18: 12166 | F18: 12127 | G18: 12091 | H18: 12059 | I18: 12028 | J18: 11995 | K18: 11960
A19: Eurajoki | B19: =pohjatiedot!C14 -> 5938 | C19: =pohjatiedot!AO14 -> 9418 | D19: 5964 | E19: 5972 | F19: 5984 | G19: 5995 | H19: 6007 | I19: 6016 | J19: 6024 | K19: 6029
A20: Evijärvi | B20: =pohjatiedot!C15 -> 2576 | C20: =pohjatiedot!AO15 -> 2535 | D20: 2596 | E20: 2571 | F20: 2548 | G20: 2528 | H20: 2510 | I20: 2492 | J20: 2474 | K20: 2458
A21: Forssa | B21: =pohjatiedot!C16 -> 17422 | C21: =pohjatiedot!AO16 -> 17332 | D21: 17389 | E21: 17336 | F21: 17286 | G21: 17237 | H21: 17197 | I21: 17163 | J21: 17132 | K21: 17101
A22: Haapajärvi | B22: =pohjatiedot!C17 -> 7438 | C22: =pohjatiedot!AO17 -> 7332 | D22: 7381 | E22: 7332 | F22: 7284 | G22: 7237 | H22: 7195 | I22: 7153 | J22: 7117 | K22: 7080
A23: Haapavesi | B23: =pohjatiedot!C18 -> 7167 | C23: =pohjatiedot!AO18 -> 7098 | D23: 7069 | E23: 7020 | F23: 6974 | G23: 6927 | H23: 6886 | I23: 6844 | J23: 6803 | K23: 6763
A24: Hailuoto | B24: =pohjatiedot!C19 -> 993 | C24: =pohjatiedot!AO19 -> 994 | D24: 995 | E24: 994 | F24: 996 | G24: 997 | H24: 997 | I24: 998 | J24: 999 | K24: 1000
A25: Halsua | B25: =pohjatiedot!C20 -> 1225 | C25: =pohjatiedot!AO20 -> 1219 | D25: 1177 | E25: 1156 | F25: 1137 | G25: 1116 | H25: 1096 | I25: 1078 | J25: 1062 | K25: 1047
A26: Hamina | B26: =pohjatiedot!C21 -> 20851 | C26: =pohjatiedot!AO21 -> 20636 | D26: 20848 | E26: 20752 | F26: 20659 | G26: 20565 | H26: 20470 | I26: 20376 | J26: 20285 | K26: 20196
A27: Hankasalmi | B27: =pohjatiedot!C22 -> 5240 | C27: =pohjatiedot!AO22 -> 5159 | D27: 5213 | E27: 5171 | F27: 5133 | G27: 5096 | H27: 5063 | I27: 5031 | J27: 5000 | K27: 4971
A28: Hanko | B28: =pohjatiedot!C23 -> 8864 | C28: =pohjatiedot!AO23 -> 8663 | D28: 8789 | E28: 8690 | F28: 8598 | G28: 8510 | H28: 8428 | I28: 8351 | J28: 8281 | K28: 8211
A29: Harjavalta | B29: =pohjatiedot!C24 -> 7296 | C29: =pohjatiedot!AO24 -> 7240 | D29: 7292 | E29: 7255 | F29: 7221 | G29: 7190 | H29: 7159 | I29: 7126 | J29: 7094 | K29: 7063
A30: Hartola | B30: =pohjatiedot!C25 -> 2982 | C30: =pohjatiedot!AO25 -> 2924 | D30: 2960 | E30: 2914 | F30: 2875 | G30: 2843 | H30: 2816 | I30: 2790 | J30: 2767 | K30: 2746
A31: Hattula | B31: =pohjatiedot!C26 -> 9747 | C31: =pohjatiedot!AO26 -> 9682 | D31: 9788 | E31: 9807 | F31: 9824 | G31: 9837 | H31: 9848 | I31: 9861 | J31: 9873 | K31: 9885
A32: Hausjärvi | B32: =pohjatiedot!C27 -> 8729 | C32: =pohjatiedot!AO27 -> 8641 | D32: 8814 | E32: 8817 | F32: 8825 | G32: 8836 | H32: 8848 | I32: 8863 | J32: 8880 | K32: 8895
A33: Heinola | B33: =pohjatiedot!C28 -> 19575 | C33: =pohjatiedot!AO28 -> 19350 | D33: 19359 | E33: 19213 | F33: 19081 | G33: 18961 | H33: 18845 | I33: 18743 | J33: 18644 | K33: 18547
A34: Heinävesi | B34: =pohjatiedot!C29 -> 3574 | C34: =pohjatiedot!AO29 -> 3514 | D34: 3497 | E34: 3434 | F34: 3376 | G34: 3319 | H34: 3267 | I34: 3216 | J34: 3170 | K34: 3124
A35: Helsinki | B35: =pohjatiedot!C30 -> 628208 | C35: =pohjatiedot!AO30 -> 635181 | D35: 634731 | E35: 641830 | F35: 648760 | G35: 655512 | H35: 662101 | I35: 668491 | J35: 674714 | K35: 680782
A36: Hirvensalmi | B36: =pohjatiedot!C31 -> 2290 | C36: =pohjatiedot!AO31 -> 2274 | D36: 2287 | E36: 2265 | F36: 2241 | G36: 2222 | H36: 2203 | I36: 2188 | J36: 2174 | K36: 2160
A37: Hollola | B37: =pohjatiedot!C32 -> 23915 | C37: =pohjatiedot!AO32 -> 23791 | D37: 23976 | E37: 23981 | F37: 23987 | G37: 23991 | H37: 23989 | I37: 23981 | J37: 23970 | K37: 23949
A38: Honkajoki | B38: =pohjatiedot!C33 -> 1793 | C38: =pohjatiedot!AO33 -> 1759 | D38: 1744 | E38: 1727 | F38: 1714 | G38: 1701 | H38: 1689 | I38: 1679 | J38: 1670 | K38: 1663
A39: Huittinen | B39: =pohjatiedot!C34 -> 10473 | C39: =pohjatiedot!AO34 -> 10403 | D39: 10383 | E39: 10337 | F39: 10295 | G39: 10258 | H39: 10220 | I39: 10189 | J39: 10158 | K39: 10130
A40: Humppila | B40: =pohjatiedot!C35 -> 2388 | C40: =pohjatiedot!AO35 -> 2345 | D40: 2409 | E40: 2390 | F40: 2373 | G40: 2357 | H40: 2343 | I40: 2332 | J40: 2320 | K40: 2309
A41: Hyrynsalmi | B41: =pohjatiedot!C36 -> 2422 | C41: =pohjatiedot!AO36 -> 2406 | D41: 2372 | E41: 2320 | F41: 2270 | G41: 2225 | H41: 2182 | I41: 2140 | J41: 2102 | K41: 2066
A42: Hyvinkää | B42: =pohjatiedot!C37 -> 46463 | C42: =pohjatiedot!AO37 -> 46596 | D42: 46732 | E42: 46921 | F42: 47115 | G42: 47313 | H42: 47514 | I42: 47715 | J42: 47916 | K42: 48116
A43: Hämeenkyrö | B43: =pohjatiedot!C38 -> 10667 | C43: =pohjatiedot!AO38 -> 10681 | D43: 10672 | E43: 10709 | F43: 10744 | G43: 10782 | H43: 10818 | I43: 10852 | J43: 10883 | K43: 10916
A44: Hämeenlinna | B44: =pohjatiedot!C39 -> 68011 | C44: =pohjatiedot!AO39 -> 67850 | D44: 68509 | E44: 68785 | F44: 69056 | G44: 69317 | H44: 69584 | I44: 69852 | J44: 70115 | K44: 70372
A45: Ii | B45: =pohjatiedot!C40 -> 9663 | C45: =pohjatiedot!AO40 -> 9628 | D45: 9791 | E45: 9847 | F45: 9897 | G45: 9944 | H45: 9982 | I45: 10018 | J45: 10048 | K45: 10074
A46: Iisalmi | B46: =pohjatiedot!C41 -> 21945 | C46: =pohjatiedot!AO41 -> 21767 | D46: 22111 | E46: 22106 | F46: 22098 | G46: 22089 | H46: 22080 | I46: 22067 | J46: 22058 | K46: 22047
A47: Iitti | B47: =pohjatiedot!C42 -> 6910 | C47: =pohjatiedot!AO42 -> 6889 | D47: 6892 | E47: 6872 | F47: 6855 | G47: 6842 | H47: 6831 | I47: 6823 | J47: 6814 | K47: 6807
A48: Ikaalinen | B48: =pohjatiedot!C43 -> 7207 | C48: =pohjatiedot!AO43 -> 7128 | D48: 7229 | E48: 7209 | F48: 7195 | G48: 7182 | H48: 7175 | I48: 7172 | J48: 7171 | K48: 7173
A49: Ilmajoki | B49: =pohjatiedot!C44 -> 12159 | C49: =pohjatiedot!AO44 -> 12167 | D49: 12327 | E49: 12399 | F49: 12470 | G49: 12541 | H49: 12609 | I49: 12674 | J49: 12743 | K49: 12812
A50: Ilomantsi | B50: =pohjatiedot!C45 -> 5336 | C50: =pohjatiedot!AO45 -> 5237 | D50: 5295 | E50: 5201 | F50: 5112 | G50: 5030 | H50: 4951 | I50: 4878 | J50: 4807 | K50: 4740
A51: Imatra | B51: =pohjatiedot!C46 -> 27835 | C51: =pohjatiedot!AO46 -> 27517 | D51: 27722 | E51: 27589 | F51: 27470 | G51: 27359 | H51: 27254 | I51: 27152 | J51: 27052 | K51: 26951
A52: Inari | B52: =pohjatiedot!C47 -> 6804 | C52: =pohjatiedot!AO47 -> 6825 | D52: 6800 | E52: 6796 | F52: 6797 | G52: 6800 | H52: 6803 | I52: 6810 | J52: 6817 | K52: 6823
A53: Inkoo | B53: =pohjatiedot!C48 -> 5541 | C53: =pohjatiedot!AO48 -> 5585 | D53: 5523 | E53: 5516 | F53: 5512 | G53: 5511 | H53: 5510 | I53: 5512 | J53: 5515 | K53: 5519
A54: Isojoki | B54: =pohjatiedot!C49 -> 2123 | C54: =pohjatiedot!AO49 -> 2079 | D54: 2120 | E54: 2084 | F54: 2053 | G54: 2026 | H54: 2001 | I54: 1979 | J54: 1957 | K54: 1937
A55: Isokyrö | B55: =pohjatiedot!C50 -> 4785 | C55: =pohjatiedot!AO50 -> 4712 | D55: 4792 | E55: 4768 | F55: 4747 | G55: 4730 | H55: 4711 | I55: 4692 | J55: 4677 | K55: 4664
A56: Janakkala | B56: =pohjatiedot!C51 -> 16853 | C56: =pohjatiedot!AO51 -> 16709 | D56: 16857 | E56: 16866 | F56: 16878 | G56: 16885 | H56: 16896 | I56: 16906 | J56: 16915 | K56: 16924
A57: Joensuu | B57: =pohjatiedot!C52 -> 75514 | C57: =pohjatiedot!AO52 -> 75848 | D57: 75895 | E57: 76269 | F57: 76610 | G57: 76925 | H57: 77223 | I57: 77501 | J57: 77769 | K57: 78031
A58: Jokioinen | B58: =pohjatiedot!C53 -> 5425 | C58: =pohjatiedot!AO53 -> 5341 | D58: 5436 | E58: 5398 | F58: 5364 | G58: 5331 | H58: 5301 | I58: 5272 | J58: 5244 | K58: 5218
A59: Joroinen | B59: =pohjatiedot!C54 -> 5110 | C59: =pohjatiedot!AO54 -> 5039 | D59: 5078 | E59: 5035 | F59: 4995 | G59: 4957 | H59: 4923 | I59: 4885 | J59: 4852 | K59: 4820
A60: Joutsa | B60: =pohjatiedot!C55 -> 4688 | C60: =pohjatiedot!AO55 -> 4673 | D60: 4639 | E60: 4582 | F60: 4533 | G60: 4486 | H60: 4442 | I60: 4403 | J60: 4366 | K60: 4327
A61: Juuka | B61: =pohjatiedot!C56 -> 5034 | C61: =pohjatiedot!AO56 -> 4938 | D61: 4924 | E61: 4823 | F61: 4728 | G61: 4638 | H61: 4557 | I61: 4480 | J61: 4403 | K61: 4330
A62: Juupajoki | B62: =pohjatiedot!C57 -> 1988 | C62: =pohjatiedot!AO57 -> 1957 | D62: 1993 | E62: 1978 | F62: 1967 | G62: 1958 | H62: 1950 | I62: 1941 | J62: 1934 | K62: 1926
A63: Juva | B63: =pohjatiedot!C58 -> 6548 | C63: =pohjatiedot!AO58 -> 6421 | D63: 6428 | E63: 6343 | F63: 6257 | G63: 6175 | H63: 6093 | I63: 6017 | J63: 5945 | K63: 5875
A64: Jyväskylä | B64: =pohjatiedot!C59 -> 137368 | C64: =pohjatiedot!AO59 -> 138850 | D64: 138088 | E64: 139151 | F64: 140154 | G64: 141114 | H64: 142035 | I64: 142915 | J64: 143769 | K64: 144599
A65: Jämijärvi | B65: =pohjatiedot!C60 -> 1948 | C65: =pohjatiedot!AO60 -> 1915 | D65: 1974 | E65: 1961 | F65: 1952 | G65: 1942 | H65: 1934 | I65: 1929 | J65: 1925 | K65: 1922
A66: Jämsä | B66: =pohjatiedot!C61 -> 21542 | C66: =pohjatiedot!AO61 -> 21259 | D66: 21332 | E66: 21112 | F66: 20901 | G66: 20695 | H66: 20503 | I66: 20320 | J66: 20152 | K66: 19991
A67: Järvenpää | B67: =pohjatiedot!C62 -> 40900 | C67: =pohjatiedot!AO62 -> 41529 | D67: 40957 | E67: 41265 | F67: 41581 | G67: 41899 | H67: 42225 | I67: 42551 | J67: 42875 | K67: 43192
A68: Kaarina | B68: =pohjatiedot!C63 -> 32590 | C68: =pohjatiedot!AO63 -> 32738 | D68: 32669 | E68: 32920 | F68: 33164 | G68: 33400 | H68: 33628 | I68: 33855 | J68: 34073 | K68: 34279
A69: Kaavi | B69: =pohjatiedot!C64 -> 3194 | C69: =pohjatiedot!AO64 -> 3154 | D69: 3133 | E69: 3095 | F69: 3062 | G69: 3029 | H69: 3001 | I69: 2972 | J69: 2946 | K69: 2921
A70: Kajaani | B70: =pohjatiedot!C65 -> 37622 | C70: =pohjatiedot!AO65 -> 37521 | D70: 37617 | E70: 37547 | F70: 37483 | G70: 37419 | H70: 37360 | I70: 37308 | J70: 37255 | K70: 37203
A71: Kalajoki | B71: =pohjatiedot!C66 -> 12621 | C71: =pohjatiedot!AO66 -> 12586 | D71: 12654 | E71: 12671 | F71: 12686 | G71: 12701 | H71: 12712 | I71: 12721 | J71: 12727 | K71: 12729
A72: Kangasala | B72: =pohjatiedot!C67 -> 30607 | C72: =pohjatiedot!AO67 -> 31190 | D72: 30760 | E72: 30917 | F72: 31080 | G72: 31239 | H72: 31393 | I72: 31541 | J72: 31680 | K72: 31798
A73: Kangasniemi | B73: =pohjatiedot!C68 -> 5628 | C73: =pohjatiedot!AO68 -> 5603 | D73: 5545 | E73: 5483 | F73: 5425 | G73: 5372 | H73: 5324 | I73: 5277 | J73: 5233 | K73: 5189
A74: Kankaanpää | B74: =pohjatiedot!C69 -> 11769 | C74: =pohjatiedot!AO69 -> 11637 | D74: 11737 | E74: 11672 | F74: 11610 | G74: 11549 | H74: 11492 | I74: 11440 | J74: 11389 | K74: 11343
A75: Kannonkoski | B75: =pohjatiedot!C70 -> 1462 | C75: =pohjatiedot!AO70 -> 1424 | D75: 1436 | E75: 1418 | F75: 1402 | G75: 1386 | H75: 1371 | I75: 1358 | J75: 1344 | K75: 1334
A76: Kannus | B76: =pohjatiedot!C71 -> 5590 | C76: =pohjatiedot!AO71 -> 5578 | D76: 5568 | E76: 5534 | F76: 5503 | G76: 5473 | H76: 5445 | I76: 5418 | J76: 5395 | K76: 5372
A77: Karijoki | B77: =pohjatiedot!C72 -> 1369 | C77: =pohjatiedot!AO72 -> 1349 | D77: 1351 | E77: 1328 | F77: 1308 | G77: 1289 | H77: 1271 | I77: 1257 | J77: 1242 | K77: 1230
A78: Karkkila | B78: =pohjatiedot!C73 -> 8969 | C78: =pohjatiedot!AO73 -> 8911 | D78: 8897 | E78: 8873 | F78: 8853 | G78: 8838 | H78: 8825 | I78: 8819 | J78: 8815 | K78: 8814
A79: Karstula | B79: =pohjatiedot!C74 -> 4268 | C79: =pohjatiedot!AO74 -> 4232 | D79: 4170 | E79: 4114 | F79: 4062 | G79: 4013 | H79: 3966 | I79: 3919 | J79: 3874 | K79: 3832
A80: Karvia | B80: =pohjatiedot!C75 -> 2475 | C80: =pohjatiedot!AO75 -> 2449 | D80: 2421 | E80: 2387 | F80: 2355 | G80: 2325 | H80: 2296 | I80: 2269 | J80: 2246 | K80: 2222
A81: Kaskinen | B81: =pohjatiedot!C76 -> 1285 | C81: =pohjatiedot!AO76 -> 1296 | D81: 1278 | E81: 1262 | F81: 1248 | G81: 1237 | H81: 1227 | I81: 1218 | J81: 1212 | K81: 1206
A82: Kauhajoki | B82: =pohjatiedot!C77 -> 13875 | C82: =pohjatiedot!AO77 -> 13772 | D82: 13865 | E82: 13799 | F82: 13741 | G82: 13687 | H82: 13640 | I82: 13599 | J82: 13561 | K82: 13526
A83: Kauhava | B83: =pohjatiedot!C78 -> 16784 | C83: =pohjatiedot!AO78 -> 16599 | D83: 16630 | E83: 16502 | F83: 16382 | G83: 16272 | H83: 16164 | I83: 16060 | J83: 15963 | K83: 15863
A84: Kauniainen | B84: =pohjatiedot!C79 -> 9486 | C84: =pohjatiedot!AO79 -> 9397 | D84: 9603 | E84: 9730 | F84: 9853 | G84: 9978 | H84: 10100 | I84: 10216 | J84: 10330 | K84: 10444
A85: Kaustinen | B85: =pohjatiedot!C80 -> 4305 | C85: =pohjatiedot!AO80 -> 4298 | D85: 4271 | E85: 4267 | F85: 4264 | G85: 4263 | H85: 4263 | I85: 4264 | J85: 4264 | K85: 4263
A86: Keitele | B86: =pohjatiedot!C81 -> 2379 | C86: =pohjatiedot!AO81 -> 2346 | D86: 2340 | E86: 2311 | F86: 2283 | G86: 2257 | H86: 2232 | I86: 2208 | J86: 2187 | K86: 2166
A87: Kemi | B87: =pohjatiedot!C82 -> 21758 | C87: =pohjatiedot!AO82 -> 21602 | D87: 21647 | E87: 21522 | F87: 21405 | G87: 21296 | H87: 21192 | I87: 21095 | J87: 21003 | K87: 20916
A88: Kemijärvi | B88: =pohjatiedot!C83 -> 7766 | C88: =pohjatiedot!AO83 -> 7661 | D88: 7616 | E88: 7492 | F88: 7376 | G88: 7266 | H88: 7160 | I88: 7058 | J88: 6963 | K88: 6872
A89: Keminmaa | B89: =pohjatiedot!C84 -> 8388 | C89: =pohjatiedot!AO84 -> 8316 | D89: 8416 | E89: 8395 | F89: 8375 | G89: 8355 | H89: 8339 | I89: 8325 | J89: 8312 | K89: 8299
A90: Kemiönsaari | B90: =pohjatiedot!C85 -> 6909 | C90: =pohjatiedot!AO85 -> 6872 | D90: 6772 | E90: 6702 | F90: 6638 | G90: 6576 | H90: 6520 | I90: 6469 | J90: 6421 | K90: 6376
A91: Kempele | B91: =pohjatiedot!C86 -> 17066 | C91: =pohjatiedot!AO86 -> 17297 | D91: 17361 | E91: 17575 | F91: 17777 | G91: 17971 | H91: 18151 | I91: 18318 | J91: 18469 | K91: 18606
A92: Kerava | B92: =pohjatiedot!C87 -> 35293 | C92: =pohjatiedot!AO87 -> 35511 | D92: 35832 | E92: 36107 | F92: 36384 | G92: 36660 | H92: 36937 | I92: 37211 | J92: 37484 | K92: 37751
A93: Keuruu | B93: =pohjatiedot!C88 -> 10117 | C93: =pohjatiedot!AO88 -> 9992 | D93: 9939 | E93: 9834 | F93: 9741 | G93: 9656 | H93: 9578 | I93: 9501 | J93: 9430 | K93: 9363
A94: Kihniö | B94: =pohjatiedot!C89 -> 2038 | C94: =pohjatiedot!AO89 -> 1994 | D94: 2009 | E94: 1977 | F94: 1946 | G94: 1919 | H94: 1891 | I94: 1865 | J94: 1839 | K94: 1816
A95: Kinnula | B95: =pohjatiedot!C90 -> 1745 | C95: =pohjatiedot!AO90 -> 1699 | D95: 1747 | E95: 1737 | F95: 1727 | G95: 1719 | H95: 1712 | I95: 1706 | J95: 1699 | K95: 1692
A96: Kirkkonummi | B96: =pohjatiedot!C91 -> 38649 | C96: =pohjatiedot!AO91 -> 39033 | D96: 38798 | E96: 39097 | F96: 39400 | G96: 39703 | H96: 40002 | I96: 40291 | J96: 40573 | K96: 40841
A97: Kitee | B97: =pohjatiedot!C92 -> 10832 | C97: =pohjatiedot!AO92 -> 10719 | D97: 10603 | E97: 10433 | F97: 10279 | G97: 10129 | H97: 9987 | I97: 9854 | J97: 9725 | K97: 9602
A98: Kittilä | B98: =pohjatiedot!C93 -> 6416 | C98: =pohjatiedot!AO93 -> 6383 | D98: 6592 | E98: 6655 | F98: 6716 | G98: 6777 | H98: 6836 | I98: 6893 | J98: 6946 | K98: 6992
A99: Kiuruvesi | B99: =pohjatiedot!C94 -> 8600 | C99: =pohjatiedot!AO94 -> 8444 | D99: 8543 | E99: 8449 | F99: 8361 | G99: 8277 | H99: 8197 | I99: 8123 | J99: 8051 | K99: 7984
A100: Kivijärvi | B100: =pohjatiedot!C95 -> 1200 | C100: =pohjatiedot!AO95 -> 1161 | D100: 1185 | E100: 1163 | F100: 1143 | G100: 1125 | H100: 1109 | I100: 1095 | J100: 1082 | K100: 1070
A101: Kokemäki | B101: =pohjatiedot!C96 -> 7591 | C101: =pohjatiedot!AO96 -> 7498 | D101: 7541 | E101: 7472 | F101: 7410 | G101: 7355 | H101: 7301 | I101: 7251 | J101: 7206 | K101: 7162
A102: Kokkola | B102: =pohjatiedot!C97 -> 47570 | C102: =pohjatiedot!AO97 -> 47723 | D102: 47729 | E102: 47957 | F102: 48186 | G102: 48409 | H102: 48625 | I102: 48836 | J102: 49038 | K102: 49235
A103: KOKO MAA (Manner-Suomi) | B103: =pohjatiedot!C98 -> 5458325 | C103: =pohjatiedot!AO98 -> 5474083 | D103: 5482281 | E103: 5503261 | F103: 5524063 | G103: 5544619 | H103: 5564874 | I103: 5584791 | J103: 5604290 | K103: 5623257
A104: Kolari | B104: =pohjatiedot!C99 -> 3848 | C104: =pohjatiedot!AO99 -> 3827 | D104: 3825 | E104: 3827 | F104: 3831 | G104: 3840 | H104: 3849 | I104: 3858 | J104: 3866 | K104: 3873
A105: Konnevesi | B105: =pohjatiedot!C100 -> 2757 | C105: =pohjatiedot!AO100 -> 2753 | D105: 2773 | E105: 2745 | F105: 2719 | G105: 2695 | H105: 2672 | I105: 2652 | J105: 2631 | K105: 2610
A106: Kontiolahti | B106: =pohjatiedot!C101 -> 14827 | C106: =pohjatiedot!AO101 -> 14806 | D106: 15108 | E106: 15306 | F106: 15493 | G106: 15669 | H106: 15838 | I106: 15996 | J106: 16147 | K106: 16290
A107: Korsnäs | B107: =pohjatiedot!C102 -> 2201 | C107: =pohjatiedot!AO102 -> 2171 | D107: 2202 | E107: 2197 | F107: 2194 | G107: 2192 | H107: 2191 | I107: 2193 | J107: 2197 | K107: 2199
A108: Koski | B108: =pohjatiedot!C103 -> 2399 | C108: =pohjatiedot!AO103 -> 2416 | D108: 2424 | E108: 2419 | F108: 2413 | G108: 2407 | H108: 2400 | I108: 2395 | J108: 2388 | K108: 2385
A109: Kotka | B109: =pohjatiedot!C104 -> 54319 | C109: =pohjatiedot!AO104 -> 54187 | D109: 54374 | E109: 54321 | F109: 54262 | G109: 54200 | H109: 54141 | I109: 54085 | J109: 54028 | K109: 53971
A110: Kouvola | B110: =pohjatiedot!C105 -> 85855 | C110: =pohjatiedot!AO105 -> 85306 | D110: 85697 | E110: 85356 | F110: 85030 | G110: 84722 | H110: 84419 | I110: 84130 | J110: 83852 | K110: 83577
A111: Kristiinankaupunki | B111: =pohjatiedot!C106 -> 6793 | C111: =pohjatiedot!AO106 -> 6727 | D111: 6648 | E111: 6566 | F111: 6492 | G111: 6421 | H111: 6358 | I111: 6299 | J111: 6245 | K111: 6197
A112: Kruunupyy | B112: =pohjatiedot!C107 -> 6682 | C112: =pohjatiedot!AO107 -> 6620 | D112: 6627 | E112: 6614 | F112: 6605 | G112: 6596 | H112: 6588 | I112: 6583 | J112: 6579 | K112: 6576
A113: Kuhmo | B113: =pohjatiedot!C108 -> 8806 | C113: =pohjatiedot!AO108 -> 8647 | D113: 8659 | E113: 8526 | F113: 8397 | G113: 8271 | H113: 8149 | I113: 8031 | J113: 7919 | K113: 7809
A114: Kuhmoinen | B114: =pohjatiedot!C109 -> 2334 | C114: =pohjatiedot!AO109 -> 2286 | D114: 2285 | E114: 2248 | F114: 2210 | G114: 2175 | H114: 2139 | I114: 2106 | J114: 2077 | K114: 2049
A115: Kuopio | B115: =pohjatiedot!C110 -> 112117 | C115: =pohjatiedot!AO110 -> 117740 | D115: 113230 | E115: 114128 | F115: 114980 | G115: 115790 | H115: 116572 | I115: 117323 | J115: 118050 | K115: 118754
A116: Kuortane | B116: =pohjatiedot!C111 -> 3715 | C116: =pohjatiedot!AO111 -> 3690 | D116: 3612 | E116: 3562 | F116: 3512 | G116: 3463 | H116: 3418 | I116: 3373 | J116: 3330 | K116: 3289
A117: Kurikka | B117: =pohjatiedot!C112 -> 21734 | C117: =pohjatiedot!AO112 -> 21501 | D117: 21707 | E117: 21547 | F117: 21398 | G117: 21261 | H117: 21129 | I117: 21004 | J117: 20883 | K117: 20766
A118: Kustavi | B118: =pohjatiedot!C113 -> 895 | C118: =pohjatiedot!AO113 -> 908 | D118: 892 | E118: 894 | F118: 893 | G118: 893 | H118: 893 | I118: 896 | J118: 898 | K118: 898
A119: Kuusamo | B119: =pohjatiedot!C114 -> 15688 | C119: =pohjatiedot!AO114 -> 15533 | D119: 15434 | E119: 15264 | F119: 15107 | G119: 14967 | H119: 14838 | I119: 14717 | J119: 14600 | K119: 14489
A120: Kyyjärvi | B120: =pohjatiedot!C115 -> 1379 | C120: =pohjatiedot!AO115 -> 1375 | D120: 1343 | E120: 1317 | F120: 1293 | G120: 1272 | H120: 1248 | I120: 1226 | J120: 1205 | K120: 1186
A121: Kärkölä | B121: =pohjatiedot!C116 -> 4604 | C121: =pohjatiedot!AO116 -> 4540 | D121: 4533 | E121: 4495 | F121: 4462 | G121: 4433 | H121: 4409 | I121: 4385 | J121: 4363 | K121: 4345
A122: Kärsämäki | B122: =pohjatiedot!C117 -> 2658 | C122: =pohjatiedot!AO117 -> 2655 | D122: 2594 | E122: 2548 | F122: 2506 | G122: 2462 | H122: 2422 | I122: 2383 | J122: 2344 | K122: 2308
A123: Lahti | B123: =pohjatiedot!C118 -> 118743 | C123: =pohjatiedot!AO118 -> 119452 | D123: 119587 | E123: 120041 | F123: 120476 | G123: 120897 | H123: 121300 | I123: 121683 | J123: 122060 | K123: 122425
A124: Laihia | B124: =pohjatiedot!C119 -> 8090 | C124: =pohjatiedot!AO119 -> 8139 | D124: 8157 | E124: 8205 | F124: 8252 | G124: 8298 | H124: 8341 | I124: 8379 | J124: 8416 | K124: 8451
A125: Laitila | B125: =pohjatiedot!C120 -> 8520 | C125: =pohjatiedot!AO120 -> 8520 | D125: 8576 | E125: 8597 | F125: 8615 | G125: 8633 | H125: 8650 | I125: 8668 | J125: 8687 | K125: 8706
A126: Lapinjärvi | B126: =pohjatiedot!C121 -> 2774 | C126: =pohjatiedot!AO121 -> 2739 | D126: 2722 | E126: 2699 | F126: 2680 | G126: 2664 | H126: 2649 | I126: 2635 | J126: 2626 | K126: 2616
A127: Lapinlahti | B127: =pohjatiedot!C122 -> 9982 | C127: =pohjatiedot!AO122 -> 9882 | D127: 9939 | E127: 9869 | F127: 9803 | G127: 9739 | H127: 9677 | I127: 9621 | J127: 9567 | K127: 9515
A128: Lappajärvi | B128: =pohjatiedot!C123 -> 3215 | C128: =pohjatiedot!AO123 -> 3176 | D128: 3149 | E128: 3102 | F128: 3057 | G128: 3016 | H128: 2977 | I128: 2940 | J128: 2906 | K128: 2872
A129: Lappeenranta | B129: =pohjatiedot!C124 -> 72875 | C129: =pohjatiedot!AO124 -> 72872 | D129: 73103 | E129: 73255 | F129: 73397 | G129: 73535 | H129: 73666 | I129: 73791 | J129: 73917 | K129: 74042
A130: Lapua | B130: =pohjatiedot!C125 -> 14609 | C130: =pohjatiedot!AO125 -> 14575 | D130: 14848 | E130: 14919 | F130: 14989 | G130: 15054 | H130: 15119 | I130: 15183 | J130: 15245 | K130: 15300
A131: Laukaa | B131: =pohjatiedot!C126 -> 18865 | C131: =pohjatiedot!AO126 -> 18970 | D131: 18946 | E131: 19066 | F131: 19183 | G131: 19297 | H131: 19406 | I131: 19508 | J131: 19600 | K131: 19682
A132: Lemi | B132: =pohjatiedot!C127 -> 3073 | C132: =pohjatiedot!AO127 -> 3076 | D132: 3133 | E132: 3138 | F132: 3143 | G132: 3146 | H132: 3149 | I132: 3151 | J132: 3151 | K132: 3150
A133: Lempäälä | B133: =pohjatiedot!C128 -> 22536 | C133: =pohjatiedot!AO128 -> 22745 | D133: 22991 | E133: 23358 | F133: 23715 | G133: 24061 | H133: 24395 | I133: 24714 | J133: 25023 | K133: 25313
A134: Leppävirta | B134: =pohjatiedot!C129 -> 9953 | C134: =pohjatiedot!AO129 -> 9865 | D134: 9735 | E134: 9609 | F134: 9489 | G134: 9377 | H134: 9269 | I134: 9166 | J134: 9070 | K134: 8981
A135: Lestijärvi | B135: =pohjatiedot!C130 -> 798 | C135: =pohjatiedot!AO130 -> 811 | D135: 799 | E135: 793 | F135: 786 | G135: 783 | H135: 777 | I135: 771 | J135: 768 | K135: 765
A136: Lieksa | B136: =pohjatiedot!C131 -> 11772 | C136: =pohjatiedot!AO131 -> 11580 | D136: 11832 | E136: 11706 | F136: 11585 | G136: 11470 | H136: 11363 | I136: 11261 | J136: 11164 | K136: 11072
A137: Lieto | B137: =pohjatiedot!C132 -> 19263 | C137: =pohjatiedot!AO132 -> 19418 | D137: 19685 | E137: 19918 | F137: 20149 | G137: 20370 | H137: 20585 | I137: 20796 | J137: 21000 | K137: 21193
A138: Liminka | B138: =pohjatiedot!C133 -> 9937 | C138: =pohjatiedot!AO133 -> 10000 | D138: 10104 | E138: 10267 | F138: 10418 | G138: 10554 | H138: 10671 | I138: 10776 | J138: 10870 | K138: 10952
A139: Liperi | B139: =pohjatiedot!C134 -> 12338 | C139: =pohjatiedot!AO134 -> 12301 | D139: 12385 | E139: 12414 | F139: 12438 | G139: 12461 | H139: 12480 | I139: 12499 | J139: 12517 | K139: 12532
A140: Lohja | B140: =pohjatiedot!C135 -> 47353 | C140: =pohjatiedot!AO135 -> 47149 | D140: 47754 | E140: 47839 | F140: 47932 | G140: 48033 | H140: 48136 | I140: 48245 | J140: 48350 | K140: 48461
A141: Loimaa | B141: =pohjatiedot!C136 -> 16467 | C141: =pohjatiedot!AO136 -> 16267 | D141: 16418 | E141: 16343 | F141: 16272 | G141: 16211 | H141: 16150 | I141: 16098 | J141: 16050 | K141: 16006
A142: Loppi | B142: =pohjatiedot!C137 -> 8175 | C142: =pohjatiedot!AO137 -> 8098 | D142: 8300 | E142: 8311 | F142: 8317 | G142: 8325 | H142: 8330 | I142: 8334 | J142: 8338 | K142: 8339
A143: Loviisa | B143: =pohjatiedot!C138 -> 15311 | C143: =pohjatiedot!AO138 -> 15208 | D143: 15461 | E143: 15459 | F143: 15459 | G143: 15465 | H143: 15474 | I143: 15485 | J143: 15499 | K143: 15515
A144: Luhanka | B144: =pohjatiedot!C139 -> 761 | C144: =pohjatiedot!AO139 -> 756 | D144: 737 | E144: 724 | F144: 715 | G144: 706 | H144: 699 | I144: 692 | J144: 685 | K144: 680
A145: Lumijoki | B145: =pohjatiedot!C140 -> 2076 | C145: =pohjatiedot!AO140 -> 2105 | D145: 2107 | E145: 2121 | F145: 2134 | G145: 2145 | H145: 2157 | I145: 2169 | J145: 2175 | K145: 2181
A146: Luoto | B146: =pohjatiedot!C141 -> 5147 | C146: =pohjatiedot!AO141 -> 5176 | D146: 5257 | E146: 5332 | F146: 5406 | G146: 5478 | H146: 5549 | I146: 5618 | J146: 5687 | K146: 5753
A147: Luumäki | B147: =pohjatiedot!C142 -> 4860 | C147: =pohjatiedot!AO142 -> 4831 | D147: 4844 | E147: 4795 | F147: 4748 | G147: 4703 | H147: 4662 | I147: 4620 | J147: 4584 | K147: 4549
A148: Maalahti | B148: =pohjatiedot!C143 -> 5545 | C148: =pohjatiedot!AO143 -> 5517 | D148: 5540 | E148: 5533 | F148: 5526 | G148: 5524 | H148: 5523 | I148: 5525 | J148: 5527 | K148: 5531
A149: Marttila | B149: =pohjatiedot!C144 -> 2028 | C149: =pohjatiedot!AO144 -> 2021 | D149: 2086 | E149: 2097 | F149: 2106 | G149: 2115 | H149: 2124 | I149: 2137 | J149: 2147 | K149: 2158
A150: Masku | B150: =pohjatiedot!C145 -> 9706 | C150: =pohjatiedot!AO145 -> 9675 | D150: 9914 | E150: 9981 | F150: 10046 | G150: 10106 | H150: 10164 | I150: 10221 | J150: 10278 | K150: 10331
A151: Merijärvi | B151: =pohjatiedot!C146 -> 1134 | C151: =pohjatiedot!AO146 -> 1131 | D151: 1128 | E151: 1116 | F151: 1106 | G151: 1096 | H151: 1085 | I151: 1076 | J151: 1067 | K151: 1061
A152: Merikarvia | B152: =pohjatiedot!C147 -> 3185 | C152: =pohjatiedot!AO147 -> 3169 | D152: 3169 | E152: 3136 | F152: 3103 | G152: 3073 | H152: 3044 | I152: 3015 | J152: 2987 | K152: 2961
A153: Miehikkälä | B153: =pohjatiedot!C148 -> 2085 | C153: =pohjatiedot!AO148 -> 2034 | D153: 2065 | E153: 2041 | F153: 2020 | G153: 1997 | H153: 1976 | I153: 1957 | J153: 1938 | K153: 1921
A154: Mikkeli | B154: =pohjatiedot!C149 -> 54665 | C154: =pohjatiedot!AO149 -> 54517 | D154: 54633 | E154: 54651 | F154: 54665 | G154: 54678 | H154: 54690 | I154: 54707 | J154: 54722 | K154: 54732
A155: Muhos | B155: =pohjatiedot!C150 -> 9063 | C155: =pohjatiedot!AO150 -> 8995 | D155: 9017 | E155: 9027 | F155: 9037 | G155: 9039 | H155: 9032 | I155: 9024 | J155: 9012 | K155: 8999
A156: Multia | B156: =pohjatiedot!C151 -> 1710 | C156: =pohjatiedot!AO151 -> 1663 | D156: 1698 | E156: 1667 | F156: 1639 | G156: 1612 | H156: 1586 | I156: 1561 | J156: 1538 | K156: 1517
A157: Muonio | B157: =pohjatiedot!C152 -> 2358 | C157: =pohjatiedot!AO152 -> 2350 | D157: 2363 | E157: 2358 | F157: 2356 | G157: 2355 | H157: 2356 | I157: 2355 | J157: 2355 | K157: 2357
A158: Mustasaari | B158: =pohjatiedot!C153 -> 19302 | C158: =pohjatiedot!AO153 -> 19380 | D158: 19625 | E158: 19797 | F158: 19967 | G158: 20129 | H158: 20286 | I158: 20438 | J158: 20585 | K158: 20720
A159: Muurame | B159: =pohjatiedot!C154 -> 9791 | C159: =pohjatiedot!AO154 -> 9941 | D159: 9880 | E159: 9969 | F159: 10055 | G159: 10139 | H159: 10216 | I159: 10290 | J159: 10360 | K159: 10427
A160: Mynämäki | B160: =pohjatiedot!C155 -> 7859 | C160: =pohjatiedot!AO155 -> 7842 | D160: 7835 | E160: 7798 | F160: 7761 | G160: 7729 | H160: 7701 | I160: 7678 | J160: 7657 | K160: 7638
A161: Myrskylä | B161: =pohjatiedot!C156 -> 1969 | C161: =pohjatiedot!AO156 -> 1986 | D161: 1976 | E161: 1973 | F161: 1976 | G161: 1978 | H161: 1982 | I161: 1987 | J161: 1991 | K161: 1994
A162: Mäntsälä | B162: =pohjatiedot!C157 -> 20685 | C162: =pohjatiedot!AO157 -> 20853 | D162: 20902 | E162: 21045 | F162: 21187 | G162: 21328 | H162: 21465 | I162: 21607 | J162: 21748 | K162: 21887
A163: Mänttä-Vilppula | B163: =pohjatiedot!C158 -> 10604 | C163: =pohjatiedot!AO158 -> 10448 | D163: 10394 | E163: 10250 | F163: 10113 | G163: 9988 | H163: 9869 | I163: 9758 | J163: 9656 | K163: 9565
A164: Mäntyharju | B164: =pohjatiedot!C159 -> 6159 | C164: =pohjatiedot!AO159 -> 6097 | D164: 6173 | E164: 6134 | F164: 6097 | G164: 6059 | H164: 6023 | I164: 5990 | J164: 5957 | K164: 5926
A165: Naantali | B165: =pohjatiedot!C160 -> 18961 | C165: =pohjatiedot!AO160 -> 19068 | D165: 18875 | E165: 18904 | F165: 18942 | G165: 18982 | H165: 19027 | I165: 19077 | J165: 19126 | K165: 19175
A166: Nakkila | B166: =pohjatiedot!C161 -> 5651 | C166: =pohjatiedot!AO161 -> 5548 | D166: 5613 | E166: 5592 | F166: 5571 | G166: 5552 | H166: 5530 | I166: 5511 | J166: 5490 | K166: 5468
A167: Nivala | B167: =pohjatiedot!C162 -> 10876 | C167: =pohjatiedot!AO162 -> 10889 | D167: 10910 | E167: 10890 | F167: 10874 | G167: 10859 | H167: 10839 | I167: 10819 | J167: 10797 | K167: 10775
A168: Nokia | B168: =pohjatiedot!C163 -> 33162 | C168: =pohjatiedot!AO163 -> 33210 | D168: 33340 | E168: 33585 | F168: 33824 | G168: 34055 | H168: 34282 | I168: 34500 | J168: 34710 | K168: 34904
A169: Nousiainen | B169: =pohjatiedot!C164 -> 4859 | C169: =pohjatiedot!AO164 -> 4815 | D169: 4859 | E169: 4865 | F169: 4869 | G169: 4875 | H169: 4881 | I169: 4887 | J169: 4894 | K169: 4900
A170: Nurmes | B170: =pohjatiedot!C165 -> 7996 | C170: =pohjatiedot!AO165 -> 7885 | D170: 7851 | E170: 7753 | F170: 7664 | G170: 7581 | H170: 7500 | I170: 7422 | J170: 7346 | K170: 7275
A171: Nurmijärvi | B171: =pohjatiedot!C166 -> 41897 | C171: =pohjatiedot!AO166 -> 42010 | D171: 42237 | E171: 42573 | F171: 42908 | G171: 43240 | H171: 43566 | I171: 43883 | J171: 44194 | K171: 44501
A172: Närpiö | B172: =pohjatiedot!C167 -> 9387 | C172: =pohjatiedot!AO167 -> 9439 | D172: 9323 | E172: 9303 | F172: 9288 | G172: 9274 | H172: 9263 | I172: 9254 | J172: 9246 | K172: 9240
A173: Orimattila | B173: =pohjatiedot!C168 -> 16326 | C173: =pohjatiedot!AO168 -> 16279 | D173: 16258 | E173: 16256 | F173: 16254 | G173: 16257 | H173: 16257 | I173: 16257 | J173: 16256 | K173: 16256
A174: Oripää | B174: =pohjatiedot!C169 -> 1377 | C174: =pohjatiedot!AO169 -> 1363 | D174: 1429 | E174: 1431 | F174: 1436 | G174: 1437 | H174: 1438 | I174: 1439 | J174: 1440 | K174: 1441
A175: Orivesi | B175: =pohjatiedot!C170 -> 9408 | C175: =pohjatiedot!AO170 -> 9312 | D175: 9536 | E175: 9523 | F175: 9519 | G175: 9519 | H175: 9525 | I175: 9533 | J175: 9543 | K175: 9550
A176: Oulainen | B176: =pohjatiedot!C171 -> 7610 | C176: =pohjatiedot!AO171 -> 7514 | D176: 7605 | E176: 7550 | F176: 7497 | G176: 7444 | H176: 7396 | I176: 7348 | J176: 7305 | K176: 7265
A177: Oulu | B177: =pohjatiedot!C172 -> 198525 | C177: =pohjatiedot!AO172 -> 200526 | D177: 201621 | E177: 204148 | F177: 206569 | G177: 208898 | H177: 211144 | I177: 213314 | J177: 215418 | K177: 217444
A178: Outokumpu | B178: =pohjatiedot!C173 -> 7139 | C178: =pohjatiedot!AO173 -> 7091 | D178: 7025 | E178: 6957 | F178: 6890 | G178: 6827 | H178: 6769 | I178: 6715 | J178: 6665 | K178: 6616
A179: Padasjoki | B179: =pohjatiedot!C174 -> 3143 | C179: =pohjatiedot!AO174 -> 3073 | D179: 3096 | E179: 3049 | F179: 3007 | G179: 2969 | H179: 2934 | I179: 2902 | J179: 2871 | K179: 2843
A180: Paimio | B180: =pohjatiedot!C175 -> 10620 | C180: =pohjatiedot!AO175 -> 10713 | D180: 10734 | E180: 10788 | F180: 10842 | G180: 10899 | H180: 10955 | I180: 11009 | J180: 11059 | K180: 11108
A181: Paltamo | B181: =pohjatiedot!C176 -> 3488 | C181: =pohjatiedot!AO176 -> 3491 | D181: 3416 | E181: 3357 | F181: 3303 | G181: 3252 | H181: 3207 | I181: 3165 | J181: 3127 | K181: 3090
A182: Parainen | B182: =pohjatiedot!C177 -> 15457 | C182: =pohjatiedot!AO177 -> 15398 | D182: 15497 | E182: 15500 | F182: 15502 | G182: 15504 | H182: 15511 | I182: 15516 | J182: 15523 | K182: 15529
A183: Parikkala | B183: =pohjatiedot!C178 -> 5235 | C183: =pohjatiedot!AO178 -> 5126 | D183: 5171 | E183: 5084 | F183: 4999 | G183: 4926 | H183: 4855 | I183: 4789 | J183: 4728 | K183: 4670
A184: Parkano | B184: =pohjatiedot!C179 -> 6766 | C184: =pohjatiedot!AO179 -> 6692 | D184: 6700 | E184: 6650 | F184: 6606 | G184: 6561 | H184: 6520 | I184: 6481 | J184: 6445 | K184: 6407
A185: Pedersören kunta | B185: =pohjatiedot!C180 -> 11129 | C185: =pohjatiedot!AO180 -> 11067 | D185: 11153 | E185: 11202 | F185: 11254 | G185: 11305 | H185: 11356 | I185: 11406 | J185: 11456 | K185: 11503
A186: Pelkosenniemi | B186: =pohjatiedot!C181 -> 958 | C186: =pohjatiedot!AO181 -> 951 | D186: 927 | E186: 918 | F186: 910 | G186: 905 | H186: 899 | I186: 892 | J186: 886 | K186: 882
A187: Pello | B187: =pohjatiedot!C182 -> 3623 | C187: =pohjatiedot!AO182 -> 3565 | D187: 3538 | E187: 3476 | F187: 3418 | G187: 3366 | H187: 3314 | I187: 3265 | J187: 3219 | K187: 3172
A188: Perho | B188: =pohjatiedot!C183 -> 2931 | C188: =pohjatiedot!AO183 -> 2907 | D188: 2847 | E188: 2824 | F188: 2801 | G188: 2781 | H188: 2760 | I188: 2738 | J188: 2719 | K188: 2701
A189: Pertunmaa | B189: =pohjatiedot!C184 -> 1817 | C189: =pohjatiedot!AO184 -> 1796 | D189: 1788 | E189: 1767 | F189: 1748 | G189: 1730 | H189: 1712 | I189: 1694 | J189: 1677 | K189: 1662
A190: Petäjävesi | B190: =pohjatiedot!C185 -> 4008 | C190: =pohjatiedot!AO185 -> 3981 | D190: 4091 | E190: 4099 | F190: 4107 | G190: 4116 | H190: 4124 | I190: 4130 | J190: 4138 | K190: 4145
A191: Pieksämäki | B191: =pohjatiedot!C186 -> 18801 | C191: =pohjatiedot!AO186 -> 18475 | D191: 18598 | E191: 18385 | F191: 18189 | G191: 18000 | H191: 17825 | I191: 17659 | J191: 17503 | K191: 17355
A192: Pielavesi | B192: =pohjatiedot!C187 -> 4740 | C192: =pohjatiedot!AO187 -> 4697 | D192: 4650 | E192: 4590 | F192: 4531 | G192: 4477 | H192: 4429 | I192: 4382 | J192: 4337 | K192: 4291
A193: Pietarsaari | B193: =pohjatiedot!C188 -> 19436 | C193: =pohjatiedot!AO188 -> 19377 | D193: 19526 | E193: 19521 | F193: 19520 | G193: 19520 | H193: 19527 | I193: 19527 | J193: 19528 | K193: 19529
A194: Pihtipudas | B194: =pohjatiedot!C189 -> 4221 | C194: =pohjatiedot!AO189 -> 4202 | D194: 4096 | E194: 4022 | F194: 3949 | G194: 3881 | H194: 3816 | I194: 3754 | J194: 3696 | K194: 3640
A195: Pirkkala | B195: =pohjatiedot!C190 -> 18913 | C195: =pohjatiedot!AO190 -> 19163 | D195: 19554 | E195: 19980 | F195: 20396 | G195: 20797 | H195: 21186 | I195: 21561 | J195: 21921 | K195: 22263
A196: Polvijärvi | B196: =pohjatiedot!C191 -> 4556 | C196: =pohjatiedot!AO191 -> 4514 | D196: 4528 | E196: 4494 | F196: 4456 | G196: 4425 | H196: 4395 | I196: 4372 | J196: 4348 | K196: 4326
A197: Pomarkku | B197: =pohjatiedot!C192 -> 2240 | C197: =pohjatiedot!AO192 -> 2233 | D197: 2214 | E197: 2183 | F197: 2150 | G197: 2119 | H197: 2091 | I197: 2063 | J197: 2036 | K197: 2012
A198: Pori | B198: =pohjatiedot!C193 -> 85363 | C198: =pohjatiedot!AO193 -> 85059 | D198: 85545 | E198: 85616 | F198: 85681 | G198: 85746 | H198: 85812 | I198: 85877 | J198: 85931 | K198: 85987
A199: Pornainen | B199: =pohjatiedot!C194 -> 5125 | C199: =pohjatiedot!AO194 -> 5108 | D199: 5161 | E199: 5175 | F199: 5195 | G199: 5213 | H199: 5235 | I199: 5257 | J199: 5282 | K199: 5303
A200: Porvoo | B200: =pohjatiedot!C195 -> 49928 | C200: =pohjatiedot!AO195 -> 50144 | D200: 50095 | E200: 50305 | F200: 50523 | G200: 50741 | H200: 50956 | I200: 51171 | J200: 51378 | K200: 51581
A201: Posio | B201: =pohjatiedot!C196 -> 3477 | C201: =pohjatiedot!AO196 -> 3424 | D201: 3497 | E201: 3436 | F201: 3380 | G201: 3327 | H201: 3278 | I201: 3232 | J201: 3190 | K201: 3151
A202: Pudasjärvi | B202: =pohjatiedot!C197 -> 8257 | C202: =pohjatiedot!AO197 -> 8187 | D202: 8152 | E202: 8045 | F202: 7945 | G202: 7850 | H202: 7761 | I202: 7678 | J202: 7597 | K202: 7524
A203: Pukkila | B203: =pohjatiedot!C198 -> 1971 | C203: =pohjatiedot!AO198 -> 1988 | D203: 2017 | E203: 2018 | F203: 2021 | G203: 2023 | H203: 2029 | I203: 2033 | J203: 2041 | K203: 2048
... 100 more rows
